{"text_format":"1","workbook":"xlsx","n_sheets":11,"sheets":["Contenido","Lists","Premisas","Periodos","Resumen de Validaciones","110000 - Carátula","110010 - Administradores","110010 GeneraXBRL","210000 - Est. Situa. Financiera","310000 - Est. Resultados","Data"],"not_rendered":{"charts":0,"images":5,"macros":1,"external_links":1,"defined_names":89,"comments":4,"pivot_tables":0},"unopened":[],"bounds":{"document_bytes":16777216,"sheet_cells":100000,"rows_first":2000,"rows_last":500,"rows_between":2000,"halvings":0,"cell_chars":16384,"cell_head_chars":4096},"cells_cut":0,"cells_raw":0,"read":"whole","date_system":"1900"}

{"sheet":"Contenido","index":0,"n_rows":22,"n_cols":7,"rows_kept":22,"cut":false,"hidden":false,"merged":[[17,1,17,11],[19,1,19,11],[21,1,21,11],[3,1,3,11],[4,1,4,11],[5,1,5,11],[7,5,7,8],[14,5,14,8],[16,1,16,11]]}
[]
[]
[]
[null,"Plantilla para generación de instancias XBRL "]
[null,"Taxonomía Grupo 3 - Corte Diciembre 31 de 2017"]
[null,"Versión 1.0"]
[]
[null,null,null,null,null,"Formularios"]
[]
[null,null,null,null,null,110000,"Carátula"]
[null,null,null,null,null,110010,"Administradores"]
[null,null,null,null,null,210000,"Estado de situación financiera"]
[null,null,null,null,null,310000,"Estado de Resultados"]
[]
[null,null,null,null,null,"Resumen de validaciones"]
[]
[]
[null,"Esta herramienta es una opción que facilita a los vigilados pertenecientes al Grupo 3 de aplicación de normatividad financiera de la Superintendencia de Vigilancia y Seguridad Privada, la generación de los archivos (instancias) XBRL que la entidad requiere como parte de la presentación de la información financiera para el corte a diciembre 31 de 2017."]
[]
[null,"El uso de esta herramienta no es obligatorio, ni su comportamiento puede ser motivo para sustentar el no cumplimiento del requerimiento en los términos indicados en él."]
[]
[null,"Para consultar detalles sobre el uso de esta herramienta se puede acceder al botón de ayuda ubicado en el menú \"Solutions XBRL\" o consultar el portal web de la entidad."]

{"sheet":"Lists","index":1,"n_rows":1134,"n_cols":93,"rows_kept":1134,"cut":false,"hidden":true,"merged":[]}
[]
[null,null,null,null,null,null,null,null,null,null,null,null,null,null,null,null,null,null,null,null,null,null,null,null,null,null,null,null,"AMAZONAS",null,"ANTIOQUIA",null,"ARAUCA",null,"ATLANTICO",null,"BOGOTA",null,"BOLIVAR",null,"BOYACA",null,"CALDAS",null,"CAQUETA",null,"CASANARE",null,"CAUCA",null,"CESAR",null,"CHOCO",null,"CORDOBA",null,"CUNDINAMARCA",null,"GUAINIA",null,"GUAVIARE",null,"HUILA",null,"LA_GUAJIRA",null,"MAGDALENA",null,"META",null,"NARINO",null,"NORTE_DE_SANTANDER",null,"PUTUMAYO",null,"QUINDIO",null,"RISARALDA",null,"SAN_ANDRES_Y_PROVIDENCIA",null,"SANTANDER",null,"SUCRE",null,"TOLIMA",null,"VALLE",null,"VAUPES",null,"VICHADA"]
[null,"NO","1","NA",null,"A0111 - Cultivo de cereales (excepto arroz), legumbres y semillas oleaginosas",null,"GRUPO 1",null,"PERSONA JURIDICA",null,"COOPERATIVA DE TRABAJO ASOCIADO - CTA",null,"ACTIVA",null,"AMAZONAS",null,"ABEJORRAL-ANTIOQUIA",null,"EN RECURSO",null,"01 EMPRESA DE VIGILANCIA Y SEGURIDAD PRIVADAS CON ARMAS",null,"NO",null,"CEDULA DE CIUDADANIA",null,null,"EL-ENCANTO-AMAZONAS",null,"ABEJORRAL-ANTIOQUIA",null,"ARAUCA-ARAUCA",null,"BARANOA-ATLANTICO",null,"BOGOTA-BOGOTA D.C.",null,"ACHI-BOLIVAR",null,"ALMEIDA-BOYACA",null,"AGUADAS-CALDAS",null,"ALBANIA-CAQUETA",null,"AGUAZUL-CASANARE",null,"ALMAGUER-CAUCA",null,"AGUACHICA-CESAR",null,"ACANDI-CHOCO",null,"AYAPEL-CORDOBA",null,"AGUA-DE-DIOS-CUNDINAMARCA",null,"CACAHUAL-GUAINIA",null,"CALAMAR-GUAVIARE",null,"ACEVEDO-HUILA",null,"ALBANIA-LA GUAJIRA",null,"ALGARROBO-MAGDALENA",null,"ACACIAS-META",null,"ALBAN-NARINO",null,"ABREGO-NORTE DE SANTANDER",null,"COLON-PUTUMAYO",null,"ARMENIA-QUINDIO",null,"APIA-RISARALDA",null,"PROVIDENCIA-SAN ANDRES Y PROVIDENCIA",null,"AGUADA-SANTANDER",null,"BUENAVISTA-SUCRE",null,"ALPUJARRA-TOLIMA",null,"ALCALA-VALLE",null,"CARURU-VAUPES",null,"CURIMBAO-VICHADA"]
[null,"SI","2","NO",null,"A0112 - Cultivo de arroz",null,"GRUPO 2",null,"PERSONA NATURAL",null,"EMPRESA UNIPERSONAL",null,"ACUERDO DE REESTRUCTURACIÓN",null,"ANTIOQUIA",null,"ABREGO-NORTE DE SANTANDER",null,"EN TRÁMITE",null,"02 EMPRESA DE VIGILANCIA Y SEGURIDAD PRIVADAS SIN ARMAS",null,"SI",null,"CEDULA DE EXTRANJERIA",null,null,"LA-CHORRERA-AMAZONAS",null,"ABRIAQUI-ANTIOQUIA",null,"ARAUQUITA-ARAUCA",null,"BARRANQUILLA-ATLANTICO",null,"BOSA-BOGOTA D.C.",null,"ALTOS-DEL-ROSARIO-BOLIVAR",null,"AQUITANIA-BOYACA",null,"ANSERMA-CALDAS",null,"BELEN-DE-LOS-ANDAQUIES-CAQUETA",null,"CHAMEZA-CASANARE",null,"ARGELIA-CAUCA",null,"AGUSTIN-CODAZZI-CESAR",null,"ALTO-BAUDO-CHOCO",null,"BUENAVISTA-CORDOBA",null,"ALBAN-CUNDINAMARCA",null,"GUAVIARE-GUAINIA",null,"EL-RETORNO-GUAVIARE",null,"AGRADO-HUILA",null,"BARRANCAS-LA GUAJIRA",null,"ARACATACA-MAGDALENA",null,"BARRANCA-DE-UPÍA-META",null,"ALDANA-NARINO",null,"ARBOLEDAS-NORTE DE SANTANDER",null,"MOCOA-PUTUMAYO",null,"BUENAVISTA-QUINDIO",null,"BALBOA-RISARALDA",null,"SAN-ANDRES-SAN ANDRES Y PROVIDENCIA",null,"ALBANIA-SANTANDER",null,"CAIMITO-SUCRE",null,"ALVARADO-TOLIMA",null,"ANDALUCIA-VALLE",null,"MITU-VAUPES",null,"LA-PRIMAVERA-VICHADA"]
[null,null,"3","SI",null,"A0113 - Cultivo de hortalizas, raíces y tubérculos",null,"GRUPO 3",null,null,null,"ENTIDAD GUBERNAMENTAL",null,"ACUERDO DE REORGANIZACION",null,"ARAUCA",null,"ABRIAQUI-ANTIOQUIA",null,"VIGENTE",null,"03 COOPERATIVA DE VIGILANCIA Y SEGURIDAD PRIVADA",null,null,null,"PASAPORTE",null,null,"LA-PEDRERA-AMAZONAS",null,"ALEJANDRIA-ANTIOQUIA",null,"CRAVO-NORTE-ARAUCA",null,"CAMPO-DE-LA-CRUZ-ATLANTICO",null,"ENGATIVA-BOGOTA D.C.",null,"ARENAL-BOLIVAR",null,"ARCABUCO-BOYACA",null,"ARANZAZU-CALDAS",null,"CARTAGENA-DEL-CHAIRA-CAQUETA",null,"HATO-COROZAL-CASANARE",null,"BALBOA-CAUCA",null,"ASTREA-CESAR",null,"ATRATO-CHOCO",null,"CANALETE-CORDOBA",null,"ANAPOIMA-CUNDINAMARCA",null,"INIRIDA-GUAINIA",null,"GUAVIARE-GUAINIA",null,"AIPE-HUILA",null,"DIBULLA-LA GUAJIRA",null,"ARIGUANI-MAGDALENA",null,"CABUYARO-META",null,"ANCUYA-NARINO",null,"BOCHALEMA-NORTE DE SANTANDER",null,"ORITO-PUTUMAYO",null,"CALARCA-QUINDIO",null,"BELEN-DE-UMBRIA-RISARALDA",null,null,null,"ARATOCA-SANTANDER",null,"CHALAN-SUCRE",null,"AMBALEMA-TOLIMA",null,"ANSERMANUEVO-VALLE",null,"PACOA-VAUPES",null,"NUEVA-ANTIOQUIA-VICHADA"]
[null,null,"4",null,null,"A0114 - Cultivo de tabaco",null,null,null,null,null,"ENTIDAD SIN ANIMO DE LUCRO",null,"CONCORDATO EN EJECUCIÓN",null,"ATLANTICO",null,"ACACIAS-META",null,null,null,"04 EMPRESA DE TRANSPORTE DE VALORES",null,null,null,null,null,null,"LA-VICTORIA-AMAZONAS",null,"AMAGA-ANTIOQUIA",null,"FORTUL-ARAUCA",null,"CANDELARIA-ATLANTICO",null,"FONTIBON-BOGOTA D.C.",null,"ARJONA-BOLIVAR",null,"BELEN-BOYACA",null,"BELALCAZAR-CALDAS",null,"CURILLO-CAQUETA",null,"LA-SALINA-CASANARE",null,"BOLIVAR-CAUCA",null,"BECERRIL-CESAR",null,"BAGADO-CHOCO",null,"CERETE-CORDOBA",null,"ANOLAIMA-CUNDINAMARCA",null,"LA-GUADALUPE-GUAINIA",null,"MIRAFLORES-GUAVIARE",null,"ALGECIRAS-HUILA",null,"DISTRACCION-LA GUAJIRA",null,"CERRO-DE-SAN-ANTONIO-MAGDALENA",null,"CASTILLA-LA-NUEVA-META",null,"ARBOLEDA-NARINO",null,"BUCARASICA-NORTE DE SANTANDER",null,"PUERTO-ASIS-PUTUMAYO",null,"CIRCASIA-QUINDIO",null,"DOS-QUEBRADAS-RISARALDA",null,null,null,"BARBOSA-SANTANDER",null,"COLOSO-SUCRE",null,"ANZOATEGUI-TOLIMA",null,"ARGELIA-VALLE",null,"PAPUNAUA-VAUPES",null,"PUERTO-CARRENO-VICHADA"]
[null,null,"5",null,null,"A0115 - Cultivo de plantas textiles",null,null,null,null,null,"SOCIEDAD ANONIMA - SA",null,"CONCORDATO EN TRÁMITE",null,"BOGOTA",null,"ACANDI-CHOCO",null,null,null,"05 EMPRESA BLINDADORA",null,null,null,null,null,null,"LETICIA-AMAZONAS",null,"AMALFI-ANTIOQUIA",null,"PUERTO-RONDON-ARAUCA",null,"GALAPA-ATLANTICO",null,"SUBA-BOGOTA D.C.",null,"ARROYOHONDO-BOLIVAR",null,"BERBEO-BOYACA",null,"CHINCHINA-CALDAS",null,"EL-DONCELLO-CAQUETA",null,"MANI-CASANARE",null,"BUENOS-AIRES-CAUCA",null,"BOSCONIA-CESAR",null,"BAHIA-SOLANO-CHOCO",null,"CHIMA-CORDOBA",null,"APULO-CUNDINAMARCA",null,"MAPIRIPANA-GUAINIA",null,"MORICHAL-GUAVIARE",null,"ALTAMIRA-HUILA",null,"EL-MOLINO-LA GUAJIRA",null,"CHIVOLO-MAGDALENA",null,"CUBARRAL-META",null,"BARBACOAS-NARINO",null,"CACHIRA-NORTE DE SANTANDER",null,"PUERTO-CAICEDO-PUTUMAYO",null,"CORDOBA-QUINDIO",null,"GUATICA-RISARALDA",null,null,null,"BARICHARA-SANTANDER",null,"COROZAL-SUCRE",null,"ARMERO-TOLIMA",null,"BOLIVAR-VALLE",null,"TARAIRA-VAUPES",null,"SAN-JOSE-DE-OCUNE-VICHADA"]
[null,null,"6",null,null,"A0119 - Otros cultivos transitorios n.c.p.",null,null,null,null,null,"SOCIEDAD DE RESPONSABILIDAD LIMITADA - LTDA",null,"EN ETAPA PREOPERATIVA",null,"BOLIVAR",null,"ACEVEDO-HUILA",null,null,null,"06 EMPRESA ARRENDADORA DE VEHÍCULOS BLINDADOS",null,null,null,null,null,null,"MIRITI-PARANA-AMAZONAS",null,"ANDES-ANTIOQUIA",null,"SARAVENA-ARAUCA",null,"JUAN-DE-ACOSTA-ATLANTICO",null,"USAQUEN-BOGOTA D.C.",null,"BARRANCO-DE-LOBA-BOLIVAR",null,"BETEITIVA-BOYACA",null,"FILADELFIA-CALDAS",null,"EL-PAUJIL-CAQUETA",null,"MONTERREY-CASANARE",null,"CAJIBIO-CAUCA",null,"CHIMICHAGUA-CESAR",null,"BAJO-BAUDO-CHOCO",null,"CHINU-CORDOBA",null,"ARBELAEZ-CUNDINAMARCA",null,"MORICHAL-GUAINIA",null,"SAN-JOSE-DEL-GUAVIARE-GUAVIARE",null,"BARAYA-HUILA",null,"FONSECA-LA GUAJIRA",null,"CIENAGA-MAGDALENA",null,"CUMARAL-META",null,"BELEN-NARINO",null,"CACOTA-NORTE DE SANTANDER",null,"PUERTO-GUZMÁN-PUTUMAYO",null,"FILANDIA-QUINDIO",null,"LA-CELIA-RISARALDA",null,null,null,"BARRANCABERMEJA-SANTANDER",null,"COVEÑAS-SUCRE",null,"ATACO-TOLIMA",null,"BUENAVENTURA-VALLE",null,"YAVARATE-VAUPES",null,"SANTA-RITA-VICHADA"]
[null,null,"7",null,null,"A0121 - Cultivo de frutas tropicales y subtropicales",null,null,null,null,null,"SOCIEDAD EN COMANDITA POR ACCIONES",null,"EN LIQUIDACIÓN",null,"BOYACA",null,"ACHI-BOLIVAR",null,null,null,"07 EMPRESA ASESORA, CONSULTORA E INVESTIGADORA EN VIGILANCIA Y SEGURIDAD PRIVADA",null,null,null,null,null,null,"PUERTO-ALEGRIA-AMAZONAS",null,"ANGELOPOLIS-ANTIOQUIA",null,"TAME-ARAUCA",null,"LURUACO-ATLANTICO",null,"USME-BOGOTA D.C.",null,"CALAMAR-BOLIVAR",null,"BOAVITA-BOYACA",null,"LA-DORADA-CALDAS",null,"FLORENCIA-CAQUETA",null,"NUNCHIA-CASANARE",null,"CALDONO-CAUCA",null,"CHIRIGUANA-CESAR",null,"BELÉN-DE-BAJIRÁ-CHOCO",null,"CIENAGA-DE-ORO-CORDOBA",null,"BELTRAN-CUNDINAMARCA",null,"PANA-PANA-GUAINIA",null,null,null,"CAMPOALEGRE-HUILA",null,"HATONUEVO-LA GUAJIRA",null,"CONCORDIA-MAGDALENA",null,"EL-CALVARIO-META",null,"BUESACO-NARINO",null,"CHINACOTA-NORTE DE SANTANDER",null,"SAN-FRANCISCO-PUTUMAYO",null,"GENOVA-QUINDIO",null,"LA-VIRGINIA-RISARALDA",null,null,null,"BETULIA-SANTANDER",null,"EL-ROBLE-SUCRE",null,"CAJAMARCA-TOLIMA",null,"BUGA-VALLE",null,null,null,"SANTA-ROSALIA-VICHADA"]
[null,null,"8",null,null,"A0122 - Cultivo de plátano y banano",null,null,null,null,null,"SOCIEDAD EN COMANDITA SIMPLE",null,null,null,"CALDAS",null,"AGRADO-HUILA",null,null,null,"08 ESCUELA DE CAPACITACIÓN Y ENTRENAMIENTO EN VIGILANCIA Y SEGURIDAD PRIVADA",null,null,null,null,null,null,"PUERTO-ARICA-AMAZONAS",null,"ANGOSTURA-ANTIOQUIA",null,null,null,"MALAMBO-ATLANTICO",null,null,null,"CANTAGALLO-BOLIVAR",null,"BOYACA-BOYACA",null,"LA-MERCED-CALDAS",null,"LA-MONTANITA-CAQUETA",null,"OROCUE-CASANARE",null,"CALOTO-CAUCA",null,"CURUMANI-CESAR",null,"BOJAYA-CHOCO",null,"COTORRA-CORDOBA",null,"BITUIMA-CUNDINAMARCA",null,"PUERTO-COLOMBIA-GUAINIA",null,null,null,"COLOMBIA-HUILA",null,"LA-JAGUA-DEL-PILAR-LA GUAJIRA",null,"EL-BANCO-MAGDALENA",null,"EL-CASTILLO-META",null,"CHACHAGÜÍ-NARINO",null,"CHITAGA-NORTE DE SANTANDER",null,"SAN-MIGUEL-PUTUMAYO",null,"LA-TEBAIDA-QUINDIO",null,"MARSELLA-RISARALDA",null,null,null,"BOLIVAR-SANTANDER",null,"GALERAS-SUCRE",null,"CARMEN-DE-APICALA-TOLIMA",null,"BUGALAGRANDE-VALLE"]
[null,null,"9",null,null,"A0123 - Cultivo de café",null,null,null,null,null,"SOCIEDAD POR ACCIONES SIMPLIFICADA - SAS",null,null,null,"CAQUETA",null,"AGUA-DE-DIOS-CUNDINAMARCA",null,null,null,null,null,null,null,null,null,null,"PUERTO-NARINO-AMAZONAS",null,"ANORI-ANTIOQUIA",null,null,null,"MANATI-ATLANTICO",null,null,null,"CARMEN-DE-BOLIVAR-BOLIVAR",null,"BRICENO-BOYACA",null,"MANIZALES-CALDAS",null,"MILAN-CAQUETA",null,"PAZ-DE-ARIPORO-CASANARE",null,"CORINTO-CAUCA",null,"EL-COPEY-CESAR",null,"CARMEN-DEL-DARIEN-CHOCO",null,"LA-APARTADA-CORDOBA",null,"BOJACA-CUNDINAMARCA",null,"SAN-FELIPE-GUAINIA",null,null,null,"ELIAS-HUILA",null,"MAICAO-LA GUAJIRA",null,"EL-PINON-MAGDALENA",null,"EL-DORADO-META",null,"COLON-NARINO",null,"CONVENCION-NORTE DE SANTANDER",null,"SANTIAGO-PUTUMAYO",null,"MONTENEGRO-QUINDIO",null,"MISTRATO-RISARALDA",null,null,null,"BUCARAMANGA-SANTANDER",null,"GUARANOA-SUCRE",null,"CASABIANCA-TOLIMA",null,"CAICEDONIA-VALLE"]
[null,null,"0",null,null,"A0124 - Cultivo de caña de azúcar",null,null,null,null,null,null,null,null,null,"CASANARE",null,"AGUACHICA-CESAR",null,null,null,null,null,null,null,null,null,null,"PUERTO-SANTANDER-AMAZONAS",null,"ANTIOQUIA-ANTIOQUIA",null,null,null,"PALMAR-DE-VARELA-ATLANTICO",null,null,null,"CARTAGENA-BOLIVAR",null,"BUENAVISTA-BOYACA",null,"MANZANARES-CALDAS",null,"MORELIA-CAQUETA",null,"PORE-CASANARE",null,"EL-TAMBO-CAUCA",null,"EL-PASO-CESAR",null,"CONDOTO-CHOCO",null,"LORICA-CORDOBA",null,"CABRERA-CUNDINAMARCA",null,null,null,null,null,"GARZON-HUILA",null,"MANAURE-LA GUAJIRA",null,"EL-RETÉN-MAGDALENA",null,"FUENTE-DE-ORO-META",null,"CONSACA-NARINO",null,"CUCUTA-NORTE DE SANTANDER",null,"SIBUNDOY-PUTUMAYO",null,"PIJAO-QUINDIO",null,"PEREIRA-RISARALDA",null,null,null,"CABRERA-SANTANDER",null,"LA-UNION-SUCRE",null,"CHAPARRAL-TOLIMA",null,"CALI-VALLE"]
[null,null,null,null,null,"A0125 - Cultivo de flor de corte",null,null,null,null,null,null,null,null,null,"CAUCA",null,"AGUADA-SANTANDER",null,null,null,null,null,null,null,null,null,null,"TARAPACA-AMAZONAS",null,"ANZA-ANTIOQUIA",null,null,null,"PIOJO-ATLANTICO",null,null,null,"CICUCO-BOLIVAR",null,"BUSBANZA-BOYACA",null,"MARMATO-CALDAS",null,"PUERTO-RICO-CAQUETA",null,"RECETOR-CASANARE",null,"FLORENCIA-CAUCA",null,"GAMARRA-CESAR",null,"CÉRTEGUI-CHOCO",null,"LOS-CORDOBAS-CORDOBA",null,"CACHIPAY-CUNDINAMARCA",null,null,null,null,null,"GIGANTE-HUILA",null,"RIOHACHA-LA GUAJIRA",null,"FUNDACION-MAGDALENA",null,"GRANADA-META",null,"CONTADERO-NARINO",null,"CUCUTILLA-NORTE DE SANTANDER",null,"VALLE-GUAMUEZ-PUTUMAYO",null,"QUIMBAYA-QUINDIO",null,"PUEBLO-RICO-RISARALDA",null,null,null,"CALIFORNIA-SANTANDER",null,"LOS-PALMITOS-SUCRE",null,"COELLO-TOLIMA",null,"CALIMA-VALLE"]
[null,null,null,null,null,"A0126 - Cultivo de palma para aceite (palma africana) y otros frutos oleaginosos",null,null,null,null,null,null,null,null,null,"CESAR",null,"AGUADAS-CALDAS",null,null,null,null,null,null,null,null,null,null,null,null,"APARTADO-ANTIOQUIA",null,null,null,"POLONUEVO-ATLANTICO",null,null,null,"CLEMENCIA-BOLIVAR",null,"CALDAS-BOYACA",null,"MARQUETALIA-CALDAS",null,"SAN-JOSE-DE-FRAGUA-CAQUETA",null,"SABANALARGA-CASANARE",null,"GUACHENE-CAUCA",null,"GONZALEZ-CESAR",null,"EL-CANTÓN-DEL-SAN-PABLO-CHOCO",null,"MOMIL-CORDOBA",null,"CAJICA-CUNDINAMARCA",null,null,null,null,null,"GUADALUPE-HUILA",null,"SAN-JUAN-DEL-CESAR-LA GUAJIRA",null,"GUAMAL-MAGDALENA",null,"GUAMAL-META",null,"CORDOBA-NARINO",null,"DURANIA-NORTE DE SANTANDER",null,"VILLAGARZON-PUTUMAYO",null,"SALENTO-QUINDIO",null,"QUINCHIA-RISARALDA",null,null,null,"CAPITANEJO-SANTANDER",null,"MAJAGUAL-SUCRE",null,"COYAIMA-TOLIMA",null,"CANDELARIA-VALLE"]
[null,null,null,null,null,"A0127 - Cultivo de plantas con las que se preparan bebidas",null,null,null,null,null,null,null,null,null,"CHOCO",null,"AGUAZUL-CASANARE",null,null,null,null,null,null,null,null,null,null,null,null,"ARBOLETES-ANTIOQUIA",null,null,null,"PONEDERA-ATLANTICO",null,null,null,"CORDOBA-BOLIVAR",null,"CAMPOHERMOSO-BOYACA",null,"MARULANDA-CALDAS",null,"SAN-VICENTE-DEL-CAGUAN-CAQUETA",null,"SACAMA-CASANARE",null,"GUAPI-CAUCA",null,"LA-GLORIA-CESAR",null,"EL-CARMEN-CHOCO",null,"MONITOS-CORDOBA",null,"CAPARRAPI-CUNDINAMARCA",null,null,null,null,null,"HOBO-HUILA",null,"URIBIA-LA GUAJIRA",null,"NUEVA-GRANADA-MAGDALENA",null,"LA-MACARENA-META",null,"CUASPUD-NARINO",null,"EL-CARMEN-NORTE DE SANTANDER",null,null,null,null,null,"SANTA-ROSA-DE-CABAL-RISARALDA",null,null,null,"CARCASI-SANTANDER",null,"MORROA-SUCRE",null,"CUNDAY-TOLIMA",null,"CARTAGO-VALLE"]
[null,null,null,null,null,"A0128 - Cultivo de especias y de plantas aromáticas y medicinales",null,null,null,null,null,null,null,null,null,"CORDOBA",null,"AGUSTIN-CODAZZI-CESAR",null,null,null,null,null,null,null,null,null,null,null,null,"ARGELIA-ANTIOQUIA",null,null,null,"PUERTO-COLOMBIA-ATLANTICO",null,null,null,"EL-GUAMO-BOLIVAR",null,"CERINZA-BOYACA",null,"NEIRA-CALDAS",null,"SOLANO-CAQUETA",null,"SAN-LUIS-DE-PALENQUE-CASANARE",null,"INZA-CAUCA",null,"LA-JAGUA-DE-IBIRICO-CESAR",null,"EL-LITORAL-DEL-SAN-JUAN-CHOCO",null,"MONTELIBANO-CORDOBA",null,"CAQUEZA-CUNDINAMARCA",null,null,null,null,null,"IQUIRA-HUILA",null,"URUMITA-LA GUAJIRA",null,"PEDRAZA-MAGDALENA",null,"LEJANIAS-META",null,"CUMBAL-NARINO",null,"EL-TARRA-NORTE-NORTE DE SANTANDER",null,null,null,null,null,"SATUARIO-RISARALDA",null,null,null,"CEPITA-SANTANDER",null,"OVEJAS-SUCRE",null,"DOLORES-TOLIMA",null,"DAGUA-VALLE"]
[null,null,null,null,null,"A0129 - Otros cultivos permanentes n.c.p.",null,null,null,null,null,null,null,null,null,"CUNDINAMARCA",null,"AIPE-HUILA",null,null,null,null,null,null,null,null,null,null,null,null,"ARMENIA-ANTIOQUIA",null,null,null,"REPELON-ATLANTICO",null,null,null,"EL-PEÑÓN-BOLIVAR",null,"CHINAVITA-BOYACA",null,"NORCASIA-CALDAS",null,"SOLITA-CAQUETA",null,"TAMARA-CASANARE",null,"JAMBALO-CAUCA",null,"LA-PAZ-(ROBLES)-CESAR",null,"ITSMINA-CHOCO",null,"MONTERIA-CORDOBA",null,"CARMEN-DE-CARUPA-CUNDINAMARCA",null,null,null,null,null,"ISNOS-HUILA",null,"VILLANUEVA-LA GUAJIRA",null,"PIJIÑO-DEL-CARMEN-MAGDALENA",null,"MAPIRIPÁN-META",null,"CUMBITARA-NARINO",null,"EL-ZULIA-NORTE DE SANTANDER",null,null,null,null,null,null,null,null,null,"CERRITO-SANTANDER",null,"PALMITO-SUCRE",null,"ESPINAL-TOLIMA",null,"EL-AGUILA-VALLE"]
[null,null,null,null,null,"A0130 - Propagación de plantas (actividades de los viveros, excepto viveros forestales)",null,null,null,null,null,null,null,null,null,"GUAINIA",null,"ALBAN-CUNDINAMARCA",null,null,null,null,null,null,null,null,null,null,null,null,"BARBOSA-ANTIOQUIA",null,null,null,"SABANAGRANDE-ATLANTICO",null,null,null,"HATILLO-DE-LOBA-BOLIVAR",null,"CHIQUINQUIRA-BOYACA",null,"PACORA-CALDAS",null,"VALPARAISO-CAQUETA",null,"TAURAMENA-CASANARE",null,"LA-SIERRA-CAUCA",null,"MANAURE-BALCON-DEL-CESAR-CESAR",null,"JURADO-CHOCO",null,"PLANETA-RICA-CORDOBA",null,"CHAGUANI-CUNDINAMARCA",null,null,null,null,null,"LA-ARGENTINA-HUILA",null,null,null,"PIVIJAY-MAGDALENA",null,"MESETAS-META",null,"EL-CHARCO-NARINO",null,"GRAMALOTE-NORTE DE SANTANDER",null,null,null,null,null,null,null,null,null,"CHARALA-SANTANDER",null,"SAMPUES-SUCRE",null,"FALAN-TOLIMA",null,"EL-CAIRO-VALLE"]
[null,null,null,null,null,"A0141 - Cría de ganado bovino y bufalino",null,null,null,null,null,null,null,null,null,"GUAVIARE",null,"ALBAN-NARINO",null,null,null,null,null,null,null,null,null,null,null,null,"BELLO-ANTIOQUIA",null,null,null,"SABANALARGA-ATLANTICO",null,null,null,"MAGANGUE-BOLIVAR",null,"CHIQUIZA-BOYACA",null,"PALESTINA-CALDAS",null,null,null,"TRINIDAD-CASANARE",null,"LA-VEGA-CAUCA",null,"PAILITAS-CESAR",null,"LLORO-CHOCO",null,"PUEBLO-NUEVO-CORDOBA",null,"CHIA-CUNDINAMARCA",null,null,null,null,null,"LA-PLATA-HUILA",null,null,null,"PLATO-MAGDALENA",null,"PUERTO-CONCORDIA-META",null,"EL-PEÑOL-NARINO",null,"HACARI-NORTE DE SANTANDER",null,null,null,null,null,null,null,null,null,"CHARTA-SANTANDER",null,"SAN-BENITO-ABAD-SUCRE",null,"FLANDES-TOLIMA",null,"EL-CERRITO-VALLE"]
[null,null,null,null,null,"A0142 - Cría de caballos y otros equinos",null,null,null,null,null,null,null,null,null,"HUILA",null,"ALBANIA-CAQUETA",null,null,null,null,null,null,null,null,null,null,null,null,"BELMIRA-ANTIOQUIA",null,null,null,"SANTA-LUCIA-ATLANTICO",null,null,null,"MAHATES-BOLIVAR",null,"CHISCAS-BOYACA",null,"PENSILVANIA-CALDAS",null,null,null,"VILLANUEVA-CASANARE",null,"LOPEZ-(MICAY)-CAUCA",null,"PELAYA-CESAR",null,"MEDIO-ATRATO-CHOCO",null,"PUERTO-ESCONDIDO-CORDOBA",null,"CHIPAQUE-CUNDINAMARCA",null,null,null,null,null,"NATAGA-HUILA",null,null,null,"PUEBLOVIEJO-MAGDALENA",null,"PUERTO-GAITAN-META",null,"EL-ROSARIO-NARINO",null,"HERRAN-NORTE DE SANTANDER",null,null,null,null,null,null,null,null,null,"CHIMA-SANTANDER",null,"SAN-JUAN-DE-BETULIA-SUCRE",null,"FRESNO-TOLIMA",null,"EL-DOVIO-VALLE"]
[null,null,null,null,null,"A0143 - Cría de ovejas y cabras",null,null,null,null,null,null,null,null,null,"LA_GUAJIRA",null,"ALBANIA-LA GUAJIRA",null,null,null,null,null,null,null,null,null,null,null,null,"BETANIA-ANTIOQUIA",null,null,null,"SANTO-TOMAS-ATLANTICO",null,null,null,"MARGARITA-BOLIVAR",null,"CHITA-BOYACA",null,"RIOSUCIO-CALDAS",null,null,null,"YOPAL-CASANARE",null,"MERCADERES-CAUCA",null,"PUEBLO-BELLO-CESAR",null,"MEDIO-BAUDÓ-CHOCO",null,"PUERTO-LIBERTADOR-CORDOBA",null,"CHOACHI-CUNDINAMARCA",null,null,null,null,null,"NEIVA-HUILA",null,null,null,"REMOLINO-MAGDALENA",null,"PUERTO-LLERAS-META",null,"EL-TABLON-NARINO",null,"LA-ESPERANZA-NORTE DE SANTANDER",null,null,null,null,null,null,null,null,null,"CHIPATA-SANTANDER",null,"SAN-MARCOS-SUCRE",null,"GUAMO-TOLIMA",null,"FLORIDA-VALLE"]
[null,null,null,null,null,"A0144 - Cría de ganado porcino",null,null,null,null,null,null,null,null,null,"MAGDALENA",null,"ALBANIA-SANTANDER",null,null,null,null,null,null,null,null,null,null,null,null,"BETULIA-ANTIOQUIA",null,null,null,"SOLEDAD-ATLANTICO",null,null,null,"MARIA-LA-BAJA-BOLIVAR",null,"CHITARAQUE-BOYACA",null,"RISARALDA-CALDAS",null,null,null,null,null,"MIRANDA-CAUCA",null,"RIO-DE-ORO-CESAR",null,"MEDIO-SAN-JUAN-CHOCO",null,"PURISIMA-CORDOBA",null,"CHOCONTA-CUNDINAMARCA",null,null,null,null,null,"OPORAPA-HUILA",null,null,null,"SABANAS-DE-SAN-ANGEL-MAGDALENA",null,"PUERTO-LOPEZ-META",null,"EL-TAMBO-NARINO",null,"LA-PLAYA-NORTE DE SANTANDER",null,null,null,null,null,null,null,null,null,"CIMITARRA-SANTANDER",null,"SAN-ONOFRE-SUCRE",null,"HERVEO-TOLIMA",null,"GINEBRA-VALLE"]
[null,null,null,null,null,"A0145 - Cría de aves de corral",null,null,null,null,null,null,null,null,null,"META",null,"ALCALA-VALLE",null,null,null,null,null,null,null,null,null,null,null,null,"BOLIVAR-ANTIOQUIA",null,null,null,"SUAN-ATLANTICO",null,null,null,"MOMPOS-BOLIVAR",null,"CHIVATA-BOYACA",null,"SALAMINA-CALDAS",null,null,null,null,null,"MORALES-CAUCA",null,"SAN-ALBERTO-CESAR",null,"NOVITA-CHOCO",null,"SAHAGUN-CORDOBA",null,"COGUA-CUNDINAMARCA",null,null,null,null,null,"PAICOL-HUILA",null,null,null,"SALAMINA-MAGDALENA",null,"PUERTO-RICO-META",null,"FRANCISCO-PIZARRO-NARINO",null,"LABATECA-NORTE DE SANTANDER",null,null,null,null,null,null,null,null,null,"CONCEPCION-SANTANDER",null,"SAN-PEDRO-SUCRE",null,"HONDA-TOLIMA",null,"GUACARI-VALLE"]
[null,null,null,null,null,"A0149 - Cría de otros animales n.c.p.",null,null,null,null,null,null,null,null,null,"NARINO",null,"ALDANA-NARINO",null,null,null,null,null,null,null,null,null,null,null,null,"BRICENO-ANTIOQUIA",null,null,null,"TUBARA-ATLANTICO",null,null,null,"MONTECRISTO-BOLIVAR",null,"CHIVOR-BOYACA",null,"SAMANA-CALDAS",null,null,null,null,null,"PADILLA-CAUCA",null,"SAN-DIEGO-CESAR",null,"NUQUI-CHOCO",null,"SAN-ANDRES-DE-SOTAVENTO-CORDOBA",null,"COTA-CUNDINAMARCA",null,null,null,null,null,"PALERMO-HUILA",null,null,null,"SAN-SEBASTIAN-DE-BUENAVISMAGDALENA",null,"RESTREPO-META",null,"FUNES-NARINO",null,"LOS-PATIOS-NORTE DE SANTANDER",null,null,null,null,null,null,null,null,null,"CONFINES-SANTANDER",null,"SINCE-SUCRE",null,"IBAGUE-TOLIMA",null,"JAMUNDI-VALLE"]
[null,null,null,null,null,"A0150 - Explotación mixta (agrícola y pecuaria)",null,null,null,null,null,null,null,null,null,"NORTE_DE_SANTANDER",null,"ALEJANDRIA-ANTIOQUIA",null,null,null,null,null,null,null,null,null,null,null,null,"BURITICA-ANTIOQUIA",null,null,null,"USIACURI-ATLANTICO",null,null,null,"MORALES-BOLIVAR",null,"CIENAGA-BOYACA",null,"SAN-JOSÉ-CALDAS",null,null,null,null,null,"PAEZ-CAUCA",null,"SAN-MARTIN-CESAR",null,"QUIBDO-CHOCO",null,"SAN-ANTERO-CORDOBA",null,"CUCUNUBA-CUNDINAMARCA",null,null,null,null,null,"PALESTINA-HUILA",null,null,null,"SAN-ZENON-MAGDALENA",null,"SAN-CARLOS-DE-GUAR0A-META",null,"GUACHUCAL-NARINO",null,"LOURDES-NORTE DE SANTANDER",null,null,null,null,null,null,null,null,null,"CONTRATACION-SANTANDER",null,"SINCELEJO-SUCRE",null,"ICONONZO-TOLIMA",null,"LA-CUMBRE-VALLE"]
[null,null,null,null,null,"A0161 - Actividades de apoyo a la agricultura",null,null,null,null,null,null,null,null,null,"PUTUMAYO",null,"ALGARROBO-MAGDALENA",null,null,null,null,null,null,null,null,null,null,null,null,"CACERES-ANTIOQUIA",null,null,null,null,null,null,null,"NOROSI-BOLIVAR",null,"COMBITA-BOYACA",null,"SUPIA-CALDAS",null,null,null,null,null,"PATIA(EL-BORDO)-CAUCA",null,"TAMALAMEQUE-CESAR",null,"RIOSUCIO-CHOCO",null,"SAN-BERNARDO-DEL-VIENTO-CORDOBA",null,"EL-COLEGIO-CUNDINAMARCA",null,null,null,null,null,"PITAL-HUILA",null,null,null,"SANTA-ANA-MAGDALENA",null,"SAN-JUAN-DE-ARAMA-META",null,"GUAITARILLA-NARINO",null,"MUTISCUA-NORTE DE SANTANDER",null,null,null,null,null,null,null,null,null,"COROMORO-SANTANDER",null,"SUCRE-SUCRE",null,"LERIDA-TOLIMA",null,"LA-UNION-VALLE"]
[null,null,null,null,null,"A0162 - Actividades de apoyo a la ganadería",null,null,null,null,null,null,null,null,null,"QUINDIO",null,"ALGECIRAS-HUILA",null,null,null,null,null,null,null,null,null,null,null,null,"CAICEDO-ANTIOQUIA",null,null,null,null,null,null,null,"PINILLOS-BOLIVAR",null,"COPER-BOYACA",null,"VICTORIA-CALDAS",null,null,null,null,null,"PIAMONTE-CAUCA",null,"VALLEDUPAR-CESAR",null,"RÍO-IRO-CHOCO",null,"SAN-CARLOS-CORDOBA",null,"EL-PENON-CUNDINAMARCA",null,null,null,null,null,"PITALITO-HUILA",null,null,null,"SANTA-BÁRBARA-DE-PINTO-MAGDALENA",null,"SAN-JUANITO-META",null,"GUALMATAN-NARINO",null,"OCANA-NORTE DE SANTANDER",null,null,null,null,null,null,null,null,null,"CURITI-SANTANDER",null,"TOLU-SUCRE",null,"LIBANO-TOLIMA",null,"LA-VICTORIA-VALLE"]
[null,null,null,null,null,"A0163 - Actividades posteriores a la cosecha",null,null,null,null,null,null,null,null,null,"RISARALDA",null,"ALMAGUER-CAUCA",null,null,null,null,null,null,null,null,null,null,null,null,"CALDAS-ANTIOQUIA",null,null,null,null,null,null,null,"REGIDOR-BOLIVAR",null,"CORRALES-BOYACA",null,"VILLAMARIA-CALDAS",null,null,null,null,null,"PIENDAMO-CAUCA",null,null,null,"RÍO-QUITO-CHOCO",null,"SAN-JOSE-DE-URE-CORDOBA",null,"EL-ROSAL-CUNDINAMARCA",null,null,null,null,null,"RIVERA-HUILA",null,null,null,"SANTA-MARTA-MAGDALENA",null,"SAN-MARTIN-META",null,"ILES-NARINO",null,"PAMPLONA-NORTE DE SANTANDER",null,null,null,null,null,null,null,null,null,"EL-CARMEN-SANTANDER",null,"TOLUVIEJO-SUCRE",null,"MARIQUITA-TOLIMA",null,"OBANDO-VALLE"]
[null,null,null,null,null,"A0164 - Tratamiento de semillas para propagación",null,null,null,null,null,null,null,null,null,"SAN_ANDRES_Y_PROVIDENCIA",null,"ALMEIDA-BOYACA",null,null,null,null,null,null,null,null,null,null,null,null,"CAMPAMENTO-ANTIOQUIA",null,null,null,null,null,null,null,"RIO-VIEJO-BOLIVAR",null,"COVARACHIA-BOYACA",null,"VITERBO-CALDAS",null,null,null,null,null,"POPAYAN-CAUCA",null,null,null,"SAN-JOSE-DEL-PALMAR-CHOCO",null,"SAN-PELAYO-CORDOBA",null,"FACATATIVA-CUNDINAMARCA",null,null,null,null,null,"SALADOBLANCO-HUILA",null,null,null,"SITIONUEVO-MAGDALENA",null,"URIBE-META",null,"IMUES-NARINO",null,"PAMPLONITA-NORTE DE SANTANDER",null,null,null,null,null,null,null,null,null,"EL-GUACAMAYO-SANTANDER",null,null,null,"MELGAR-TOLIMA",null,"PALMIRA-VALLE"]
[null,null,null,null,null,"A0170 - Caza ordinaria y mediante trampas y actividades de servicios conexas",null,null,null,null,null,null,null,null,null,"SANTANDER",null,"ALPUJARRA-TOLIMA",null,null,null,null,null,null,null,null,null,null,null,null,"CANASGORDAS-ANTIOQUIA",null,null,null,null,null,null,null,"SAN-CRISTÓBAL-BOLIVAR",null,"CUBARA-BOYACA",null,null,null,null,null,null,null,"PUERTO-TEJADA-CAUCA",null,null,null,"SIPI-CHOCO",null,"TIERRALTA-CORDOBA",null,"FOMEQUE-CUNDINAMARCA",null,null,null,null,null,"SAN-AGUSTIN-HUILA",null,null,null,"TENERIFE-MAGDALENA",null,"VILLAVICENCIO-META",null,"IPIALES-NARINO",null,"PUERTO-SANTANDER-NORTE DE SANTANDER",null,null,null,null,null,null,null,null,null,"EL-PEÑON-SANTANDER",null,null,null,"MURILLO-TOLIMA",null,"PRADERA-VALLE"]
[null,null,null,null,null,"A0210 - Silvicultura y otras actividades forestales",null,null,null,null,null,null,null,null,null,"SUCRE",null,"ALTAMIRA-HUILA",null,null,null,null,null,null,null,null,null,null,null,null,"CARACOLI-ANTIOQUIA",null,null,null,null,null,null,null,"SAN-ESTANISLAO-BOLIVAR",null,"CUCAITA-BOYACA",null,null,null,null,null,null,null,"PURACE-CAUCA",null,null,null,"TADO-CHOCO",null,"TUCHIN-CORDOBA",null,"FOSCA-CUNDINAMARCA",null,null,null,null,null,"SANTAMARIA-HUILA",null,null,null,"ZAPAYÁN-MAGDALENA",null,"VISTA-HERMOSA-META",null,"LA-CRUZ-NARINO",null,"RAGONVALIA-NORTE DE SANTANDER",null,null,null,null,null,null,null,null,null,"EL-PLAYON-SANTANDER",null,null,null,"NATAGAIMA-TOLIMA",null,"RESTREPO-VALLE"]
[null,null,null,null,null,"A0220 - Extracción de madera",null,null,null,null,null,null,null,null,null,"TOLIMA",null,"ALTO-BAUDO-CHOCO",null,null,null,null,null,null,null,null,null,null,null,null,"CARAMANTA-ANTIOQUIA",null,null,null,null,null,null,null,"SAN-FERNANDO-BOLIVAR",null,"CUITIVA-BOYACA",null,null,null,null,null,null,null,"ROSAS-CAUCA",null,null,null,"UNGUIA-CHOCO",null,"VALENCIA-CORDOBA",null,"FUNZA-CUNDINAMARCA",null,null,null,null,null,"SUAZA-HUILA",null,null,null,"ZONA-BANANERA-MAGDALENA",null,null,null,"LA-FLORIDA-NARINO",null,"SALAZAR-NORTE DE SANTANDER",null,null,null,null,null,null,null,null,null,"ENCINO-SANTANDER",null,null,null,"ORTEGA-TOLIMA",null,"RIOFRIO-VALLE"]
[null,null,null,null,null,"A0230 - Recolección de productos forestales diferentes a la madera",null,null,null,null,null,null,null,null,null,"VALLE",null,"ALTOS-DEL-ROSARIO-BOLIVAR",null,null,null,null,null,null,null,null,null,null,null,null,"CAREPA-ANTIOQUIA",null,null,null,null,null,null,null,"SAN-JACINTO-BOLIVAR",null,"DUITAMA-BOYACA",null,null,null,null,null,null,null,"SAN-SEBASTIAN-CAUCA",null,null,null,"UNIÓN-PANAMERICANA-CHOCO",null,null,null,"FUQUENE-CUNDINAMARCA",null,null,null,null,null,"TARQUI-HUILA",null,null,null,null,null,null,null,"LA-LLANADA-NARINO",null,"SAN-CALIXTO-NORTE DE SANTANDER",null,null,null,null,null,null,null,null,null,"ENCISO-SANTANDER",null,null,null,"PALOCABILDO-TOLIMA",null,"ROLDANILLO-VALLE"]
[null,null,null,null,null,"A0240 - Servicios de apoyo a la silvicultura",null,null,null,null,null,null,null,null,null,"VAUPES",null,"ALVARADO-TOLIMA",null,null,null,null,null,null,null,null,null,null,null,null,"CARMEN-DE-VIBORAL-ANTIOQUIA",null,null,null,null,null,null,null,"SAN-JACINTO-DEL-CAUCA-BOLIVAR",null,"EL-COCUY-BOYACA",null,null,null,null,null,null,null,"SANTA-ROSA-CAUCA",null,null,null,null,null,null,null,"FUSAGASUGA-CUNDINAMARCA",null,null,null,null,null,"TELLO-HUILA",null,null,null,null,null,null,null,"LA-TOLA-NARINO",null,"SAN-CAYETANO-NORTE DE SANTANDER",null,null,null,null,null,null,null,null,null,"FLORIAN-SANTANDER",null,null,null,"PIEDRAS-TOLIMA",null,"SAN-PEDRO-VALLE"]
[null,null,null,null,null,"A0311 - Pesca marítima",null,null,null,null,null,null,null,null,null,"VICHADA",null,"AMAGA-ANTIOQUIA",null,null,null,null,null,null,null,null,null,null,null,null,"CAROLINA-ANTIOQUIA",null,null,null,null,null,null,null,"SAN-JUAN-NEPOMUCENO-BOLIVAR",null,"EL-ESPINO-BOYACA",null,null,null,null,null,null,null,"SANTANDER-DE-QUILICHAO-CAUCA",null,null,null,null,null,null,null,"GACHALA-CUNDINAMARCA",null,null,null,null,null,"TERUEL-HUILA",null,null,null,null,null,null,null,"LA-UNION-NARINO",null,"SANTIAGO-NORTE DE SANTANDER",null,null,null,null,null,null,null,null,null,"FLORIDABLANCA-SANTANDER",null,null,null,"PLANADAS-TOLIMA",null,"SEVILLA-VALLE"]
[null,null,null,null,null,"A0312 - Pesca de agua dulce",null,null,null,null,null,null,null,null,null,null,null,"AMALFI-ANTIOQUIA",null,null,null,null,null,null,null,null,null,null,null,null,"CAUCASIA-ANTIOQUIA",null,null,null,null,null,null,null,"SAN-MARTIN-DE-LOBA-BOLIVAR",null,"FIRAVITOBA-BOYACA",null,null,null,null,null,null,null,"SILVIA-CAUCA",null,null,null,null,null,null,null,"GACHANCIPA-CUNDINAMARCA",null,null,null,null,null,"TESALIA-HUILA",null,null,null,null,null,null,null,"LEIVA-NARINO",null,"SARDINATA-NORTE DE SANTANDER",null,null,null,null,null,null,null,null,null,"GALAN-SANTANDER",null,null,null,"PRADO-TOLIMA",null,"TORO-VALLE"]
[null,null,null,null,null,"A0321 - Acuicultura marítima",null,null,null,null,null,null,null,null,null,null,null,"AMBALEMA-TOLIMA",null,null,null,null,null,null,null,null,null,null,null,null,"CHIGORODO-ANTIOQUIA",null,null,null,null,null,null,null,"SAN-PABLO-BOLIVAR",null,"FLORESTA-BOYACA",null,null,null,null,null,null,null,"SOTARA-CAUCA",null,null,null,null,null,null,null,"GACHETA-CUNDINAMARCA",null,null,null,null,null,"TIMANA-HUILA",null,null,null,null,null,null,null,"LINARES-NARINO",null,"SILOS-NORTE DE SANTANDER",null,null,null,null,null,null,null,null,null,"GAMBITA-SANTANDER",null,null,null,"PURIFICACION-TOLIMA",null,"TRUJILLO-VALLE"]
[null,null,null,null,null,"A0322 - Acuicultura de agua dulce",null,null,null,null,null,null,null,null,null,null,null,"ANAPOIMA-CUNDINAMARCA",null,null,null,null,null,null,null,null,null,null,null,null,"CISNEROS-ANTIOQUIA",null,null,null,null,null,null,null,"SANTA-CATALINA-BOLIVAR",null,"GACHANTIVA-BOYACA",null,null,null,null,null,null,null,"SUCRE-CAUCA",null,null,null,null,null,null,null,"GAMA-CUNDINAMARCA",null,null,null,null,null,"VILLAVIEJA-HUILA",null,null,null,null,null,null,null,"LOS-ANDES-NARINO",null,"TEORAMA-NORTE DE SANTANDER",null,null,null,null,null,null,null,null,null,"GIRON-SANTANDER",null,null,null,"RIOBLANCO-TOLIMA",null,"TULUA-VALLE"]
[null,null,null,null,null,"B0510 - Extracción de hulla (carbón de piedra)",null,null,null,null,null,null,null,null,null,null,null,"ANCUYA-NARINO",null,null,null,null,null,null,null,null,null,null,null,null,"COCORNA-ANTIOQUIA",null,null,null,null,null,null,null,"SANTA-ROSA-BOLIVAR",null,"GAMEZA-BOYACA",null,null,null,null,null,null,null,"SUÁREZ-CAUCA",null,null,null,null,null,null,null,"GIRARDOT-CUNDINAMARCA",null,null,null,null,null,"YAGUARA-HUILA",null,null,null,null,null,null,null,"MAGUI-NARINO",null,"TIBU-NORTE DE SANTANDER",null,null,null,null,null,null,null,null,null,"GUACA-SANTANDER",null,null,null,"RONCESVALLES-TOLIMA",null,"ULLOA-VALLE"]
[null,null,null,null,null,"B0520 - Extracción de carbón lignito",null,null,null,null,null,null,null,null,null,null,null,"ANDALUCIA-VALLE",null,null,null,null,null,null,null,null,null,null,null,null,"CONCEPCION-ANTIOQUIA",null,null,null,null,null,null,null,"SANTA-ROSA-DEL-SUR-BOLIVAR",null,"GARAGOA-BOYACA",null,null,null,null,null,null,null,"TIMBIO-CAUCA",null,null,null,null,null,null,null,"GRANADA-CUNDINAMARCA",null,null,null,null,null,null,null,null,null,null,null,null,null,"MALLAMA-NARINO",null,"TOLEDO-NORTE DE SANTANDER",null,null,null,null,null,null,null,null,null,"GUADALUPE-SANTANDER",null,null,null,"ROVIRA-TOLIMA",null,"VERSALLES-VALLE"]
[null,null,null,null,null,"B0610 - Extracción de petróleo crudo",null,null,null,null,null,null,null,null,null,null,null,"ANDES-ANTIOQUIA",null,null,null,null,null,null,null,null,null,null,null,null,"CONCORDIA-ANTIOQUIA",null,null,null,null,null,null,null,"SIMITI-BOLIVAR",null,"GUACAMAYAS-BOYACA",null,null,null,null,null,null,null,"TIMBIQUI-CAUCA",null,null,null,null,null,null,null,"GUACHETA-CUNDINAMARCA",null,null,null,null,null,null,null,null,null,null,null,null,null,"MOSQUERA-NARINO",null,"VILLA-CARO-NORTE DE SANTANDER",null,null,null,null,null,null,null,null,null,"GUAPOTA-SANTANDER",null,null,null,"SALDANA-TOLIMA",null,"VIJES-VALLE"]
[null,null,null,null,null,"B0620 - Extracción de gas natural",null,null,null,null,null,null,null,null,null,null,null,"ANGELOPOLIS-ANTIOQUIA",null,null,null,null,null,null,null,null,null,null,null,null,"COPACABANA-ANTIOQUIA",null,null,null,null,null,null,null,"SOPLAVIENTO-BOLIVAR",null,"GUATEQUE-BOYACA",null,null,null,null,null,null,null,"TORIBIO-CAUCA",null,null,null,null,null,null,null,"GUADUAS-CUNDINAMARCA",null,null,null,null,null,null,null,null,null,null,null,null,null,"NARIÑO-NARINO",null,"VILLA-ROSARIO-NORTE DE SANTANDER",null,null,null,null,null,null,null,null,null,"GUAVATA-SANTANDER",null,null,null,"SAN-ANTONIO-TOLIMA",null,"YOTOCO-VALLE"]
[null,null,null,null,null,"B0710 - Extracción de minerales de hierro",null,null,null,null,null,null,null,null,null,null,null,"ANGOSTURA-ANTIOQUIA",null,null,null,null,null,null,null,null,null,null,null,null,"DABEIBA-ANTIOQUIA",null,null,null,null,null,null,null,"TALAIGUA-NUEVO-BOLIVAR",null,"GUAYATA-BOYACA",null,null,null,null,null,null,null,"TOTORO-CAUCA",null,null,null,null,null,null,null,"GUASCA-CUNDINAMARCA",null,null,null,null,null,null,null,null,null,null,null,null,null,"OLAYA-HERRERA-NARINO",null,null,null,null,null,null,null,null,null,null,null,"GUEPSA-SANTANDER",null,null,null,"SAN-LUIS-TOLIMA",null,"YUMBO-VALLE"]
[null,null,null,null,null,"B0721 - Extracción de minerales de uranio y de torio",null,null,null,null,null,null,null,null,null,null,null,"ANOLAIMA-CUNDINAMARCA",null,null,null,null,null,null,null,null,null,null,null,null,"DON-MATIAS-ANTIOQUIA",null,null,null,null,null,null,null,"TIQUISIO-BOLIVAR",null,"GUICAN-BOYACA",null,null,null,null,null,null,null,"VILLA-RICA-CAUCA",null,null,null,null,null,null,null,"GUATAQUI-CUNDINAMARCA",null,null,null,null,null,null,null,null,null,null,null,null,null,"OSPINA-NARINO",null,null,null,null,null,null,null,null,null,null,null,"HATO-SANTANDER",null,null,null,"SANTA-ISABEL-TOLIMA",null,"ZARZAL-VALLE"]
[null,null,null,null,null,"B0722 - Extracción de oro y otros metales preciosos",null,null,null,null,null,null,null,null,null,null,null,"ANORI-ANTIOQUIA",null,null,null,null,null,null,null,null,null,null,null,null,"EBEJICO-ANTIOQUIA",null,null,null,null,null,null,null,"TURBACO-BOLIVAR",null,"IZA-BOYACA",null,null,null,null,null,null,null,null,null,null,null,null,null,null,null,"GUATAVITA-CUNDINAMARCA",null,null,null,null,null,null,null,null,null,null,null,null,null,"PASTO-NARINO",null,null,null,null,null,null,null,null,null,null,null,"JESUS-MARIA-SANTANDER",null,null,null,"SUAREZ-TOLIMA"]
[null,null,null,null,null,"B0723 - Extracción de minerales de níquel",null,null,null,null,null,null,null,null,null,null,null,"ANSERMA-CALDAS",null,null,null,null,null,null,null,null,null,null,null,null,"EL-BAGRE-ANTIOQUIA",null,null,null,null,null,null,null,"TURBANA-BOLIVAR",null,"JENESANO-BOYACA",null,null,null,null,null,null,null,null,null,null,null,null,null,null,null,"GUAYABAL-DE-SIQUIMA-CUNDINAMARCA",null,null,null,null,null,null,null,null,null,null,null,null,null,"POLICARPA-NARINO",null,null,null,null,null,null,null,null,null,null,null,"JORDAN-SANTANDER",null,null,null,"VALLE-SAN-JUAN-TOLIMA"]
[null,null,null,null,null,"B0729 - Extracción de otros minerales metalíferos no ferrosos n.c.p.",null,null,null,null,null,null,null,null,null,null,null,"ANSERMANUEVO-VALLE",null,null,null,null,null,null,null,null,null,null,null,null,"ENTRERRIOS-ANTIOQUIA",null,null,null,null,null,null,null,"VILLANUEVA-BOLIVAR",null,"JERICO-BOYACA",null,null,null,null,null,null,null,null,null,null,null,null,null,null,null,"GUAYABETAL-CUNDINAMARCA",null,null,null,null,null,null,null,null,null,null,null,null,null,"POTOSI-NARINO",null,null,null,null,null,null,null,null,null,null,null,"LA-BELLEZA-SANTANDER",null,null,null,"VENADILLO-TOLIMA"]
[null,null,null,null,null,"B0811 - Extracción de piedra, arena, arcillas comunes, yeso y anhidrita",null,null,null,null,null,null,null,null,null,null,null,"ANTIOQUIA-ANTIOQUIA",null,null,null,null,null,null,null,null,null,null,null,null,"ENVIGADO-ANTIOQUIA",null,null,null,null,null,null,null,"ZAMBRANO-BOLIVAR",null,"LA-CAPILLA-BOYACA",null,null,null,null,null,null,null,null,null,null,null,null,null,null,null,"GUTIERREZ-CUNDINAMARCA",null,null,null,null,null,null,null,null,null,null,null,null,null,"PROVIDENCIA-NARINO",null,null,null,null,null,null,null,null,null,null,null,"LA-PAZ-SANTANDER",null,null,null,"VILLAHERMOSA-TOLIMA"]
[null,null,null,null,null,"B0812 - Extracción de arcillas de uso industrial, caliza, caolín y bentonitas",null,null,null,null,null,null,null,null,null,null,null,"ANZA-ANTIOQUIA",null,null,null,null,null,null,null,null,null,null,null,null,"FREDONIA-ANTIOQUIA",null,null,null,null,null,null,null,null,null,"LA-UVITA-BOYACA",null,null,null,null,null,null,null,null,null,null,null,null,null,null,null,"JERUSALEN-CUNDINAMARCA",null,null,null,null,null,null,null,null,null,null,null,null,null,"PUERRES-NARINO",null,null,null,null,null,null,null,null,null,null,null,"LANDAZURI-SANTANDER",null,null,null,"VILLARRICA-TOLIMA"]
[null,null,null,null,null,"B0820 - Extracción de esmeraldas, piedras preciosas y semipreciosas",null,null,null,null,null,null,null,null,null,null,null,"ANZOATEGUI-TOLIMA",null,null,null,null,null,null,null,null,null,null,null,null,"FRONTINO-ANTIOQUIA",null,null,null,null,null,null,null,null,null,"LA-VICTORIA-BOYACA",null,null,null,null,null,null,null,null,null,null,null,null,null,null,null,"JUNIN-CUNDINAMARCA",null,null,null,null,null,null,null,null,null,null,null,null,null,"PUPIALES-NARINO",null,null,null,null,null,null,null,null,null,null,null,"LEBRIJA-SANTANDER"]
[null,null,null,null,null,"B0891 - Extracción de minerales para la fabricación de abonos y productos químicos",null,null,null,null,null,null,null,null,null,null,null,"APARTADO-ANTIOQUIA",null,null,null,null,null,null,null,null,null,null,null,null,"GIRALDO-ANTIOQUIA",null,null,null,null,null,null,null,null,null,"LABRANZAGRANDE-BOYACA",null,null,null,null,null,null,null,null,null,null,null,null,null,null,null,"LA-CALERA-CUNDINAMARCA",null,null,null,null,null,null,null,null,null,null,null,null,null,"RICAURTE-NARINO",null,null,null,null,null,null,null,null,null,null,null,"LOS-SANTOS-SANTANDER"]
[null,null,null,null,null,"B0892 - Extracción de halita (sal)",null,null,null,null,null,null,null,null,null,null,null,"APIA-RISARALDA",null,null,null,null,null,null,null,null,null,null,null,null,"GIRARDOTA-ANTIOQUIA",null,null,null,null,null,null,null,null,null,"MACANAL-BOYACA",null,null,null,null,null,null,null,null,null,null,null,null,null,null,null,"LA-MESA-CUNDINAMARCA",null,null,null,null,null,null,null,null,null,null,null,null,null,"ROBERTO-PAYAN-NARINO",null,null,null,null,null,null,null,null,null,null,null,"MACARAVITA-SANTANDER"]
[null,null,null,null,null,"B0899 - Extracción de otros minerales no metálicos n.c.p.",null,null,null,null,null,null,null,null,null,null,null,"APULO-CUNDINAMARCA",null,null,null,null,null,null,null,null,null,null,null,null,"GOMEZ-PLATA-ANTIOQUIA",null,null,null,null,null,null,null,null,null,"MARIPI-BOYACA",null,null,null,null,null,null,null,null,null,null,null,null,null,null,null,"LA-PALMA-CUNDINAMARCA",null,null,null,null,null,null,null,null,null,null,null,null,null,"SAMANIEGO-NARINO",null,null,null,null,null,null,null,null,null,null,null,"MALAGA-SANTANDER"]
[null,null,null,null,null,"B0910 - Actividades de apoyo para la extracción de petróleo y de gas natural",null,null,null,null,null,null,null,null,null,null,null,"AQUITANIA-BOYACA",null,null,null,null,null,null,null,null,null,null,null,null,"GRANADA-ANTIOQUIA",null,null,null,null,null,null,null,null,null,"MIRAFLORES-BOYACA",null,null,null,null,null,null,null,null,null,null,null,null,null,null,null,"LA-PENA-CUNDINAMARCA",null,null,null,null,null,null,null,null,null,null,null,null,null,"SAN-BERNARDO-NARINO",null,null,null,null,null,null,null,null,null,null,null,"MATANZA-SANTANDER"]
[null,null,null,null,null,"B0990 - Actividades de apoyo para otras actividades de explotación de minas y canteras",null,null,null,null,null,null,null,null,null,null,null,"ARACATACA-MAGDALENA",null,null,null,null,null,null,null,null,null,null,null,null,"GUADALUPE-ANTIOQUIA",null,null,null,null,null,null,null,null,null,"MONGUA-BOYACA",null,null,null,null,null,null,null,null,null,null,null,null,null,null,null,"LA-VEGA-CUNDINAMARCA",null,null,null,null,null,null,null,null,null,null,null,null,null,"SAN-LORENZO-NARINO",null,null,null,null,null,null,null,null,null,null,null,"MOGOTES-SANTANDER"]
[null,null,null,null,null,"C1011 - Procesamiento y conservación de carne y productos cárnicos",null,null,null,null,null,null,null,null,null,null,null,"ARANZAZU-CALDAS",null,null,null,null,null,null,null,null,null,null,null,null,"GUARNE-ANTIOQUIA",null,null,null,null,null,null,null,null,null,"MONGUI-BOYACA",null,null,null,null,null,null,null,null,null,null,null,null,null,null,null,"LENGUAZAQUE-CUNDINAMARCA",null,null,null,null,null,null,null,null,null,null,null,null,null,"SAN-PABLO-NARINO",null,null,null,null,null,null,null,null,null,null,null,"MOLAGAVITA-SANTANDER"]
[null,null,null,null,null,"C1012 - Procesamiento y conservación de pescados, crustáceos y moluscos",null,null,null,null,null,null,null,null,null,null,null,"ARATOCA-SANTANDER",null,null,null,null,null,null,null,null,null,null,null,null,"GUATAPE-ANTIOQUIA",null,null,null,null,null,null,null,null,null,"MONIQUIRA-BOYACA",null,null,null,null,null,null,null,null,null,null,null,null,null,null,null,"MACHETA-CUNDINAMARCA",null,null,null,null,null,null,null,null,null,null,null,null,null,"SAN-PEDRO-DE-CARTAGO-NARINO",null,null,null,null,null,null,null,null,null,null,null,"OCAMONTE-SANTANDER"]
[null,null,null,null,null,"C1020 - Procesamiento y conservación de frutas, legumbres, hortalizas y tubérculos",null,null,null,null,null,null,null,null,null,null,null,"ARAUCA-ARAUCA",null,null,null,null,null,null,null,null,null,null,null,null,"HELICONIA-ANTIOQUIA",null,null,null,null,null,null,null,null,null,"MOTAVITA-BOYACA",null,null,null,null,null,null,null,null,null,null,null,null,null,null,null,"MADRID-CUNDINAMARCA",null,null,null,null,null,null,null,null,null,null,null,null,null,"SANDONA-NARINO",null,null,null,null,null,null,null,null,null,null,null,"OIBA-SANTANDER"]
[null,null,null,null,null,"C1030 - Elaboración de aceites y grasas de origen vegetal y animal",null,null,null,null,null,null,null,null,null,null,null,"ARAUQUITA-ARAUCA",null,null,null,null,null,null,null,null,null,null,null,null,"HISPANIA-ANTIOQUIA",null,null,null,null,null,null,null,null,null,"MUZO-BOYACA",null,null,null,null,null,null,null,null,null,null,null,null,null,null,null,"MANTA-CUNDINAMARCA",null,null,null,null,null,null,null,null,null,null,null,null,null,"SANTA-BARBARA-NARINO",null,null,null,null,null,null,null,null,null,null,null,"ONZAGA-SANTANDER"]
[null,null,null,null,null,"C1040 - Elaboración de productos lácteos",null,null,null,null,null,null,null,null,null,null,null,"ARBELAEZ-CUNDINAMARCA",null,null,null,null,null,null,null,null,null,null,null,null,"ITAGUI-ANTIOQUIA",null,null,null,null,null,null,null,null,null,"NOBSA-BOYACA",null,null,null,null,null,null,null,null,null,null,null,null,null,null,null,"MEDINA-CUNDINAMARCA",null,null,null,null,null,null,null,null,null,null,null,null,null,"SANTACRUZ-NARINO",null,null,null,null,null,null,null,null,null,null,null,"PALMAR-SANTANDER"]
[null,null,null,null,null,"C1051 - Elaboración de productos de molinería",null,null,null,null,null,null,null,null,null,null,null,"ARBOLEDA-NARINO",null,null,null,null,null,null,null,null,null,null,null,null,"ITUANGO-ANTIOQUIA",null,null,null,null,null,null,null,null,null,"NUEVO-COLON-BOYACA",null,null,null,null,null,null,null,null,null,null,null,null,null,null,null,"MOSQUERA-CUNDINAMARCA",null,null,null,null,null,null,null,null,null,null,null,null,null,"SAPUYES-NARINO",null,null,null,null,null,null,null,null,null,null,null,"PALMAS-DEL-SOCORRO-SANTANDER"]
[null,null,null,null,null,"C1052 - Elaboración de almidones y productos derivados del almidón",null,null,null,null,null,null,null,null,null,null,null,"ARBOLEDAS-NORTE DE SANTANDER",null,null,null,null,null,null,null,null,null,null,null,null,"JARDIN-ANTIOQUIA",null,null,null,null,null,null,null,null,null,"OICATA-BOYACA",null,null,null,null,null,null,null,null,null,null,null,null,null,null,null,"NARINO-CUNDINAMARCA",null,null,null,null,null,null,null,null,null,null,null,null,null,"TAMINANGO-NARINO",null,null,null,null,null,null,null,null,null,null,null,"PARAMO-SANTANDER"]
[null,null,null,null,null,"C1061 - Trilla de café",null,null,null,null,null,null,null,null,null,null,null,"ARBOLETES-ANTIOQUIA",null,null,null,null,null,null,null,null,null,null,null,null,"JERICO-ANTIOQUIA",null,null,null,null,null,null,null,null,null,"OTANCHE-BOYACA",null,null,null,null,null,null,null,null,null,null,null,null,null,null,null,"NEMOCON-CUNDINAMARCA",null,null,null,null,null,null,null,null,null,null,null,null,null,"TANGUA-NARINO",null,null,null,null,null,null,null,null,null,null,null,"PIEDECUESTA-SANTANDER"]
[null,null,null,null,null,"C1062 - Descafeinado, tostión y molienda del café",null,null,null,null,null,null,null,null,null,null,null,"ARCABUCO-BOYACA",null,null,null,null,null,null,null,null,null,null,null,null,"LA-CEJA-ANTIOQUIA",null,null,null,null,null,null,null,null,null,"PACHAVITA-BOYACA",null,null,null,null,null,null,null,null,null,null,null,null,null,null,null,"NILO-CUNDINAMARCA",null,null,null,null,null,null,null,null,null,null,null,null,null,"TUMACO-NARINO",null,null,null,null,null,null,null,null,null,null,null,"PINCHOTE-SANTANDER"]
[null,null,null,null,null,"C1063 - Otros derivados del café",null,null,null,null,null,null,null,null,null,null,null,"ARENAL-BOLIVAR",null,null,null,null,null,null,null,null,null,null,null,null,"LA-ESTRELLA-ANTIOQUIA",null,null,null,null,null,null,null,null,null,"PAEZ-BOYACA",null,null,null,null,null,null,null,null,null,null,null,null,null,null,null,"NIMAIMA-CUNDINAMARCA",null,null,null,null,null,null,null,null,null,null,null,null,null,"TUQUERRES-NARINO",null,null,null,null,null,null,null,null,null,null,null,"PUENTE-NACIONAL-SANTANDER"]
[null,null,null,null,null,"C1071 - Elaboración y refinación de azúcar",null,null,null,null,null,null,null,null,null,null,null,"ARGELIA-ANTIOQUIA",null,null,null,null,null,null,null,null,null,null,null,null,"LA-PINTADA-ANTIOQUIA",null,null,null,null,null,null,null,null,null,"PAIPA-BOYACA",null,null,null,null,null,null,null,null,null,null,null,null,null,null,null,"NOCAIMA-CUNDINAMARCA",null,null,null,null,null,null,null,null,null,null,null,null,null,"YACUANQUER-NARINO",null,null,null,null,null,null,null,null,null,null,null,"PUERTO-PARRA-SANTANDER"]
[null,null,null,null,null,"C1072 - Elaboración de panela",null,null,null,null,null,null,null,null,null,null,null,"ARGELIA-CAUCA",null,null,null,null,null,null,null,null,null,null,null,null,"LA-UNION-ANTIOQUIA",null,null,null,null,null,null,null,null,null,"PAJARITO-BOYACA",null,null,null,null,null,null,null,null,null,null,null,null,null,null,null,"PACHO-CUNDINAMARCA",null,null,null,null,null,null,null,null,null,null,null,null,null,null,null,null,null,null,null,null,null,null,null,null,null,"PUERTO-WILCHES-SANTANDER"]
[null,null,null,null,null,"C1081 - Elaboración de productos de panadería",null,null,null,null,null,null,null,null,null,null,null,"ARGELIA-VALLE",null,null,null,null,null,null,null,null,null,null,null,null,"LIBORINA-ANTIOQUIA",null,null,null,null,null,null,null,null,null,"PANQUEBA-BOYACA",null,null,null,null,null,null,null,null,null,null,null,null,null,null,null,"PAIME-CUNDINAMARCA",null,null,null,null,null,null,null,null,null,null,null,null,null,null,null,null,null,null,null,null,null,null,null,null,null,"RIONEGRO-SANTANDER"]
[null,null,null,null,null,"C1082 - Elaboración de cacao, chocolate y productos de confitería",null,null,null,null,null,null,null,null,null,null,null,"ARIGUANI-MAGDALENA",null,null,null,null,null,null,null,null,null,null,null,null,"MACEO-ANTIOQUIA",null,null,null,null,null,null,null,null,null,"PAUNA-BOYACA",null,null,null,null,null,null,null,null,null,null,null,null,null,null,null,"PANDI-CUNDINAMARCA",null,null,null,null,null,null,null,null,null,null,null,null,null,null,null,null,null,null,null,null,null,null,null,null,null,"SABANA-DE-TORRES-SANTANDER"]
[null,null,null,null,null,"C1083 - Elaboración de macarrones, fideos, alcuzcuz y productos farináceos similares",null,null,null,null,null,null,null,null,null,null,null,"ARJONA-BOLIVAR",null,null,null,null,null,null,null,null,null,null,null,null,"MARINILLA-ANTIOQUIA",null,null,null,null,null,null,null,null,null,"PAYA-BOYACA",null,null,null,null,null,null,null,null,null,null,null,null,null,null,null,"PARATEBUENO-CUNDINAMARCA",null,null,null,null,null,null,null,null,null,null,null,null,null,null,null,null,null,null,null,null,null,null,null,null,null,"SAN-ANDRES-SANTANDER"]
[null,null,null,null,null,"C1084 - Elaboración de comidas y platos preparados",null,null,null,null,null,null,null,null,null,null,null,"ARMENIA-ANTIOQUIA",null,null,null,null,null,null,null,null,null,null,null,null,"MEDELLIN-ANTIOQUIA",null,null,null,null,null,null,null,null,null,"PAZ-DE-RIO-BOYACA",null,null,null,null,null,null,null,null,null,null,null,null,null,null,null,"PASCA-CUNDINAMARCA",null,null,null,null,null,null,null,null,null,null,null,null,null,null,null,null,null,null,null,null,null,null,null,null,null,"SAN-BENITO-SANTANDER"]
[null,null,null,null,null,"C1089 - Elaboración de otros productos alimenticios n.c.p.",null,null,null,null,null,null,null,null,null,null,null,"ARMENIA-QUINDIO",null,null,null,null,null,null,null,null,null,null,null,null,"MONTEBELLO-ANTIOQUIA",null,null,null,null,null,null,null,null,null,"PESCA-BOYACA",null,null,null,null,null,null,null,null,null,null,null,null,null,null,null,"PUERTO-SALGAR-CUNDINAMARCA",null,null,null,null,null,null,null,null,null,null,null,null,null,null,null,null,null,null,null,null,null,null,null,null,null,"SAN-GIL-SANTANDER"]
[null,null,null,null,null,"C1090 - Elaboración de alimentos preparados para animales",null,null,null,null,null,null,null,null,null,null,null,"ARMERO-TOLIMA",null,null,null,null,null,null,null,null,null,null,null,null,"MURINDO-ANTIOQUIA",null,null,null,null,null,null,null,null,null,"PISVA-BOYACA",null,null,null,null,null,null,null,null,null,null,null,null,null,null,null,"PULI-CUNDINAMARCA",null,null,null,null,null,null,null,null,null,null,null,null,null,null,null,null,null,null,null,null,null,null,null,null,null,"SAN-JOAQUIN-SANTANDER"]
[null,null,null,null,null,"C1101 - Destilación, rectificación y mezcla de bebidas alcohólicas",null,null,null,null,null,null,null,null,null,null,null,"ARROYOHONDO-BOLIVAR",null,null,null,null,null,null,null,null,null,null,null,null,"MUTATA-ANTIOQUIA",null,null,null,null,null,null,null,null,null,"PUERTO-BOYACA-BOYACA",null,null,null,null,null,null,null,null,null,null,null,null,null,null,null,"QUEBRADANEGRA-CUNDINAMARCA",null,null,null,null,null,null,null,null,null,null,null,null,null,null,null,null,null,null,null,null,null,null,null,null,null,"SAN-JOSE-DE-MIRANDA-SANTANDER"]
[null,null,null,null,null,"C1102 - Elaboración de bebidas fermentadas no destiladas",null,null,null,null,null,null,null,null,null,null,null,"ASTREA-CESAR",null,null,null,null,null,null,null,null,null,null,null,null,"NARINO-ANTIOQUIA",null,null,null,null,null,null,null,null,null,"QUIPAMA-BOYACA",null,null,null,null,null,null,null,null,null,null,null,null,null,null,null,"QUETAME-CUNDINAMARCA",null,null,null,null,null,null,null,null,null,null,null,null,null,null,null,null,null,null,null,null,null,null,null,null,null,"SAN-MIGUEL-SANTANDER"]
[null,null,null,null,null,"C1103 - Producción de malta, elaboración de cervezas y otras bebidas malteadas",null,null,null,null,null,null,null,null,null,null,null,"ATACO-TOLIMA",null,null,null,null,null,null,null,null,null,null,null,null,"NECHI-ANTIOQUIA",null,null,null,null,null,null,null,null,null,"RAMIRIQUI-BOYACA",null,null,null,null,null,null,null,null,null,null,null,null,null,null,null,"QUIPILE-CUNDINAMARCA",null,null,null,null,null,null,null,null,null,null,null,null,null,null,null,null,null,null,null,null,null,null,null,null,null,"SAN-VICENTE-DE-CHUCURI-SANTANDER"]
[null,null,null,null,null,"C1104 - Elaboración de bebidas no alcohólicas, producción de aguas minerales y de otras aguas embotelladas",null,null,null,null,null,null,null,null,null,null,null,"ATRATO-CHOCO",null,null,null,null,null,null,null,null,null,null,null,null,"NECOCLI-ANTIOQUIA",null,null,null,null,null,null,null,null,null,"RAQUIRA-BOYACA",null,null,null,null,null,null,null,null,null,null,null,null,null,null,null,"RICAURTE-CUNDINAMARCA",null,null,null,null,null,null,null,null,null,null,null,null,null,null,null,null,null,null,null,null,null,null,null,null,null,"SANTA-BARBARA-SANTANDER"]
[null,null,null,null,null,"C1200 - Elaboración de productos de tabaco",null,null,null,null,null,null,null,null,null,null,null,"AYAPEL-CORDOBA",null,null,null,null,null,null,null,null,null,null,null,null,"OLAYA-ANTIOQUIA",null,null,null,null,null,null,null,null,null,"RONDON-BOYACA",null,null,null,null,null,null,null,null,null,null,null,null,null,null,null,"SAN-ANTONIO-DEL-TEQUENDAMA-CUNDINAMARCA",null,null,null,null,null,null,null,null,null,null,null,null,null,null,null,null,null,null,null,null,null,null,null,null,null,"SANTA-HELENA-DEL-OPON-SANTANDER"]
[null,null,null,null,null,"C1311 - Preparación e hilatura de fibras textiles",null,null,null,null,null,null,null,null,null,null,null,"BAGADO-CHOCO",null,null,null,null,null,null,null,null,null,null,null,null,"PENOL-ANTIOQUIA",null,null,null,null,null,null,null,null,null,"SABOYA-BOYACA",null,null,null,null,null,null,null,null,null,null,null,null,null,null,null,"SAN-BERNARDO-CUNDINAMARCA",null,null,null,null,null,null,null,null,null,null,null,null,null,null,null,null,null,null,null,null,null,null,null,null,null,"SIMACOTA-SANTANDER"]
[null,null,null,null,null,"C1312 - Tejeduría de productos textiles",null,null,null,null,null,null,null,null,null,null,null,"BAHIA-SOLANO-CHOCO",null,null,null,null,null,null,null,null,null,null,null,null,"PEQUE-ANTIOQUIA",null,null,null,null,null,null,null,null,null,"SACHICA-BOYACA",null,null,null,null,null,null,null,null,null,null,null,null,null,null,null,"SAN-CAYETANO-CUNDINAMARCA",null,null,null,null,null,null,null,null,null,null,null,null,null,null,null,null,null,null,null,null,null,null,null,null,null,"SOCORRO-SANTANDER"]
[null,null,null,null,null,"C1313 - Acabado de productos textiles",null,null,null,null,null,null,null,null,null,null,null,"BAJO-BAUDO-CHOCO",null,null,null,null,null,null,null,null,null,null,null,null,"PUEBLORRICO-ANTIOQUIA",null,null,null,null,null,null,null,null,null,"SAMACA-BOYACA",null,null,null,null,null,null,null,null,null,null,null,null,null,null,null,"SAN-FRANCISCO-CUNDINAMARCA",null,null,null,null,null,null,null,null,null,null,null,null,null,null,null,null,null,null,null,null,null,null,null,null,null,"SUAITA-SANTANDER"]
[null,null,null,null,null,"C1391 - Fabricación de tejidos de punto y ganchillo",null,null,null,null,null,null,null,null,null,null,null,"BALBOA-CAUCA",null,null,null,null,null,null,null,null,null,null,null,null,"PUERTO-BERRIO-ANTIOQUIA",null,null,null,null,null,null,null,null,null,"SAN-EDUARDO-BOYACA",null,null,null,null,null,null,null,null,null,null,null,null,null,null,null,"SAN-JUAN-DE-RIOSECO-CUNDINAMARCA",null,null,null,null,null,null,null,null,null,null,null,null,null,null,null,null,null,null,null,null,null,null,null,null,null,"SUCRE-SANTANDER"]
[null,null,null,null,null,"C1392 - Confección de artículos con materiales textiles, excepto prendas de vestir",null,null,null,null,null,null,null,null,null,null,null,"BALBOA-RISARALDA",null,null,null,null,null,null,null,null,null,null,null,null,"PUERTO-NARE-ANTIOQUIA",null,null,null,null,null,null,null,null,null,"SAN-JOSE-DE-PARE-BOYACA",null,null,null,null,null,null,null,null,null,null,null,null,null,null,null,"SASAIMA-CUNDINAMARCA",null,null,null,null,null,null,null,null,null,null,null,null,null,null,null,null,null,null,null,null,null,null,null,null,null,"SURATA-SANTANDER"]
[null,null,null,null,null,"C1393 - Fabricación de tapetes y alfombras para pisos",null,null,null,null,null,null,null,null,null,null,null,"BARANOA-ATLANTICO",null,null,null,null,null,null,null,null,null,null,null,null,"PUERTO-TRIUNFO-ANTIOQUIA",null,null,null,null,null,null,null,null,null,"SAN-LUIS-DE-GACENO-BOYACA",null,null,null,null,null,null,null,null,null,null,null,null,null,null,null,"SESQUILE-CUNDINAMARCA",null,null,null,null,null,null,null,null,null,null,null,null,null,null,null,null,null,null,null,null,null,null,null,null,null,"TONA-SANTANDER"]
[null,null,null,null,null,"C1394 - Fabricación de cuerdas, cordeles, cables, bramantes y redes",null,null,null,null,null,null,null,null,null,null,null,"BARAYA-HUILA",null,null,null,null,null,null,null,null,null,null,null,null,"REMEDIOS-ANTIOQUIA",null,null,null,null,null,null,null,null,null,"SAN-MATEO-BOYACA",null,null,null,null,null,null,null,null,null,null,null,null,null,null,null,"SIBATE-CUNDINAMARCA",null,null,null,null,null,null,null,null,null,null,null,null,null,null,null,null,null,null,null,null,null,null,null,null,null,"VALLE-SAN-JOSE-SANTANDER"]
[null,null,null,null,null,"C1399 - Fabricación de otros artículos textiles n.c.p.",null,null,null,null,null,null,null,null,null,null,null,"BARBACOAS-NARINO",null,null,null,null,null,null,null,null,null,null,null,null,"RETIRO-ANTIOQUIA",null,null,null,null,null,null,null,null,null,"SAN-MIGUEL-DE-SEMA-BOYACA",null,null,null,null,null,null,null,null,null,null,null,null,null,null,null,"SILVANIA-CUNDINAMARCA",null,null,null,null,null,null,null,null,null,null,null,null,null,null,null,null,null,null,null,null,null,null,null,null,null,"VELEZ-SANTANDER"]
[null,null,null,null,null,"C1410 - Confección de prendas de vestir, excepto prendas de piel",null,null,null,null,null,null,null,null,null,null,null,"BARBOSA-ANTIOQUIA",null,null,null,null,null,null,null,null,null,null,null,null,"RIONEGRO-ANTIOQUIA",null,null,null,null,null,null,null,null,null,"SAN-PABLO-DE-BORBUR-BOYACA",null,null,null,null,null,null,null,null,null,null,null,null,null,null,null,"SIMIJACA-CUNDINAMARCA",null,null,null,null,null,null,null,null,null,null,null,null,null,null,null,null,null,null,null,null,null,null,null,null,null,"VETAS-SANTANDER"]
[null,null,null,null,null,"C1420 - Fabricación de artículos de piel",null,null,null,null,null,null,null,null,null,null,null,"BARBOSA-SANTANDER",null,null,null,null,null,null,null,null,null,null,null,null,"SABANALARGA-ANTIOQUIA",null,null,null,null,null,null,null,null,null,"SANTA-MARIA-BOYACA",null,null,null,null,null,null,null,null,null,null,null,null,null,null,null,"SOACHA-CUNDINAMARCA",null,null,null,null,null,null,null,null,null,null,null,null,null,null,null,null,null,null,null,null,null,null,null,null,null,"VILLANUEVA-SANTANDER"]
[null,null,null,null,null,"C1430 - Fabricación de artículos de punto y ganchillo",null,null,null,null,null,null,null,null,null,null,null,"BARICHARA-SANTANDER",null,null,null,null,null,null,null,null,null,null,null,null,"SABANETA-ANTIOQUIA",null,null,null,null,null,null,null,null,null,"SANTA-ROSA-DE-VITERBO-BOYACA",null,null,null,null,null,null,null,null,null,null,null,null,null,null,null,"SOPO-CUNDINAMARCA",null,null,null,null,null,null,null,null,null,null,null,null,null,null,null,null,null,null,null,null,null,null,null,null,null,"ZAPATOCA-SANTANDER"]
[null,null,null,null,null,"C1511 - Curtido y recurtido de cueros; recurtido y teñido de pieles",null,null,null,null,null,null,null,null,null,null,null,"BARRANCA-DE-UPÍA-META",null,null,null,null,null,null,null,null,null,null,null,null,"SALGAR-ANTIOQUIA",null,null,null,null,null,null,null,null,null,"SANTA-SOFIA-BOYACA",null,null,null,null,null,null,null,null,null,null,null,null,null,null,null,"SUBACHOQUE-CUNDINAMARCA"]
[null,null,null,null,null,"C1512 - Fabricación de artículos de viaje, bolsos de mano y artículos similares elaborados en cuero, y fabricación de artículos de talabartería y guarnicionería",null,null,null,null,null,null,null,null,null,null,null,"BARRANCABERMEJA-SANTANDER",null,null,null,null,null,null,null,null,null,null,null,null,"SAN-ANDRES-ANTIOQUIA",null,null,null,null,null,null,null,null,null,"SANTANA-BOYACA",null,null,null,null,null,null,null,null,null,null,null,null,null,null,null,"SUESCA-CUNDINAMARCA"]
[null,null,null,null,null,"C1513 - Fabricación de artículos de viaje, bolsos de mano y artículos similares; artículos de talabartería y guarnicionería elaborados en otros materiales",null,null,null,null,null,null,null,null,null,null,null,"BARRANCAS-LA GUAJIRA",null,null,null,null,null,null,null,null,null,null,null,null,"SAN-CARLOS-ANTIOQUIA",null,null,null,null,null,null,null,null,null,"SANTIVANORTE-BOYACA",null,null,null,null,null,null,null,null,null,null,null,null,null,null,null,"SUPATA-CUNDINAMARCA"]
[null,null,null,null,null,"C1521 - Fabricación de calzado de cuero y piel, con cualquier tipo de suela",null,null,null,null,null,null,null,null,null,null,null,"BARRANCO-DE-LOBA-BOLIVAR",null,null,null,null,null,null,null,null,null,null,null,null,"SAN-FRANCISCO-ANTIOQUIA",null,null,null,null,null,null,null,null,null,"SANTIVASUR-BOYACA",null,null,null,null,null,null,null,null,null,null,null,null,null,null,null,"SUSA-CUNDINAMARCA"]
[null,null,null,null,null,"C1522 - Fabricación de otros tipos de calzado, excepto calzado de cuero y piel",null,null,null,null,null,null,null,null,null,null,null,"BARRANQUILLA-ATLANTICO",null,null,null,null,null,null,null,null,null,null,null,null,"SAN-JERONIMO-ANTIOQUIA",null,null,null,null,null,null,null,null,null,"SIACHOQUE-BOYACA",null,null,null,null,null,null,null,null,null,null,null,null,null,null,null,"SUTATAUSA-CUNDINAMARCA"]
[null,null,null,null,null,"C1523 - Fabricación de partes del calzado",null,null,null,null,null,null,null,null,null,null,null,"BECERRIL-CESAR",null,null,null,null,null,null,null,null,null,null,null,null,"SAN-JOSE-DE-LA-MONTANA-ANTIOQUIA",null,null,null,null,null,null,null,null,null,"SOATA-BOYACA",null,null,null,null,null,null,null,null,null,null,null,null,null,null,null,"TABIO-CUNDINAMARCA"]
[null,null,null,null,null,"C1610 - Aserrado, acepillado e impregnación de la madera",null,null,null,null,null,null,null,null,null,null,null,"BELALCAZAR-CALDAS",null,null,null,null,null,null,null,null,null,null,null,null,"SAN-JUAN-DE-URABA-ANTIOQUIA",null,null,null,null,null,null,null,null,null,"SOCHA-BOYACA",null,null,null,null,null,null,null,null,null,null,null,null,null,null,null,"TAUSA-CUNDINAMARCA"]
[null,null,null,null,null,"C1620 - Fabricación de hojas de madera para enchapado; fabricación de tableros contrachapados, tableros laminados, tableros de partículas y otros tableros y paneles",null,null,null,null,null,null,null,null,null,null,null,"BELEN-BOYACA",null,null,null,null,null,null,null,null,null,null,null,null,"SAN-LUIS-ANTIOQUIA",null,null,null,null,null,null,null,null,null,"SOCOTA-BOYACA",null,null,null,null,null,null,null,null,null,null,null,null,null,null,null,"TENA-CUNDINAMARCA"]
[null,null,null,null,null,"C1630 - Fabricación de partes y piezas de madera, de carpintería y ebanistería para la construcción",null,null,null,null,null,null,null,null,null,null,null,"BELEN-DE-LOS-ANDAQUIES-CAQUETA",null,null,null,null,null,null,null,null,null,null,null,null,"SAN-PEDRO-ANTIOQUIA",null,null,null,null,null,null,null,null,null,"SOGAMOSO-BOYACA",null,null,null,null,null,null,null,null,null,null,null,null,null,null,null,"TENJO-CUNDINAMARCA"]
[null,null,null,null,null,"C1640 - Fabricación de recipientes de madera",null,null,null,null,null,null,null,null,null,null,null,"BELEN-DE-UMBRIA-RISARALDA",null,null,null,null,null,null,null,null,null,null,null,null,"SAN-PEDRO-DE-URABA-ANTIOQUIA",null,null,null,null,null,null,null,null,null,"SOMONDOCO-BOYACA",null,null,null,null,null,null,null,null,null,null,null,null,null,null,null,"TIBACUY-CUNDINAMARCA"]
[null,null,null,null,null,"C1690 - Fabricación de otros productos de madera; fabricación de artículos de corcho, cestería y espartería",null,null,null,null,null,null,null,null,null,null,null,"BELEN-NARINO",null,null,null,null,null,null,null,null,null,null,null,null,"SAN-RAFAEL-ANTIOQUIA",null,null,null,null,null,null,null,null,null,"SORA-BOYACA",null,null,null,null,null,null,null,null,null,null,null,null,null,null,null,"TIBIRITA-CUNDINAMARCA"]
[null,null,null,null,null,"C1701 - Fabricación de pulpas (pastas) celulósicas; papel y cartón",null,null,null,null,null,null,null,null,null,null,null,"BELLO-ANTIOQUIA",null,null,null,null,null,null,null,null,null,null,null,null,"SAN-ROQUE-ANTIOQUIA",null,null,null,null,null,null,null,null,null,"SORACA-BOYACA",null,null,null,null,null,null,null,null,null,null,null,null,null,null,null,"TOCAIMA-CUNDINAMARCA"]
[null,null,null,null,null,"C1702 - Fabricación de papel y cartón ondulado (corrugado); fabricación de envases, empaques y de embalajes de papel y cartón",null,null,null,null,null,null,null,null,null,null,null,"BELMIRA-ANTIOQUIA",null,null,null,null,null,null,null,null,null,null,null,null,"SAN-VICENTE-ANTIOQUIA",null,null,null,null,null,null,null,null,null,"SOTAQUIRA-BOYACA",null,null,null,null,null,null,null,null,null,null,null,null,null,null,null,"TOCANCIPA-CUNDINAMARCA"]
[null,null,null,null,null,"C1709 - Fabricación de otros artículos de papel y cartón",null,null,null,null,null,null,null,null,null,null,null,"BELTRAN-CUNDINAMARCA",null,null,null,null,null,null,null,null,null,null,null,null,"SANTA-BARBARA-ANTIOQUIA",null,null,null,null,null,null,null,null,null,"SUSACON-BOYACA",null,null,null,null,null,null,null,null,null,null,null,null,null,null,null,"TOPAIPI-CUNDINAMARCA"]
[null,null,null,null,null,"C1811 - Actividades de impresión",null,null,null,null,null,null,null,null,null,null,null,"BELÉN-DE-BAJIRÁ-CHOCO",null,null,null,null,null,null,null,null,null,null,null,null,"SANTA-ROSA-DE-OSOS-ANTIOQUIA",null,null,null,null,null,null,null,null,null,"SUTAMARCHAN-BOYACA",null,null,null,null,null,null,null,null,null,null,null,null,null,null,null,"UBALA-CUNDINAMARCA"]
[null,null,null,null,null,"C1812 - Actividades de servicios relacionados con la impresión",null,null,null,null,null,null,null,null,null,null,null,"BERBEO-BOYACA",null,null,null,null,null,null,null,null,null,null,null,null,"SANTO-DOMINGO-ANTIOQUIA",null,null,null,null,null,null,null,null,null,"SUTATENZA-BOYACA",null,null,null,null,null,null,null,null,null,null,null,null,null,null,null,"UBAQUE-CUNDINAMARCA"]
[null,null,null,null,null,"C1820 - Producción de copias a partir de grabaciones originales",null,null,null,null,null,null,null,null,null,null,null,"BETANIA-ANTIOQUIA",null,null,null,null,null,null,null,null,null,null,null,null,"SANTUARIO-ANTIOQUIA",null,null,null,null,null,null,null,null,null,"TASCO-BOYACA",null,null,null,null,null,null,null,null,null,null,null,null,null,null,null,"UBATE-CUNDINAMARCA"]
[null,null,null,null,null,"C1910 - Fabricación de productos de hornos de coque",null,null,null,null,null,null,null,null,null,null,null,"BETEITIVA-BOYACA",null,null,null,null,null,null,null,null,null,null,null,null,"SEGOVIA-ANTIOQUIA",null,null,null,null,null,null,null,null,null,"TENZA-BOYACA",null,null,null,null,null,null,null,null,null,null,null,null,null,null,null,"UNE-CUNDINAMARCA"]
[null,null,null,null,null,"C1921 - Fabricación de productos de la refinación del petróleo",null,null,null,null,null,null,null,null,null,null,null,"BETULIA-ANTIOQUIA",null,null,null,null,null,null,null,null,null,null,null,null,"SONSON-ANTIOQUIA",null,null,null,null,null,null,null,null,null,"TIBANA-BOYACA",null,null,null,null,null,null,null,null,null,null,null,null,null,null,null,"UTICA-CUNDINAMARCA"]
[null,null,null,null,null,"C1922 - Actividad de mezcla de combustibles",null,null,null,null,null,null,null,null,null,null,null,"BETULIA-SANTANDER",null,null,null,null,null,null,null,null,null,null,null,null,"SOPETRAN-ANTIOQUIA",null,null,null,null,null,null,null,null,null,"TIBASOSA-BOYACA",null,null,null,null,null,null,null,null,null,null,null,null,null,null,null,"VENECIA-OSPINA-PEREZ-CUNDINAMARCA"]
[null,null,null,null,null,"C2011 - Fabricación de sustancias y productos químicos básicos",null,null,null,null,null,null,null,null,null,null,null,"BITUIMA-CUNDINAMARCA",null,null,null,null,null,null,null,null,null,null,null,null,"TAMESIS-ANTIOQUIA",null,null,null,null,null,null,null,null,null,"TINJACA-BOYACA",null,null,null,null,null,null,null,null,null,null,null,null,null,null,null,"VERGARA-CUNDINAMARCA"]
[null,null,null,null,null,"C2012 - Fabricación de abonos y compuestos inorgánicos nitrogenados",null,null,null,null,null,null,null,null,null,null,null,"BOAVITA-BOYACA",null,null,null,null,null,null,null,null,null,null,null,null,"TARAZA-ANTIOQUIA",null,null,null,null,null,null,null,null,null,"TIPACOQUE-BOYACA",null,null,null,null,null,null,null,null,null,null,null,null,null,null,null,"VIANI-CUNDINAMARCA"]
[null,null,null,null,null,"C2013 - Fabricación de plásticos en formas primarias",null,null,null,null,null,null,null,null,null,null,null,"BOCHALEMA-NORTE DE SANTANDER",null,null,null,null,null,null,null,null,null,null,null,null,"TARSO-ANTIOQUIA",null,null,null,null,null,null,null,null,null,"TOCA-BOYACA",null,null,null,null,null,null,null,null,null,null,null,null,null,null,null,"VILLAGOMEZ-CUNDINAMARCA"]
[null,null,null,null,null,"C2014 - Fabricación de caucho sintético en formas primarias",null,null,null,null,null,null,null,null,null,null,null,"BOGOTA-BOGOTA D.C.",null,null,null,null,null,null,null,null,null,null,null,null,"TITIRIBI-ANTIOQUIA",null,null,null,null,null,null,null,null,null,"TOGUI-BOYACA",null,null,null,null,null,null,null,null,null,null,null,null,null,null,null,"VILLAPINZON-CUNDINAMARCA"]
[null,null,null,null,null,"C2021 - Fabricación de plaguicidas y otros productos químicos de uso agropecuario",null,null,null,null,null,null,null,null,null,null,null,"BOJACA-CUNDINAMARCA",null,null,null,null,null,null,null,null,null,null,null,null,"TOLEDO-ANTIOQUIA",null,null,null,null,null,null,null,null,null,"TOPAGA-BOYACA",null,null,null,null,null,null,null,null,null,null,null,null,null,null,null,"VILLETA-CUNDINAMARCA"]
[null,null,null,null,null,"C2022 - Fabricación de pinturas, barnices y revestimientos similares, tintas para impresión y masillas",null,null,null,null,null,null,null,null,null,null,null,"BOJAYA-CHOCO",null,null,null,null,null,null,null,null,null,null,null,null,"TURBO-ANTIOQUIA",null,null,null,null,null,null,null,null,null,"TOTA-BOYACA",null,null,null,null,null,null,null,null,null,null,null,null,null,null,null,"VIOTA-CUNDINAMARCA"]
[null,null,null,null,null,"C2023 - Fabricación de jabones y detergentes, preparados para limpiar y pulir; perfumes y preparados de tocador",null,null,null,null,null,null,null,null,null,null,null,"BOLIVAR-ANTIOQUIA",null,null,null,null,null,null,null,null,null,null,null,null,"URAMITA-ANTIOQUIA",null,null,null,null,null,null,null,null,null,"TUNJA-BOYACA",null,null,null,null,null,null,null,null,null,null,null,null,null,null,null,"YACOPI-CUNDINAMARCA"]
[null,null,null,null,null,"C2029 - Fabricación de otros productos químicos n.c.p.",null,null,null,null,null,null,null,null,null,null,null,"BOLIVAR-CAUCA",null,null,null,null,null,null,null,null,null,null,null,null,"URRAO-ANTIOQUIA",null,null,null,null,null,null,null,null,null,"TUNUNGUA-BOYACA",null,null,null,null,null,null,null,null,null,null,null,null,null,null,null,"ZIPACON-CUNDINAMARCA"]
[null,null,null,null,null,"C2030 - Fabricación de fibras sintéticas y artificiales",null,null,null,null,null,null,null,null,null,null,null,"BOLIVAR-SANTANDER",null,null,null,null,null,null,null,null,null,null,null,null,"VALDIVIA-ANTIOQUIA",null,null,null,null,null,null,null,null,null,"TURMEQUE-BOYACA",null,null,null,null,null,null,null,null,null,null,null,null,null,null,null,"ZIPAQUIRA-CUNDINAMARCA"]
[null,null,null,null,null,"C2100 - Fabricación de productos farmacéuticos, sustancias químicas medicinales y productos botánicos de uso farmacéutico",null,null,null,null,null,null,null,null,null,null,null,"BOLIVAR-VALLE",null,null,null,null,null,null,null,null,null,null,null,null,"VALPARAISO-ANTIOQUIA",null,null,null,null,null,null,null,null,null,"TUTA-BOYACA"]
[null,null,null,null,null,"C2211 - Fabricación de llantas y neumáticos de caucho",null,null,null,null,null,null,null,null,null,null,null,"BOSA-BOGOTA D.C.",null,null,null,null,null,null,null,null,null,null,null,null,"VEGACHI-ANTIOQUIA",null,null,null,null,null,null,null,null,null,"TUTASA-BOYACA"]
[null,null,null,null,null,"C2212 - Reencauche de llantas usadas",null,null,null,null,null,null,null,null,null,null,null,"BOSCONIA-CESAR",null,null,null,null,null,null,null,null,null,null,null,null,"VENECIA-ANTIOQUIA",null,null,null,null,null,null,null,null,null,"UMBITA-BOYACA"]
[null,null,null,null,null,"C2219 - Fabricación de formas básicas de caucho y otros productos de caucho n.c.p.",null,null,null,null,null,null,null,null,null,null,null,"BOYACA-BOYACA",null,null,null,null,null,null,null,null,null,null,null,null,"VIGIA-DEL-FUERTE-ANTIOQUIA",null,null,null,null,null,null,null,null,null,"VENTAQUEMADA-BOYACA"]
[null,null,null,null,null,"C2221 - Fabricación de formas básicas de plástico",null,null,null,null,null,null,null,null,null,null,null,"BRICENO-ANTIOQUIA",null,null,null,null,null,null,null,null,null,null,null,null,"YALI-ANTIOQUIA",null,null,null,null,null,null,null,null,null,"VILLA-DE-LEYVA-BOYACA"]
[null,null,null,null,null,"C2229 - Fabricación de artículos de plástico n.c.p.",null,null,null,null,null,null,null,null,null,null,null,"BRICENO-BOYACA",null,null,null,null,null,null,null,null,null,null,null,null,"YARUMAL-ANTIOQUIA",null,null,null,null,null,null,null,null,null,"VIRACACHA-BOYACA"]
[null,null,null,null,null,"C2310 - Fabricación de vidrio y productos de vidrio",null,null,null,null,null,null,null,null,null,null,null,"BUCARAMANGA-SANTANDER",null,null,null,null,null,null,null,null,null,null,null,null,"YOLOMBO-ANTIOQUIA",null,null,null,null,null,null,null,null,null,"ZETAQUIRA-BOYACA"]
[null,null,null,null,null,"C2391 - Fabricación de productos refractarios",null,null,null,null,null,null,null,null,null,null,null,"BUCARASICA-NORTE DE SANTANDER",null,null,null,null,null,null,null,null,null,null,null,null,"YONDO-ANTIOQUIA"]
[null,null,null,null,null,"C2392 - Fabricación de materiales de arcilla para la construcción",null,null,null,null,null,null,null,null,null,null,null,"BUENAVENTURA-VALLE",null,null,null,null,null,null,null,null,null,null,null,null,"ZARAGOZA-ANTIOQUIA"]
[null,null,null,null,null,"C2393 - Fabricación de otros productos de cerámica y porcelana",null,null,null,null,null,null,null,null,null,null,null,"BUENAVISTA-BOYACA"]
[null,null,null,null,null,"C2394 - Fabricación de cemento, cal y yeso",null,null,null,null,null,null,null,null,null,null,null,"BUENAVISTA-CORDOBA"]
[null,null,null,null,null,"C2395 - Fabricación de artículos de hormigón, cemento y yeso",null,null,null,null,null,null,null,null,null,null,null,"BUENAVISTA-QUINDIO"]
[null,null,null,null,null,"C2396 - Corte, tallado y acabado de la piedra",null,null,null,null,null,null,null,null,null,null,null,"BUENAVISTA-SUCRE"]
[null,null,null,null,null,"C2399 - Fabricación de otros productos minerales no metálicos n.c.p.",null,null,null,null,null,null,null,null,null,null,null,"BUENOS-AIRES-CAUCA"]
[null,null,null,null,null,"C2410 - Industrias básicas de hierro y de acero",null,null,null,null,null,null,null,null,null,null,null,"BUESACO-NARINO"]
[null,null,null,null,null,"C2421 - Industrias básicas de metales preciosos",null,null,null,null,null,null,null,null,null,null,null,"BUGA-VALLE"]
[null,null,null,null,null,"C2429 - Industrias básicas de otros metales no ferrosos",null,null,null,null,null,null,null,null,null,null,null,"BUGALAGRANDE-VALLE"]
[null,null,null,null,null,"C2431 - Fundición de hierro y de acero",null,null,null,null,null,null,null,null,null,null,null,"BURITICA-ANTIOQUIA"]
[null,null,null,null,null,"C2432 - Fundición de metales no ferrosos",null,null,null,null,null,null,null,null,null,null,null,"BUSBANZA-BOYACA"]
[null,null,null,null,null,"C2511 - Fabricación de productos metálicos para uso estructural",null,null,null,null,null,null,null,null,null,null,null,"CABRERA-CUNDINAMARCA"]
[null,null,null,null,null,"C2512 - Fabricación de tanques, depósitos y recipientes de metal, excepto los utilizados para el envase o transporte de mercancías",null,null,null,null,null,null,null,null,null,null,null,"CABRERA-SANTANDER"]
[null,null,null,null,null,"C2513 - Fabricación de generadores de vapor, excepto calderas de agua caliente para calefacción central",null,null,null,null,null,null,null,null,null,null,null,"CABUYARO-META"]
[null,null,null,null,null,"C2520 - Fabricación de armas y municiones",null,null,null,null,null,null,null,null,null,null,null,"CACAHUAL-GUAINIA"]
[null,null,null,null,null,"C2591 - Forja, prensado, estampado y laminado de metal; pulvimetalurgia",null,null,null,null,null,null,null,null,null,null,null,"CACERES-ANTIOQUIA"]
[null,null,null,null,null,"C2592 - Tratamiento y revestimiento de metales; mecanizado",null,null,null,null,null,null,null,null,null,null,null,"CACHIPAY-CUNDINAMARCA"]
[null,null,null,null,null,"C2593 - Fabricación de artículos de cuchillería, herramientas de mano y artículos de ferretería",null,null,null,null,null,null,null,null,null,null,null,"CACHIRA-NORTE DE SANTANDER"]
[null,null,null,null,null,"C2599 - Fabricación de otros productos elaborados de metal n.c.p.",null,null,null,null,null,null,null,null,null,null,null,"CACOTA-NORTE DE SANTANDER"]
[null,null,null,null,null,"C2610 - Fabricación de componentes y tableros electrónicos",null,null,null,null,null,null,null,null,null,null,null,"CAICEDO-ANTIOQUIA"]
[null,null,null,null,null,"C2620 - Fabricación de computadoras y de equipo periférico",null,null,null,null,null,null,null,null,null,null,null,"CAICEDONIA-VALLE"]
[null,null,null,null,null,"C2630 - Fabricación de equipos de comunicación",null,null,null,null,null,null,null,null,null,null,null,"CAIMITO-SUCRE"]
[null,null,null,null,null,"C2640 - Fabricación de aparatos electrónicos de consumo",null,null,null,null,null,null,null,null,null,null,null,"CAJAMARCA-TOLIMA"]
[null,null,null,null,null,"C2651 - Fabricación de equipo de medición, prueba, navegación y control",null,null,null,null,null,null,null,null,null,null,null,"CAJIBIO-CAUCA"]
[null,null,null,null,null,"C2652 - Fabricación de relojes",null,null,null,null,null,null,null,null,null,null,null,"CAJICA-CUNDINAMARCA"]
[null,null,null,null,null,"C2660 - Fabricación de equipo de irradiación y equipo electrónico de uso médico y terapéutico",null,null,null,null,null,null,null,null,null,null,null,"CALAMAR-BOLIVAR"]
[null,null,null,null,null,"C2670 - Fabricación de instrumentos ópticos y equipo fotográfico",null,null,null,null,null,null,null,null,null,null,null,"CALAMAR-GUAVIARE"]
[null,null,null,null,null,"C2680 - Fabricación de medios magnéticos y ópticos para almacenamiento de datos",null,null,null,null,null,null,null,null,null,null,null,"CALARCA-QUINDIO"]
[null,null,null,null,null,"C2711 - Fabricación de motores, generadores y transformadores eléctricos",null,null,null,null,null,null,null,null,null,null,null,"CALDAS-ANTIOQUIA"]
[null,null,null,null,null,"C2712 - Fabricación de aparatos de distribución y control de la energía eléctrica",null,null,null,null,null,null,null,null,null,null,null,"CALDAS-BOYACA"]
[null,null,null,null,null,"C2720 - Fabricación de pilas, baterías y acumuladores eléctricos",null,null,null,null,null,null,null,null,null,null,null,"CALDONO-CAUCA"]
[null,null,null,null,null,"C2731 - Fabricación de hilos y cables eléctricos y de fibra óptica",null,null,null,null,null,null,null,null,null,null,null,"CALI-VALLE"]
[null,null,null,null,null,"C2732 - Fabricación de dispositivos de cableado",null,null,null,null,null,null,null,null,null,null,null,"CALIFORNIA-SANTANDER"]
[null,null,null,null,null,"C2740 - Fabricación de equipos eléctricos de iluminación",null,null,null,null,null,null,null,null,null,null,null,"CALIMA-VALLE"]
[null,null,null,null,null,"C2750 - Fabricación de aparatos de uso doméstico",null,null,null,null,null,null,null,null,null,null,null,"CALOTO-CAUCA"]
[null,null,null,null,null,"C2790 - Fabricación de otros tipos de equipo eléctrico n.c.p.",null,null,null,null,null,null,null,null,null,null,null,"CAMPAMENTO-ANTIOQUIA"]
[null,null,null,null,null,"C2811 - Fabricación de motores, turbinas, y partes para motores de combustión interna",null,null,null,null,null,null,null,null,null,null,null,"CAMPO-DE-LA-CRUZ-ATLANTICO"]
[null,null,null,null,null,"C2812 - Fabricación de equipos de potencia hidráulica y neumática",null,null,null,null,null,null,null,null,null,null,null,"CAMPOALEGRE-HUILA"]
[null,null,null,null,null,"C2813 - Fabricación de otras bombas, compresores, grifos y válvulas",null,null,null,null,null,null,null,null,null,null,null,"CAMPOHERMOSO-BOYACA"]
[null,null,null,null,null,"C2814 - Fabricación de cojinetes, engranajes, trenes de engranajes y piezas de transmisión",null,null,null,null,null,null,null,null,null,null,null,"CANALETE-CORDOBA"]
[null,null,null,null,null,"C2815 - Fabricación de hornos, hogares y quemadores industriales",null,null,null,null,null,null,null,null,null,null,null,"CANASGORDAS-ANTIOQUIA"]
[null,null,null,null,null,"C2816 - Fabricación de equipo de elevación y manipulación",null,null,null,null,null,null,null,null,null,null,null,"CANDELARIA-ATLANTICO"]
[null,null,null,null,null,"C2817 - Fabricación de maquinaria y equipo de oficina (excepto computadoras y equipo periférico)",null,null,null,null,null,null,null,null,null,null,null,"CANDELARIA-VALLE"]
[null,null,null,null,null,"C2818 - Fabricación de herramientas manuales con motor",null,null,null,null,null,null,null,null,null,null,null,"CANTAGALLO-BOLIVAR"]
[null,null,null,null,null,"C2819 - Fabricación de otros tipos de maquinaria y equipo de uso general n.c.p.",null,null,null,null,null,null,null,null,null,null,null,"CAPARRAPI-CUNDINAMARCA"]
[null,null,null,null,null,"C2821 - Fabricación de maquinaria agropecuaria y forestal",null,null,null,null,null,null,null,null,null,null,null,"CAPITANEJO-SANTANDER"]
[null,null,null,null,null,"C2822 - Fabricación de máquinas formadoras de metal y de máquinas herramienta",null,null,null,null,null,null,null,null,null,null,null,"CAQUEZA-CUNDINAMARCA"]
[null,null,null,null,null,"C2823 - Fabricación de maquinaria para la metalurgia",null,null,null,null,null,null,null,null,null,null,null,"CARACOLI-ANTIOQUIA"]
[null,null,null,null,null,"C2824 - Fabricación de maquinaria para explotación de minas y canteras y para obras de construcción",null,null,null,null,null,null,null,null,null,null,null,"CARAMANTA-ANTIOQUIA"]
[null,null,null,null,null,"C2825 - Fabricación de maquinaria para la elaboración de alimentos, bebidas y tabaco",null,null,null,null,null,null,null,null,null,null,null,"CARCASI-SANTANDER"]
[null,null,null,null,null,"C2826 - Fabricación de maquinaria para la elaboración de productos textiles, prendas de vestir y cueros",null,null,null,null,null,null,null,null,null,null,null,"CAREPA-ANTIOQUIA"]
[null,null,null,null,null,"C2829 - Fabricación de otros tipos de maquinaria y equipo de uso especial n.c.p.",null,null,null,null,null,null,null,null,null,null,null,"CARMEN-DE-APICALA-TOLIMA"]
[null,null,null,null,null,"C2910 - Fabricación de vehículos automotores y sus motores",null,null,null,null,null,null,null,null,null,null,null,"CARMEN-DE-BOLIVAR-BOLIVAR"]
[null,null,null,null,null,"C2920 - Fabricación de carrocerías para vehículos automotores; fabricación de remolques y semirremolques",null,null,null,null,null,null,null,null,null,null,null,"CARMEN-DE-CARUPA-CUNDINAMARCA"]
[null,null,null,null,null,"C2930 - Fabricación de partes, piezas (autopartes) y accesorios (lujos) para vehículos automotores",null,null,null,null,null,null,null,null,null,null,null,"CARMEN-DE-VIBORAL-ANTIOQUIA"]
[null,null,null,null,null,"C3011 - Construcción de barcos y de estructuras flotantes",null,null,null,null,null,null,null,null,null,null,null,"CARMEN-DEL-DARIEN-CHOCO"]
[null,null,null,null,null,"C3012 - Construcción de embarcaciones de recreo y deporte",null,null,null,null,null,null,null,null,null,null,null,"CAROLINA-ANTIOQUIA"]
[null,null,null,null,null,"C3020 - Fabricación de locomotoras y de material rodante para ferrocarriles",null,null,null,null,null,null,null,null,null,null,null,"CARTAGENA-BOLIVAR"]
[null,null,null,null,null,"C3030 - Fabricación de aeronaves, naves espaciales y de maquinaria conexa",null,null,null,null,null,null,null,null,null,null,null,"CARTAGENA-DEL-CHAIRA-CAQUETA"]
[null,null,null,null,null,"C3040 - Fabricación de vehículos militares de combate",null,null,null,null,null,null,null,null,null,null,null,"CARTAGO-VALLE"]
[null,null,null,null,null,"C3091 - Fabricación de motocicletas",null,null,null,null,null,null,null,null,null,null,null,"CARURU-VAUPES"]
[null,null,null,null,null,"C3092 - Fabricación de bicicletas y de sillas de ruedas para personas con discapacidad",null,null,null,null,null,null,null,null,null,null,null,"CASABIANCA-TOLIMA"]
[null,null,null,null,null,"C3099 - Fabricación de otros tipos de equipo de transporte n.c.p.",null,null,null,null,null,null,null,null,null,null,null,"CASTILLA-LA-NUEVA-META"]
[null,null,null,null,null,"C3110 - Fabricación de muebles",null,null,null,null,null,null,null,null,null,null,null,"CAUCASIA-ANTIOQUIA"]
[null,null,null,null,null,"C3120 - Fabricación de colchones y somieres",null,null,null,null,null,null,null,null,null,null,null,"CEPITA-SANTANDER"]
[null,null,null,null,null,"C3210 - Fabricación de joyas, bisutería y artículos conexos",null,null,null,null,null,null,null,null,null,null,null,"CERETE-CORDOBA"]
[null,null,null,null,null,"C3220 - Fabricación de instrumentos musicales",null,null,null,null,null,null,null,null,null,null,null,"CERINZA-BOYACA"]
[null,null,null,null,null,"C3230 - Fabricación de artículos y equipo para la práctica del deporte",null,null,null,null,null,null,null,null,null,null,null,"CERRITO-SANTANDER"]
[null,null,null,null,null,"C3240 - Fabricación de juegos, juguetes y rompecabezas",null,null,null,null,null,null,null,null,null,null,null,"CERRO-DE-SAN-ANTONIO-MAGDALENA"]
[null,null,null,null,null,"C3250 - Fabricación de instrumentos, aparatos y materiales médicos y odontológicos (incluido mobiliario)",null,null,null,null,null,null,null,null,null,null,null,"CHACHAGÜÍ-NARINO"]
[null,null,null,null,null,"C3290 - Otras industrias manufactureras n.c.p.",null,null,null,null,null,null,null,null,null,null,null,"CHAGUANI-CUNDINAMARCA"]
[null,null,null,null,null,"C3311 - Mantenimiento y reparación especializado de productos elaborados en metal",null,null,null,null,null,null,null,null,null,null,null,"CHALAN-SUCRE"]
[null,null,null,null,null,"C3312 - Mantenimiento y reparación especializado de maquinaria y equipo",null,null,null,null,null,null,null,null,null,null,null,"CHAMEZA-CASANARE"]
[null,null,null,null,null,"C3313 - Mantenimiento y reparación especializado de equipo electrónico y óptico",null,null,null,null,null,null,null,null,null,null,null,"CHAPARRAL-TOLIMA"]
[null,null,null,null,null,"C3314 - Mantenimiento y reparación especializado de equipo eléctrico",null,null,null,null,null,null,null,null,null,null,null,"CHARALA-SANTANDER"]
[null,null,null,null,null,"C3315 - Mantenimiento y reparación especializado de equipo de transporte, excepto los vehículos automotores, motocicletas y bicicletas",null,null,null,null,null,null,null,null,null,null,null,"CHARTA-SANTANDER"]
[null,null,null,null,null,"C3319 - Mantenimiento y reparación de otros tipos de equipos y sus componentes n.c.p.",null,null,null,null,null,null,null,null,null,null,null,"CHIA-CUNDINAMARCA"]
[null,null,null,null,null,"C3320 - Instalación especializada de maquinaria y equipo industrial",null,null,null,null,null,null,null,null,null,null,null,"CHIGORODO-ANTIOQUIA"]
[null,null,null,null,null,"D3511 - Generación de energía eléctrica",null,null,null,null,null,null,null,null,null,null,null,"CHIMA-CORDOBA"]
[null,null,null,null,null,"D3512 - Transmisión de energía eléctrica",null,null,null,null,null,null,null,null,null,null,null,"CHIMA-SANTANDER"]
[null,null,null,null,null,"D3513 - Distribución de energía eléctrica",null,null,null,null,null,null,null,null,null,null,null,"CHIMICHAGUA-CESAR"]
[null,null,null,null,null,"D3514 - Comercialización de energía eléctrica",null,null,null,null,null,null,null,null,null,null,null,"CHINACOTA-NORTE DE SANTANDER"]
[null,null,null,null,null,"D3520 - Producción de gas; distribución de combustibles gaseosos por tuberías",null,null,null,null,null,null,null,null,null,null,null,"CHINAVITA-BOYACA"]
[null,null,null,null,null,"D3530 - Suministro de vapor y aire acondicionado",null,null,null,null,null,null,null,null,null,null,null,"CHINCHINA-CALDAS"]
[null,null,null,null,null,"E3600 - Captación, tratamiento y distribución de agua",null,null,null,null,null,null,null,null,null,null,null,"CHINU-CORDOBA"]
[null,null,null,null,null,"E3700 - Evacuación y tratamiento de aguas residuales",null,null,null,null,null,null,null,null,null,null,null,"CHIPAQUE-CUNDINAMARCA"]
[null,null,null,null,null,"E3811 - Recolección de desechos no peligrosos",null,null,null,null,null,null,null,null,null,null,null,"CHIPATA-SANTANDER"]
[null,null,null,null,null,"E3812 - Recolección de desechos peligrosos",null,null,null,null,null,null,null,null,null,null,null,"CHIQUINQUIRA-BOYACA"]
[null,null,null,null,null,"E3821 - Tratamiento y disposición de desechos no peligrosos",null,null,null,null,null,null,null,null,null,null,null,"CHIQUIZA-BOYACA"]
[null,null,null,null,null,"E3822 - Tratamiento y disposición de desechos peligrosos",null,null,null,null,null,null,null,null,null,null,null,"CHIRIGUANA-CESAR"]
[null,null,null,null,null,"E3830 - Recuperación de materiales",null,null,null,null,null,null,null,null,null,null,null,"CHISCAS-BOYACA"]
[null,null,null,null,null,"E3900 - Actividades de saneamiento ambiental y otros servicios de gestión de desechos",null,null,null,null,null,null,null,null,null,null,null,"CHITA-BOYACA"]
[null,null,null,null,null,"F4111 - Construcción de edificios residenciales",null,null,null,null,null,null,null,null,null,null,null,"CHITAGA-NORTE DE SANTANDER"]
[null,null,null,null,null,"F4112 - Construcción de edificios no residenciales",null,null,null,null,null,null,null,null,null,null,null,"CHITARAQUE-BOYACA"]
[null,null,null,null,null,"F4210 - Construcción de carreteras y vías de ferrocarril",null,null,null,null,null,null,null,null,null,null,null,"CHIVATA-BOYACA"]
[null,null,null,null,null,"F4220 - Construcción de proyectos de servicio público",null,null,null,null,null,null,null,null,null,null,null,"CHIVOLO-MAGDALENA"]
[null,null,null,null,null,"F4290 - Construcción de otras obras de ingeniería civil",null,null,null,null,null,null,null,null,null,null,null,"CHIVOR-BOYACA"]
[null,null,null,null,null,"F4311 - Demolición",null,null,null,null,null,null,null,null,null,null,null,"CHOACHI-CUNDINAMARCA"]
[null,null,null,null,null,"F4312 - Preparación del terreno",null,null,null,null,null,null,null,null,null,null,null,"CHOCONTA-CUNDINAMARCA"]
[null,null,null,null,null,"F4321 - Instalaciones eléctricas",null,null,null,null,null,null,null,null,null,null,null,"CICUCO-BOLIVAR"]
[null,null,null,null,null,"F4322 - Instalaciones de fontanería, calefacción y aire acondicionado",null,null,null,null,null,null,null,null,null,null,null,"CIENAGA-BOYACA"]
[null,null,null,null,null,"F4329 - Otras instalaciones especializadas",null,null,null,null,null,null,null,null,null,null,null,"CIENAGA-DE-ORO-CORDOBA"]
[null,null,null,null,null,"F4330 - Terminación y acabado de edificios y obras de ingeniería civil",null,null,null,null,null,null,null,null,null,null,null,"CIENAGA-MAGDALENA"]
[null,null,null,null,null,"F4390 - Otras actividades especializadas para la construcción de edificios y obras de ingeniería civil",null,null,null,null,null,null,null,null,null,null,null,"CIMITARRA-SANTANDER"]
[null,null,null,null,null,"G4511 - Comercio de vehículos automotores nuevos",null,null,null,null,null,null,null,null,null,null,null,"CIRCASIA-QUINDIO"]
[null,null,null,null,null,"G4512 - Comercio de vehículos automotores usados",null,null,null,null,null,null,null,null,null,null,null,"CISNEROS-ANTIOQUIA"]
[null,null,null,null,null,"G4520 - Mantenimiento y reparación de vehículos automotores",null,null,null,null,null,null,null,null,null,null,null,"CLEMENCIA-BOLIVAR"]
[null,null,null,null,null,"G4530 - Comercio de partes, piezas (autopartes) y accesorios (lujos) para vehículos automotores",null,null,null,null,null,null,null,null,null,null,null,"COCORNA-ANTIOQUIA"]
[null,null,null,null,null,"G4541 - Comercio de motocicletas y de sus partes, piezas y accesorios",null,null,null,null,null,null,null,null,null,null,null,"COELLO-TOLIMA"]
[null,null,null,null,null,"G4542 - Mantenimiento y reparación de motocicletas y de sus partes y piezas",null,null,null,null,null,null,null,null,null,null,null,"COGUA-CUNDINAMARCA"]
[null,null,null,null,null,"G4610 - Comercio al por mayor a cambio de una retribución o por contrata",null,null,null,null,null,null,null,null,null,null,null,"COLOMBIA-HUILA"]
[null,null,null,null,null,"G4620 - Comercio al por mayor de materias primas agropecuarias; animales vivos",null,null,null,null,null,null,null,null,null,null,null,"COLON-NARINO"]
[null,null,null,null,null,"G4631 - Comercio al por mayor de productos alimenticios",null,null,null,null,null,null,null,null,null,null,null,"COLON-PUTUMAYO"]
[null,null,null,null,null,"G4632 - Comercio al por mayor de bebidas y tabaco",null,null,null,null,null,null,null,null,null,null,null,"COLOSO-SUCRE"]
[null,null,null,null,null,"G4641 - Comercio al por mayor de productos textiles, productos confeccionados para uso doméstico",null,null,null,null,null,null,null,null,null,null,null,"COMBITA-BOYACA"]
[null,null,null,null,null,"G4642 - Comercio al por mayor de prendas de vestir",null,null,null,null,null,null,null,null,null,null,null,"CONCEPCION-ANTIOQUIA"]
[null,null,null,null,null,"G4643 - Comercio al por mayor de calzado",null,null,null,null,null,null,null,null,null,null,null,"CONCEPCION-SANTANDER"]
[null,null,null,null,null,"G4644 - Comercio al por mayor de aparatos y equipo de uso doméstico",null,null,null,null,null,null,null,null,null,null,null,"CONCORDIA-ANTIOQUIA"]
[null,null,null,null,null,"G4645 - Comercio al por mayor de productos farmacéuticos, medicinales, cosméticos y de tocador",null,null,null,null,null,null,null,null,null,null,null,"CONCORDIA-MAGDALENA"]
[null,null,null,null,null,"G4649 - Comercio al por mayor de otros utensilios domésticos n.c.p.",null,null,null,null,null,null,null,null,null,null,null,"CONDOTO-CHOCO"]
[null,null,null,null,null,"G4651 - Comercio al por mayor de computadores, equipo periférico y programas de informática",null,null,null,null,null,null,null,null,null,null,null,"CONFINES-SANTANDER"]
[null,null,null,null,null,"G4652 - Comercio al por mayor de equipo, partes y piezas electrónicos y de telecomunicaciones",null,null,null,null,null,null,null,null,null,null,null,"CONSACA-NARINO"]
[null,null,null,null,null,"G4653 - Comercio al por mayor de maquinaria y equipo agropecuarios",null,null,null,null,null,null,null,null,null,null,null,"CONTADERO-NARINO"]
[null,null,null,null,null,"G4659 - Comercio al por mayor de otros tipos de maquinaria y equipo n.c.p.",null,null,null,null,null,null,null,null,null,null,null,"CONTRATACION-SANTANDER"]
[null,null,null,null,null,"G4661 - Comercio al por mayor de combustibles sólidos, líquidos, gaseosos y productos conexos",null,null,null,null,null,null,null,null,null,null,null,"CONVENCION-NORTE DE SANTANDER"]
[null,null,null,null,null,"G4662 - Comercio al por mayor de metales y productos metalíferos",null,null,null,null,null,null,null,null,null,null,null,"COPACABANA-ANTIOQUIA"]
[null,null,null,null,null,"G4663 - Comercio al por mayor de materiales de construcción, artículos de ferretería, pinturas, productos de vidrio, equipo y materiales de fontanería y calefacción",null,null,null,null,null,null,null,null,null,null,null,"COPER-BOYACA"]
[null,null,null,null,null,"G4664 - Comercio al por mayor de productos químicos básicos, cauchos y plásticos en formas primarias y productos químicos de uso agropecuario",null,null,null,null,null,null,null,null,null,null,null,"CORDOBA-BOLIVAR"]
[null,null,null,null,null,"G4665 - Comercio al por mayor de desperdicios, desechos y chatarra",null,null,null,null,null,null,null,null,null,null,null,"CORDOBA-NARINO"]
[null,null,null,null,null,"G4669 - Comercio al por mayor de otros productos n.c.p.",null,null,null,null,null,null,null,null,null,null,null,"CORDOBA-QUINDIO"]
[null,null,null,null,null,"G4690 - Comercio al por mayor no especializado",null,null,null,null,null,null,null,null,null,null,null,"CORINTO-CAUCA"]
[null,null,null,null,null,"G4711 - Comercio al por menor en establecimientos no especializados con surtido compuesto principalmente por alimentos, bebidas o tabaco",null,null,null,null,null,null,null,null,null,null,null,"COROMORO-SANTANDER"]
[null,null,null,null,null,"G4719 - Comercio al por menor en establecimientos no especializados, con surtido compuesto principalmente por productos diferentes de alimentos (víveres en general), bebidas y tabaco",null,null,null,null,null,null,null,null,null,null,null,"COROZAL-SUCRE"]
[null,null,null,null,null,"G4721 - Comercio al por menor de productos agrícolas para el consumo en establecimientos especializados",null,null,null,null,null,null,null,null,null,null,null,"CORRALES-BOYACA"]
[null,null,null,null,null,"G4722 - Comercio al por menor de leche, productos lácteos y huevos, en establecimientos especializados",null,null,null,null,null,null,null,null,null,null,null,"COTA-CUNDINAMARCA"]
[null,null,null,null,null,"G4723 - Comercio al por menor de carnes (incluye aves de corral), productos cárnicos, pescados y productos de mar, en establecimientos especializados",null,null,null,null,null,null,null,null,null,null,null,"COTORRA-CORDOBA"]
[null,null,null,null,null,"G4724 - Comercio al por menor de bebidas y productos del tabaco, en establecimientos especializados",null,null,null,null,null,null,null,null,null,null,null,"COVARACHIA-BOYACA"]
[null,null,null,null,null,"G4729 - Comercio al por menor de otros productos alimenticios n.c.p., en establecimientos especializados",null,null,null,null,null,null,null,null,null,null,null,"COVEÑAS-SUCRE"]
[null,null,null,null,null,"G4731 - Comercio al por menor de combustible para automotores",null,null,null,null,null,null,null,null,null,null,null,"COYAIMA-TOLIMA"]
[null,null,null,null,null,"G4732 - Comercio al por menor de lubricantes (aceites, grasas), aditivos y productos de limpieza para vehículos automotores",null,null,null,null,null,null,null,null,null,null,null,"CRAVO-NORTE-ARAUCA"]
[null,null,null,null,null,"G4741 - Comercio al por menor de computadores, equipos periféricos, programas de informática y equipos de telecomunicaciones en establecimientos especializados",null,null,null,null,null,null,null,null,null,null,null,"CUASPUD-NARINO"]
[null,null,null,null,null,"G4742 - Comercio al por menor de equipos y aparatos de sonido y de video, en establecimientos especializados",null,null,null,null,null,null,null,null,null,null,null,"CUBARA-BOYACA"]
[null,null,null,null,null,"G4751 - Comercio al por menor de productos textiles en establecimientos especializados",null,null,null,null,null,null,null,null,null,null,null,"CUBARRAL-META"]
[null,null,null,null,null,"G4752 - Comercio al por menor de artículos de ferretería, pinturas y productos de vidrio en establecimientos especializados",null,null,null,null,null,null,null,null,null,null,null,"CUCAITA-BOYACA"]
[null,null,null,null,null,"G4753 - Comercio al por menor de tapices, alfombras y cubrimientos para paredes y pisos en establecimientos especializados",null,null,null,null,null,null,null,null,null,null,null,"CUCUNUBA-CUNDINAMARCA"]
[null,null,null,null,null,"G4754 - Comercio al por menor de electrodomésticos y gasodomésticos de uso doméstico, muebles y equipos de iluminación",null,null,null,null,null,null,null,null,null,null,null,"CUCUTA-NORTE DE SANTANDER"]
[null,null,null,null,null,"G4755 - Comercio al por menor de artículos y utensilios de uso doméstico",null,null,null,null,null,null,null,null,null,null,null,"CUCUTILLA-NORTE DE SANTANDER"]
[null,null,null,null,null,"G4759 - Comercio al por menor de otros artículos domésticos en establecimientos especializados",null,null,null,null,null,null,null,null,null,null,null,"CUITIVA-BOYACA"]
[null,null,null,null,null,"G4761 - Comercio al por menor de libros, periódicos, materiales y artículos de papelería y escritorio, en establecimientos especializados",null,null,null,null,null,null,null,null,null,null,null,"CUMARAL-META"]
[null,null,null,null,null,"G4762 - Comercio al por menor de artículos deportivos, en establecimientos especializados",null,null,null,null,null,null,null,null,null,null,null,"CUMBAL-NARINO"]
[null,null,null,null,null,"G4769 - Comercio al por menor de otros artículos culturales y de entretenimiento n.c.p. en establecimientos especializados",null,null,null,null,null,null,null,null,null,null,null,"CUMBITARA-NARINO"]
[null,null,null,null,null,"G4771 - Comercio al por menor de prendas de vestir y sus accesorios (incluye artículos de piel) en establecimientos especializados",null,null,null,null,null,null,null,null,null,null,null,"CUNDAY-TOLIMA"]
[null,null,null,null,null,"G4772 - Comercio al por menor de todo tipo de calzado y artículos de cuero y sucedáneos del cuero en establecimientos especializados",null,null,null,null,null,null,null,null,null,null,null,"CURILLO-CAQUETA"]
[null,null,null,null,null,"G4773 - Comercio al por menor de productos farmacéuticos y medicinales, cosméticos y artículos de tocador en establecimientos especializados",null,null,null,null,null,null,null,null,null,null,null,"CURIMBAO-VICHADA"]
[null,null,null,null,null,"G4774 - Comercio al por menor de otros productos nuevos en establecimientos especializados",null,null,null,null,null,null,null,null,null,null,null,"CURITI-SANTANDER"]
[null,null,null,null,null,"G4775 - Comercio al por menor de artículos de segunda mano",null,null,null,null,null,null,null,null,null,null,null,"CURUMANI-CESAR"]
[null,null,null,null,null,"G4781 - Comercio al por menor de alimentos, bebidas y tabaco, en puestos de venta móviles",null,null,null,null,null,null,null,null,null,null,null,"CÉRTEGUI-CHOCO"]
[null,null,null,null,null,"G4782 - Comercio al por menor de productos textiles, prendas de vestir y calzado, en puestos de venta móviles",null,null,null,null,null,null,null,null,null,null,null,"DABEIBA-ANTIOQUIA"]
[null,null,null,null,null,"G4789 - Comercio al por menor de otros productos en puestos de venta móviles",null,null,null,null,null,null,null,null,null,null,null,"DAGUA-VALLE"]
[null,null,null,null,null,"G4791 - Comercio al por menor realizado a través de internet",null,null,null,null,null,null,null,null,null,null,null,"DIBULLA-LA GUAJIRA"]
[null,null,null,null,null,"G4792 - Comercio al por menor realizado a través de casas de venta o por correo",null,null,null,null,null,null,null,null,null,null,null,"DISTRACCION-LA GUAJIRA"]
[null,null,null,null,null,"G4799 - Otros tipos de comercio al por menor no realizado en establecimientos, puestos de venta o mercados",null,null,null,null,null,null,null,null,null,null,null,"DOLORES-TOLIMA"]
[null,null,null,null,null,"H4911 - Transporte férreo de pasajeros",null,null,null,null,null,null,null,null,null,null,null,"DON-MATIAS-ANTIOQUIA"]
[null,null,null,null,null,"H4912 - Transporte férreo de carga",null,null,null,null,null,null,null,null,null,null,null,"DOS-QUEBRADAS-RISARALDA"]
[null,null,null,null,null,"H4921 - Transporte de pasajeros",null,null,null,null,null,null,null,null,null,null,null,"DUITAMA-BOYACA"]
[null,null,null,null,null,"H4922 - Transporte mixto",null,null,null,null,null,null,null,null,null,null,null,"DURANIA-NORTE DE SANTANDER"]
[null,null,null,null,null,"H4923 - Transporte de carga por carretera",null,null,null,null,null,null,null,null,null,null,null,"EBEJICO-ANTIOQUIA"]
[null,null,null,null,null,"H4930 - Transporte por tuberías",null,null,null,null,null,null,null,null,null,null,null,"EL-AGUILA-VALLE"]
[null,null,null,null,null,"H5011 - Transporte de pasajeros marítimo y de cabotaje",null,null,null,null,null,null,null,null,null,null,null,"EL-BAGRE-ANTIOQUIA"]
[null,null,null,null,null,"H5012 - Transporte de carga marítimo y de cabotaje",null,null,null,null,null,null,null,null,null,null,null,"EL-BANCO-MAGDALENA"]
[null,null,null,null,null,"H5021 - Transporte fluvial de pasajeros",null,null,null,null,null,null,null,null,null,null,null,"EL-CAIRO-VALLE"]
[null,null,null,null,null,"H5022 - Transporte fluvial de carga",null,null,null,null,null,null,null,null,null,null,null,"EL-CALVARIO-META"]
[null,null,null,null,null,"H5111 - Transporte aéreo nacional de pasajeros",null,null,null,null,null,null,null,null,null,null,null,"EL-CANTÓN-DEL-SAN-PABLO-CHOCO"]
[null,null,null,null,null,"H5112 - Transporte aéreo internacional de pasajeros",null,null,null,null,null,null,null,null,null,null,null,"EL-CARMEN-CHOCO"]
[null,null,null,null,null,"H5121 - Transporte aéreo nacional de carga",null,null,null,null,null,null,null,null,null,null,null,"EL-CARMEN-NORTE DE SANTANDER"]
[null,null,null,null,null,"H5122 - Transporte aéreo internacional de carga",null,null,null,null,null,null,null,null,null,null,null,"EL-CARMEN-SANTANDER"]
[null,null,null,null,null,"H5210 - Almacenamiento y depósito",null,null,null,null,null,null,null,null,null,null,null,"EL-CASTILLO-META"]
[null,null,null,null,null,"H5221 - Actividades de estaciones, vías y servicios complementarios para el transporte terrestre",null,null,null,null,null,null,null,null,null,null,null,"EL-CERRITO-VALLE"]
[null,null,null,null,null,"H5222 - Actividades de puertos y servicios complementarios para el transporte acuático",null,null,null,null,null,null,null,null,null,null,null,"EL-CHARCO-NARINO"]
[null,null,null,null,null,"H5223 - Actividades de aeropuertos, servicios de navegación aérea y demás actividades conexas al transporte aéreo",null,null,null,null,null,null,null,null,null,null,null,"EL-COCUY-BOYACA"]
[null,null,null,null,null,"H5224 - Manipulación de carga",null,null,null,null,null,null,null,null,null,null,null,"EL-COLEGIO-CUNDINAMARCA"]
[null,null,null,null,null,"H5229 - Otras actividades complementarias al transporte",null,null,null,null,null,null,null,null,null,null,null,"EL-COPEY-CESAR"]
[null,null,null,null,null,"H5310 - Actividades postales nacionales",null,null,null,null,null,null,null,null,null,null,null,"EL-DONCELLO-CAQUETA"]
[null,null,null,null,null,"H5320 - Actividades de mensajería",null,null,null,null,null,null,null,null,null,null,null,"EL-DORADO-META"]
[null,null,null,null,null,"I5511 - Alojamiento en hoteles",null,null,null,null,null,null,null,null,null,null,null,"EL-DOVIO-VALLE"]
[null,null,null,null,null,"I5512 - Alojamiento en apartahoteles",null,null,null,null,null,null,null,null,null,null,null,"EL-ENCANTO-AMAZONAS"]
[null,null,null,null,null,"I5513 - Alojamiento en centros vacacionales",null,null,null,null,null,null,null,null,null,null,null,"EL-ESPINO-BOYACA"]
[null,null,null,null,null,"I5514 - Alojamiento rural",null,null,null,null,null,null,null,null,null,null,null,"EL-GUACAMAYO-SANTANDER"]
[null,null,null,null,null,"I5519 - Otros tipos de alojamientos para visitantes",null,null,null,null,null,null,null,null,null,null,null,"EL-GUAMO-BOLIVAR"]
[null,null,null,null,null,"I5520 - Actividades de zonas de camping y parques para vehículos recreacionales",null,null,null,null,null,null,null,null,null,null,null,"EL-LITORAL-DEL-SAN-JUAN-CHOCO"]
[null,null,null,null,null,"I5530 - Servicio por horas",null,null,null,null,null,null,null,null,null,null,null,"EL-MOLINO-LA GUAJIRA"]
[null,null,null,null,null,"I5590 - Otros tipos de alojamiento n.c.p.",null,null,null,null,null,null,null,null,null,null,null,"EL-PASO-CESAR"]
[null,null,null,null,null,"I5611 - Expendio a la mesa de comidas preparadas",null,null,null,null,null,null,null,null,null,null,null,"EL-PAUJIL-CAQUETA"]
[null,null,null,null,null,"I5612 - Expendio por autoservicio de comidas preparadas",null,null,null,null,null,null,null,null,null,null,null,"EL-PENON-CUNDINAMARCA"]
[null,null,null,null,null,"I5613 - Expendio de comidas preparadas en cafeterías",null,null,null,null,null,null,null,null,null,null,null,"EL-PEÑOL-NARINO"]
[null,null,null,null,null,"I5619 - Otros tipos de expendio de comidas preparadas n.c.p.",null,null,null,null,null,null,null,null,null,null,null,"EL-PEÑON-SANTANDER"]
[null,null,null,null,null,"I5621 - Catering para eventos",null,null,null,null,null,null,null,null,null,null,null,"EL-PEÑÓN-BOLIVAR"]
[null,null,null,null,null,"I5629 - Actividades de otros servicios de comidas",null,null,null,null,null,null,null,null,null,null,null,"EL-PINON-MAGDALENA"]
[null,null,null,null,null,"I5630 - Expendio de bebidas alcohólicas para el consumo dentro del establecimiento",null,null,null,null,null,null,null,null,null,null,null,"EL-PLAYON-SANTANDER"]
[null,null,null,null,null,"J5811 - Edición de libros",null,null,null,null,null,null,null,null,null,null,null,"EL-RETORNO-GUAVIARE"]
[null,null,null,null,null,"J5812 - Edición de directorios y listas de correo",null,null,null,null,null,null,null,null,null,null,null,"EL-RETÉN-MAGDALENA"]
[null,null,null,null,null,"J5813 - Edición de periódicos, revistas y otras publicaciones periódicas",null,null,null,null,null,null,null,null,null,null,null,"EL-ROBLE-SUCRE"]
[null,null,null,null,null,"J5819 - Otros trabajos de edición",null,null,null,null,null,null,null,null,null,null,null,"EL-ROSAL-CUNDINAMARCA"]
[null,null,null,null,null,"J5820 - Edición de programas de informática (software)",null,null,null,null,null,null,null,null,null,null,null,"EL-ROSARIO-NARINO"]
[null,null,null,null,null,"J5911 - Actividades de producción de películas cinematográficas, videos, programas, anuncios y comerciales de televisión",null,null,null,null,null,null,null,null,null,null,null,"EL-TABLON-NARINO"]
[null,null,null,null,null,"J5912 - Actividades de posproducción de películas cinematográficas, videos, programas, anuncios y comerciales de televisión",null,null,null,null,null,null,null,null,null,null,null,"EL-TAMBO-CAUCA"]
[null,null,null,null,null,"J5913 - Actividades de distribución de películas cinematográficas, videos, programas, anuncios y comerciales de televisión",null,null,null,null,null,null,null,null,null,null,null,"EL-TAMBO-NARINO"]
[null,null,null,null,null,"J5914 - Actividades de exhibición de películas cinematográficas y videos",null,null,null,null,null,null,null,null,null,null,null,"EL-TARRA-NORTE-NORTE DE SANTANDER"]
[null,null,null,null,null,"J5920 - Actividades de grabación de sonido y edición de música",null,null,null,null,null,null,null,null,null,null,null,"EL-ZULIA-NORTE DE SANTANDER"]
[null,null,null,null,null,"J6010 - Actividades de programación y transmisión en el servicio de radiodifusión sonora",null,null,null,null,null,null,null,null,null,null,null,"ELIAS-HUILA"]
[null,null,null,null,null,"J6020 - Actividades de programación y transmisión de televisión",null,null,null,null,null,null,null,null,null,null,null,"ENCINO-SANTANDER"]
[null,null,null,null,null,"J6110 - Actividades de telecomunicaciones alámbricas",null,null,null,null,null,null,null,null,null,null,null,"ENCISO-SANTANDER"]
[null,null,null,null,null,"J6120 - Actividades de telecomunicaciones inalámbricas",null,null,null,null,null,null,null,null,null,null,null,"ENGATIVA-BOGOTA D.C."]
[null,null,null,null,null,"J6130 - Actividades de telecomunicación satelital",null,null,null,null,null,null,null,null,null,null,null,"ENTRERRIOS-ANTIOQUIA"]
[null,null,null,null,null,"J6190 - Otras actividades de telecomunicaciones",null,null,null,null,null,null,null,null,null,null,null,"ENVIGADO-ANTIOQUIA"]
[null,null,null,null,null,"J6201 - Actividades de desarrollo de sistemas informáticos (planificación, análisis, diseño, programación, pruebas)",null,null,null,null,null,null,null,null,null,null,null,"ESPINAL-TOLIMA"]
[null,null,null,null,null,"J6202 - Actividades de consultoría informática y actividades de administración de instalaciones informáticas",null,null,null,null,null,null,null,null,null,null,null,"FACATATIVA-CUNDINAMARCA"]
[null,null,null,null,null,"J6209 - Otras actividades de tecnologías de información y actividades de servicios informáticos",null,null,null,null,null,null,null,null,null,null,null,"FALAN-TOLIMA"]
[null,null,null,null,null,"J6311 - Procesamiento de datos, alojamiento (hosting) y actividades relacionadas",null,null,null,null,null,null,null,null,null,null,null,"FILADELFIA-CALDAS"]
[null,null,null,null,null,"J6312 - Portales web",null,null,null,null,null,null,null,null,null,null,null,"FILANDIA-QUINDIO"]
[null,null,null,null,null,"J6391 - Actividades de agencias de noticias",null,null,null,null,null,null,null,null,null,null,null,"FIRAVITOBA-BOYACA"]
[null,null,null,null,null,"J6399 - Otras actividades de servicio de información n.c.p.",null,null,null,null,null,null,null,null,null,null,null,"FLANDES-TOLIMA"]
[null,null,null,null,null,"K6411 - Banco Central",null,null,null,null,null,null,null,null,null,null,null,"FLORENCIA-CAQUETA"]
[null,null,null,null,null,"K6412 - Bancos comerciales",null,null,null,null,null,null,null,null,null,null,null,"FLORENCIA-CAUCA"]
[null,null,null,null,null,"K6421 - Actividades de las corporaciones financieras",null,null,null,null,null,null,null,null,null,null,null,"FLORESTA-BOYACA"]
[null,null,null,null,null,"K6422 - Actividades de las compañías de financiamiento",null,null,null,null,null,null,null,null,null,null,null,"FLORIAN-SANTANDER"]
[null,null,null,null,null,"K6423 - Banca de segundo piso",null,null,null,null,null,null,null,null,null,null,null,"FLORIDA-VALLE"]
[null,null,null,null,null,"K6424 - Actividades de las cooperativas financieras",null,null,null,null,null,null,null,null,null,null,null,"FLORIDABLANCA-SANTANDER"]
[null,null,null,null,null,"K6431 - Fideicomisos, fondos y entidades financieras similares",null,null,null,null,null,null,null,null,null,null,null,"FOMEQUE-CUNDINAMARCA"]
[null,null,null,null,null,"K6432 - Fondos de cesantías",null,null,null,null,null,null,null,null,null,null,null,"FONSECA-LA GUAJIRA"]
[null,null,null,null,null,"K6491 - Leasing financiero (arrendamiento financiero)",null,null,null,null,null,null,null,null,null,null,null,"FONTIBON-BOGOTA D.C."]
[null,null,null,null,null,"K6492 - Actividades financieras de fondos de empleados y otras formas asociativas del sector solidario",null,null,null,null,null,null,null,null,null,null,null,"FORTUL-ARAUCA"]
[null,null,null,null,null,"K6493 - Actividades de compra de cartera o factoring",null,null,null,null,null,null,null,null,null,null,null,"FOSCA-CUNDINAMARCA"]
[null,null,null,null,null,"K6494 - Otras actividades de distribución de fondos",null,null,null,null,null,null,null,null,null,null,null,"FRANCISCO-PIZARRO-NARINO"]
[null,null,null,null,null,"K6495 - Instituciones especiales oficiales",null,null,null,null,null,null,null,null,null,null,null,"FREDONIA-ANTIOQUIA"]
[null,null,null,null,null,"K6499 - Otras actividades de servicio financiero, excepto las de seguros y pensiones n.c.p.",null,null,null,null,null,null,null,null,null,null,null,"FRESNO-TOLIMA"]
[null,null,null,null,null,"K6511 - Seguros generales",null,null,null,null,null,null,null,null,null,null,null,"FRONTINO-ANTIOQUIA"]
[null,null,null,null,null,"K6512 - Seguros de vida",null,null,null,null,null,null,null,null,null,null,null,"FUENTE-DE-ORO-META"]
[null,null,null,null,null,"K6513 - Reaseguros",null,null,null,null,null,null,null,null,null,null,null,"FUNDACION-MAGDALENA"]
[null,null,null,null,null,"K6514 - Capitalización",null,null,null,null,null,null,null,null,null,null,null,"FUNES-NARINO"]
[null,null,null,null,null,"K6521 - Servicios de seguros sociales de salud",null,null,null,null,null,null,null,null,null,null,null,"FUNZA-CUNDINAMARCA"]
[null,null,null,null,null,"K6522 - Servicios de seguros sociales de riesgos profesionales",null,null,null,null,null,null,null,null,null,null,null,"FUQUENE-CUNDINAMARCA"]
[null,null,null,null,null,"K6531 - Régimen de prima media con prestación definida (RPM)",null,null,null,null,null,null,null,null,null,null,null,"FUSAGASUGA-CUNDINAMARCA"]
[null,null,null,null,null,"K6532 - Régimen de ahorro individual (RAI)",null,null,null,null,null,null,null,null,null,null,null,"GACHALA-CUNDINAMARCA"]
[null,null,null,null,null,"K6611 - Administración de mercados financieros",null,null,null,null,null,null,null,null,null,null,null,"GACHANCIPA-CUNDINAMARCA"]
[null,null,null,null,null,"K6612 - Corretaje de valores y de contratos de productos básicos",null,null,null,null,null,null,null,null,null,null,null,"GACHANTIVA-BOYACA"]
[null,null,null,null,null,"K6613 - Otras actividades relacionadas con el mercado de valores",null,null,null,null,null,null,null,null,null,null,null,"GACHETA-CUNDINAMARCA"]
[null,null,null,null,null,"K6614 - Actividades de las casas de cambio",null,null,null,null,null,null,null,null,null,null,null,"GALAN-SANTANDER"]
[null,null,null,null,null,"K6615 - Actividades de los profesionales de compra y venta de divisas",null,null,null,null,null,null,null,null,null,null,null,"GALAPA-ATLANTICO"]
[null,null,null,null,null,"K6619 - Otras actividades auxiliares de las actividades de servicios financieros n.c.p.",null,null,null,null,null,null,null,null,null,null,null,"GALERAS-SUCRE"]
[null,null,null,null,null,"K6621 - Actividades de agentes y corredores de seguros",null,null,null,null,null,null,null,null,null,null,null,"GAMA-CUNDINAMARCA"]
[null,null,null,null,null,"K6629 - Evaluación de riesgos y daños, y otras actividades de servicios auxiliares",null,null,null,null,null,null,null,null,null,null,null,"GAMARRA-CESAR"]
[null,null,null,null,null,"K6630 - Actividades de administración de fondos",null,null,null,null,null,null,null,null,null,null,null,"GAMBITA-SANTANDER"]
[null,null,null,null,null,"L6810 - Actividades inmobiliarias realizadas con bienes propios o arrendados",null,null,null,null,null,null,null,null,null,null,null,"GAMEZA-BOYACA"]
[null,null,null,null,null,"L6820 - Actividades inmobiliarias realizadas a cambio de una retribución o por contrata",null,null,null,null,null,null,null,null,null,null,null,"GARAGOA-BOYACA"]
[null,null,null,null,null,"M6910 - Actividades jurídicas",null,null,null,null,null,null,null,null,null,null,null,"GARZON-HUILA"]
[null,null,null,null,null,"M6920 - Actividades de contabilidad, teneduría de libros, auditoría financiera y asesoría tributaria",null,null,null,null,null,null,null,null,null,null,null,"GENOVA-QUINDIO"]
[null,null,null,null,null,"M7010 - Actividades de administración empresarial",null,null,null,null,null,null,null,null,null,null,null,"GIGANTE-HUILA"]
[null,null,null,null,null,"M7020 - Actividades de consultaría de gestión",null,null,null,null,null,null,null,null,null,null,null,"GINEBRA-VALLE"]
[null,null,null,null,null,"M7110 - Actividades de arquitectura e ingeniería y otras actividades conexas de consultoría técnica",null,null,null,null,null,null,null,null,null,null,null,"GIRALDO-ANTIOQUIA"]
[null,null,null,null,null,"M7120 - Ensayos y análisis técnicos",null,null,null,null,null,null,null,null,null,null,null,"GIRARDOT-CUNDINAMARCA"]
[null,null,null,null,null,"M7210 - Investigaciones y desarrollo experimental en el campo de las ciencias naturales y la ingeniería",null,null,null,null,null,null,null,null,null,null,null,"GIRARDOTA-ANTIOQUIA"]
[null,null,null,null,null,"M7220 - Investigaciones y desarrollo experimental en el campo de las ciencias sociales y las humanidades",null,null,null,null,null,null,null,null,null,null,null,"GIRON-SANTANDER"]
[null,null,null,null,null,"M7310 - Publicidad",null,null,null,null,null,null,null,null,null,null,null,"GOMEZ-PLATA-ANTIOQUIA"]
[null,null,null,null,null,"M7320 - Estudios de mercado y realización de encuestas de opinión pública",null,null,null,null,null,null,null,null,null,null,null,"GONZALEZ-CESAR"]
[null,null,null,null,null,"M7410 - Actividades especializadas de diseño",null,null,null,null,null,null,null,null,null,null,null,"GRAMALOTE-NORTE DE SANTANDER"]
[null,null,null,null,null,"M7420 - Actividades de fotografía",null,null,null,null,null,null,null,null,null,null,null,"GRANADA-ANTIOQUIA"]
[null,null,null,null,null,"M7490 - Otras actividades profesionales, científicas y técnicas n.c.p.",null,null,null,null,null,null,null,null,null,null,null,"GRANADA-CUNDINAMARCA"]
[null,null,null,null,null,"M7500 - Actividades veterinarias",null,null,null,null,null,null,null,null,null,null,null,"GRANADA-META"]
[null,null,null,null,null,"N7710 - Alquiler y arrendamiento de vehículos automotores",null,null,null,null,null,null,null,null,null,null,null,"GUACA-SANTANDER"]
[null,null,null,null,null,"N7721 - Alquiler y arrendamiento de equipo recreativo y deportivo",null,null,null,null,null,null,null,null,null,null,null,"GUACAMAYAS-BOYACA"]
[null,null,null,null,null,"N7722 - Alquiler de videos y discos",null,null,null,null,null,null,null,null,null,null,null,"GUACARI-VALLE"]
[null,null,null,null,null,"N7729 - Alquiler y arrendamiento de otros efectos personales y enseres domésticos n.c.p.",null,null,null,null,null,null,null,null,null,null,null,"GUACHENE-CAUCA"]
[null,null,null,null,null,"N7730 - Alquiler y arrendamiento de otros tipos de maquinaria, equipo y bienes tangibles n.c.p.",null,null,null,null,null,null,null,null,null,null,null,"GUACHETA-CUNDINAMARCA"]
[null,null,null,null,null,"N7740 - Arrendamiento de propiedad intelectual y productos similares, excepto obras protegidas por derechos de autor",null,null,null,null,null,null,null,null,null,null,null,"GUACHUCAL-NARINO"]
[null,null,null,null,null,"N7810 - Actividades de agencias de empleo",null,null,null,null,null,null,null,null,null,null,null,"GUADALUPE-ANTIOQUIA"]
[null,null,null,null,null,"N7820 - Actividades de agencias de empleo temporal",null,null,null,null,null,null,null,null,null,null,null,"GUADALUPE-HUILA"]
[null,null,null,null,null,"N7830 - Otras actividades de suministro de recurso humano",null,null,null,null,null,null,null,null,null,null,null,"GUADALUPE-SANTANDER"]
[null,null,null,null,null,"N7911 - Actividades de las agencias de viaje",null,null,null,null,null,null,null,null,null,null,null,"GUADUAS-CUNDINAMARCA"]
[null,null,null,null,null,"N7912 - Actividades de operadores turísticos",null,null,null,null,null,null,null,null,null,null,null,"GUAITARILLA-NARINO"]
[null,null,null,null,null,"N7990 - Otros servicios de reserva y actividades relacionadas",null,null,null,null,null,null,null,null,null,null,null,"GUALMATAN-NARINO"]
[null,null,null,null,null,"N8010 - Actividades de seguridad privada",null,null,null,null,null,null,null,null,null,null,null,"GUAMAL-MAGDALENA"]
[null,null,null,null,null,"N8020 - Actividades de servicios de sistemas de seguridad",null,null,null,null,null,null,null,null,null,null,null,"GUAMAL-META"]
[null,null,null,null,null,"N8030 - Actividades de detectives e investigadores privados",null,null,null,null,null,null,null,null,null,null,null,"GUAMO-TOLIMA"]
[null,null,null,null,null,"N8110 - Actividades combinadas de apoyo a instalaciones",null,null,null,null,null,null,null,null,null,null,null,"GUAPI-CAUCA"]
[null,null,null,null,null,"N8121 - Limpieza general interior de edificios",null,null,null,null,null,null,null,null,null,null,null,"GUAPOTA-SANTANDER"]
[null,null,null,null,null,"N8129 - Otras actividades de limpieza de edificios e instalaciones industriales",null,null,null,null,null,null,null,null,null,null,null,"GUARANOA-SUCRE"]
[null,null,null,null,null,"N8130 - Actividades de paisajismo y servicios de mantenimiento conexos",null,null,null,null,null,null,null,null,null,null,null,"GUARNE-ANTIOQUIA"]
[null,null,null,null,null,"N8211 - Actividades combinadas de servicios administrativos de oficina",null,null,null,null,null,null,null,null,null,null,null,"GUASCA-CUNDINAMARCA"]
[null,null,null,null,null,"N8219 - Fotocopiado, preparación de documentos y otras actividades especializadas de apoyo a oficina",null,null,null,null,null,null,null,null,null,null,null,"GUATAPE-ANTIOQUIA"]
[null,null,null,null,null,"N8220 - Actividades de centros de llamadas (Call center)",null,null,null,null,null,null,null,null,null,null,null,"GUATAQUI-CUNDINAMARCA"]
[null,null,null,null,null,"N8230 - Organización de convenciones y eventos comerciales",null,null,null,null,null,null,null,null,null,null,null,"GUATAVITA-CUNDINAMARCA"]
[null,null,null,null,null,"N8291 - Actividades de agencias de cobranza y oficinas de calificación crediticia",null,null,null,null,null,null,null,null,null,null,null,"GUATEQUE-BOYACA"]
[null,null,null,null,null,"N8292 - Actividades de envase y empaque",null,null,null,null,null,null,null,null,null,null,null,"GUATICA-RISARALDA"]
[null,null,null,null,null,"N8299 - Otras actividades de servicio de apoyo a las empresas n.c.p.",null,null,null,null,null,null,null,null,null,null,null,"GUAVATA-SANTANDER"]
[null,null,null,null,null,"O8411 - Actividades legislativas de la administración pública",null,null,null,null,null,null,null,null,null,null,null,"GUAVIARE-GUAINIA"]
[null,null,null,null,null,"O8412 - Actividades ejecutivas de la administración pública",null,null,null,null,null,null,null,null,null,null,null,"GUAYABAL-DE-SIQUIMA-CUNDINAMARCA"]
[null,null,null,null,null,"O8413 - Regulación de las actividades de organismos que prestan servicios de salud, educativos, culturales y otros servicios sociales, excepto servicios de seguridad social",null,null,null,null,null,null,null,null,null,null,null,"GUAYABETAL-CUNDINAMARCA"]
[null,null,null,null,null,"O8414 - Actividades reguladoras y facilitadoras de la actividad económica",null,null,null,null,null,null,null,null,null,null,null,"GUAYATA-BOYACA"]
[null,null,null,null,null,"O8415 - Actividades de los otros órganos de control",null,null,null,null,null,null,null,null,null,null,null,"GUEPSA-SANTANDER"]
[null,null,null,null,null,"O8421 - Relaciones exteriores",null,null,null,null,null,null,null,null,null,null,null,"GUICAN-BOYACA"]
[null,null,null,null,null,"O8422 - Actividades de defensa",null,null,null,null,null,null,null,null,null,null,null,"GUTIERREZ-CUNDINAMARCA"]
[null,null,null,null,null,"O8423 - Orden público y actividades de seguridad",null,null,null,null,null,null,null,null,null,null,null,"HACARI-NORTE DE SANTANDER"]
[null,null,null,null,null,"O8424 - Administración de justicia",null,null,null,null,null,null,null,null,null,null,null,"HATILLO-DE-LOBA-BOLIVAR"]
[null,null,null,null,null,"O8430 - Actividades de planes de seguridad social de afiliación obligatoria",null,null,null,null,null,null,null,null,null,null,null,"HATO-COROZAL-CASANARE"]
[null,null,null,null,null,"P8511 - Educación de la primera infancia",null,null,null,null,null,null,null,null,null,null,null,"HATO-SANTANDER"]
[null,null,null,null,null,"P8512 - Educación preescolar",null,null,null,null,null,null,null,null,null,null,null,"HATONUEVO-LA GUAJIRA"]
[null,null,null,null,null,"P8513 - Educación básica primaria",null,null,null,null,null,null,null,null,null,null,null,"HELICONIA-ANTIOQUIA"]
[null,null,null,null,null,"P8521 - Educación básica secundaria",null,null,null,null,null,null,null,null,null,null,null,"HERRAN-NORTE DE SANTANDER"]
[null,null,null,null,null,"P8522 - Educación media académica",null,null,null,null,null,null,null,null,null,null,null,"HERVEO-TOLIMA"]
[null,null,null,null,null,"P8523 - Educación media técnica y de formación laboral",null,null,null,null,null,null,null,null,null,null,null,"HISPANIA-ANTIOQUIA"]
[null,null,null,null,null,"P8530 - Establecimientos que combinan diferentes niveles de educación",null,null,null,null,null,null,null,null,null,null,null,"HOBO-HUILA"]
[null,null,null,null,null,"P8541 - Educación técnica profesional",null,null,null,null,null,null,null,null,null,null,null,"HONDA-TOLIMA"]
[null,null,null,null,null,"P8542 - Educación tecnológica",null,null,null,null,null,null,null,null,null,null,null,"IBAGUE-TOLIMA"]
[null,null,null,null,null,"P8543 - Educación de instituciones universitarias o de escuelas tecnológicas",null,null,null,null,null,null,null,null,null,null,null,"ICONONZO-TOLIMA"]
[null,null,null,null,null,"P8544 - Educación de universidades",null,null,null,null,null,null,null,null,null,null,null,"ILES-NARINO"]
[null,null,null,null,null,"P8551 - Formación académica no formal",null,null,null,null,null,null,null,null,null,null,null,"IMUES-NARINO"]
[null,null,null,null,null,"P8552 - Enseñanza deportiva y recreativa",null,null,null,null,null,null,null,null,null,null,null,"INIRIDA-GUAINIA"]
[null,null,null,null,null,"P8553 - Enseñanza cultural",null,null,null,null,null,null,null,null,null,null,null,"INZA-CAUCA"]
[null,null,null,null,null,"P8559 - Otros tipos de educación n.c.p.",null,null,null,null,null,null,null,null,null,null,null,"IPIALES-NARINO"]
[null,null,null,null,null,"P8560 - Actividades de apoyo a la educación",null,null,null,null,null,null,null,null,null,null,null,"IQUIRA-HUILA"]
[null,null,null,null,null,"Q8610 - Actividades de hospitales y clínicas, con internación",null,null,null,null,null,null,null,null,null,null,null,"ISNOS-HUILA"]
[null,null,null,null,null,"Q8621 - Actividades de la práctica médica, sin internación",null,null,null,null,null,null,null,null,null,null,null,"ITAGUI-ANTIOQUIA"]
[null,null,null,null,null,"Q8622 - Actividades de la práctica odontológica",null,null,null,null,null,null,null,null,null,null,null,"ITSMINA-CHOCO"]
[null,null,null,null,null,"Q8691 - Actividades de apoyo diagnóstico",null,null,null,null,null,null,null,null,null,null,null,"ITUANGO-ANTIOQUIA"]
[null,null,null,null,null,"Q8692 - Actividades de apoyo terapéutico",null,null,null,null,null,null,null,null,null,null,null,"IZA-BOYACA"]
[null,null,null,null,null,"Q8699 - Otras actividades de atención de la salud humana",null,null,null,null,null,null,null,null,null,null,null,"JAMBALO-CAUCA"]
[null,null,null,null,null,"Q8710 - Actividades de atención residencial medicalizada de tipo general",null,null,null,null,null,null,null,null,null,null,null,"JAMUNDI-VALLE"]
[null,null,null,null,null,"Q8720 - Actividades de atención residencial, para el cuidado de pacientes con retardo mental, enfermedad mental y consumo de sustancias psicoactivas",null,null,null,null,null,null,null,null,null,null,null,"JARDIN-ANTIOQUIA"]
[null,null,null,null,null,"Q8730 - Actividades de atención en instituciones para el cuidado de personas mayores y/o discapacitadas",null,null,null,null,null,null,null,null,null,null,null,"JENESANO-BOYACA"]
[null,null,null,null,null,"Q8790 - Otras actividades de atención en instituciones con alojamiento",null,null,null,null,null,null,null,null,null,null,null,"JERICO-ANTIOQUIA"]
[null,null,null,null,null,"Q8810 - Actividades de asistencia social sin alojamiento para personas mayores y discapacitadas",null,null,null,null,null,null,null,null,null,null,null,"JERICO-BOYACA"]
[null,null,null,null,null,"Q8890 - Otras actividades de asistencia social sin alojamiento",null,null,null,null,null,null,null,null,null,null,null,"JERUSALEN-CUNDINAMARCA"]
[null,null,null,null,null,"R9001 - Creación literaria",null,null,null,null,null,null,null,null,null,null,null,"JESUS-MARIA-SANTANDER"]
[null,null,null,null,null,"R9002 - Creación musical",null,null,null,null,null,null,null,null,null,null,null,"JORDAN-SANTANDER"]
[null,null,null,null,null,"R9003 - Creación teatral",null,null,null,null,null,null,null,null,null,null,null,"JUAN-DE-ACOSTA-ATLANTICO"]
[null,null,null,null,null,"R9004 - Creación audiovisual",null,null,null,null,null,null,null,null,null,null,null,"JUNIN-CUNDINAMARCA"]
[null,null,null,null,null,"R9005 - Artes plásticas y visuales",null,null,null,null,null,null,null,null,null,null,null,"JURADO-CHOCO"]
[null,null,null,null,null,"R9006 - Actividades teatrales",null,null,null,null,null,null,null,null,null,null,null,"LA-APARTADA-CORDOBA"]
[null,null,null,null,null,"R9007 - Actividades de espectáculos musicales en vivo",null,null,null,null,null,null,null,null,null,null,null,"LA-ARGENTINA-HUILA"]
[null,null,null,null,null,"R9008 - Otras actividades de espectáculos en vivo",null,null,null,null,null,null,null,null,null,null,null,"LA-BELLEZA-SANTANDER"]
[null,null,null,null,null,"R9101 - Actividades de bibliotecas y archivos",null,null,null,null,null,null,null,null,null,null,null,"LA-CALERA-CUNDINAMARCA"]
[null,null,null,null,null,"R9102 - Actividades y funcionamiento de museos, conservación de edificios y sitios históricos",null,null,null,null,null,null,null,null,null,null,null,"LA-CAPILLA-BOYACA"]
[null,null,null,null,null,"R9103 - Actividades de jardines botánicos, zoológicos y reservas naturales",null,null,null,null,null,null,null,null,null,null,null,"LA-CEJA-ANTIOQUIA"]
[null,null,null,null,null,"R9200 - Actividades de juegos de azar y apuestas",null,null,null,null,null,null,null,null,null,null,null,"LA-CELIA-RISARALDA"]
[null,null,null,null,null,"R9311 - Gestión de instalaciones deportivas",null,null,null,null,null,null,null,null,null,null,null,"LA-CHORRERA-AMAZONAS"]
[null,null,null,null,null,"R9312 - Actividades de clubes deportivos",null,null,null,null,null,null,null,null,null,null,null,"LA-CRUZ-NARINO"]
[null,null,null,null,null,"R9319 - Otras actividades deportivas",null,null,null,null,null,null,null,null,null,null,null,"LA-CUMBRE-VALLE"]
[null,null,null,null,null,"R9321 - Actividades de parques de atracciones y parques temáticos",null,null,null,null,null,null,null,null,null,null,null,"LA-DORADA-CALDAS"]
[null,null,null,null,null,"R9329 - Otras actividades recreativas y de esparcimiento n.c.p.",null,null,null,null,null,null,null,null,null,null,null,"LA-ESPERANZA-NORTE DE SANTANDER"]
[null,null,null,null,null,"S9411 - Actividades de asociaciones empresariales y de empleadores",null,null,null,null,null,null,null,null,null,null,null,"LA-ESTRELLA-ANTIOQUIA"]
[null,null,null,null,null,"S9412 - Actividades de asociaciones profesionales",null,null,null,null,null,null,null,null,null,null,null,"LA-FLORIDA-NARINO"]
[null,null,null,null,null,"S9420 - Actividades de sindicatos de empleados",null,null,null,null,null,null,null,null,null,null,null,"LA-GLORIA-CESAR"]
[null,null,null,null,null,"S9491 - Actividades de asociaciones religiosas",null,null,null,null,null,null,null,null,null,null,null,"LA-GUADALUPE-GUAINIA"]
[null,null,null,null,null,"S9492 - Actividades de asociaciones políticas",null,null,null,null,null,null,null,null,null,null,null,"LA-JAGUA-DE-IBIRICO-CESAR"]
[null,null,null,null,null,"S9499 - Actividades de otras asociaciones n.c.p.",null,null,null,null,null,null,null,null,null,null,null,"LA-JAGUA-DEL-PILAR-LA GUAJIRA"]
[null,null,null,null,null,"S9511 - Mantenimiento y reparación de computadores y de equipo periférico",null,null,null,null,null,null,null,null,null,null,null,"LA-LLANADA-NARINO"]
[null,null,null,null,null,"S9512 - Mantenimiento y reparación de equipos de comunicación",null,null,null,null,null,null,null,null,null,null,null,"LA-MACARENA-META"]
[null,null,null,null,null,"S9521 - Mantenimiento y reparación de aparatos electrónicos de consumo",null,null,null,null,null,null,null,null,null,null,null,"LA-MERCED-CALDAS"]
[null,null,null,null,null,"S9522 - Mantenimiento y reparación de aparatos y equipos domésticos y de jardinería",null,null,null,null,null,null,null,null,null,null,null,"LA-MESA-CUNDINAMARCA"]
[null,null,null,null,null,"S9523 - Reparación de calzado y artículos de cuero",null,null,null,null,null,null,null,null,null,null,null,"LA-MONTANITA-CAQUETA"]
[null,null,null,null,null,"S9524 - Reparación de muebles y accesorios para el hogar",null,null,null,null,null,null,null,null,null,null,null,"LA-PALMA-CUNDINAMARCA"]
[null,null,null,null,null,"S9529 - Mantenimiento y reparación de otros efectos personales y enseres domésticos",null,null,null,null,null,null,null,null,null,null,null,"LA-PAZ-(ROBLES)-CESAR"]
[null,null,null,null,null,"S9601 - Lavado y limpieza, incluso la limpieza en seco, de productos textiles y de piel",null,null,null,null,null,null,null,null,null,null,null,"LA-PAZ-SANTANDER"]
[null,null,null,null,null,"S9602 - Peluquería y otros tratamientos de belleza",null,null,null,null,null,null,null,null,null,null,null,"LA-PEDRERA-AMAZONAS"]
[null,null,null,null,null,"S9603 - Pompas fúnebres y actividades relacionadas",null,null,null,null,null,null,null,null,null,null,null,"LA-PENA-CUNDINAMARCA"]
[null,null,null,null,null,"S9609 - Otras actividades de servicios personales n.c.p.",null,null,null,null,null,null,null,null,null,null,null,"LA-PINTADA-ANTIOQUIA"]
[null,null,null,null,null,"T9700 - Actividades de los hogares individuales como empleadores de personal doméstico",null,null,null,null,null,null,null,null,null,null,null,"LA-PLATA-HUILA"]
[null,null,null,null,null,"T9810 - Actividades no diferenciadas de los hogares individuales como productores de bienes para uso propio",null,null,null,null,null,null,null,null,null,null,null,"LA-PLAYA-NORTE DE SANTANDER"]
[null,null,null,null,null,"T9820 - Actividades no diferenciadas de los hogares individuales como productores de servicios para uso propio",null,null,null,null,null,null,null,null,null,null,null,"LA-PRIMAVERA-VICHADA"]
[null,null,null,null,null,"U9900 - Actividades de organizaciones y entidades extraterritoriales",null,null,null,null,null,null,null,null,null,null,null,"LA-SALINA-CASANARE"]
[null,null,null,null,null,null,null,null,null,null,null,null,null,null,null,null,null,"LA-SIERRA-CAUCA"]
[null,null,null,null,null,null,null,null,null,null,null,null,null,null,null,null,null,"LA-TEBAIDA-QUINDIO"]
[null,null,null,null,null,null,null,null,null,null,null,null,null,null,null,null,null,"LA-TOLA-NARINO"]
[null,null,null,null,null,null,null,null,null,null,null,null,null,null,null,null,null,"LA-UNION-ANTIOQUIA"]
[null,null,null,null,null,null,null,null,null,null,null,null,null,null,null,null,null,"LA-UNION-NARINO"]
[null,null,null,null,null,null,null,null,null,null,null,null,null,null,null,null,null,"LA-UNION-SUCRE"]
[null,null,null,null,null,null,null,null,null,null,null,null,null,null,null,null,null,"LA-UNION-VALLE"]
[null,null,null,null,null,null,null,null,null,null,null,null,null,null,null,null,null,"LA-UVITA-BOYACA"]
[null,null,null,null,null,null,null,null,null,null,null,null,null,null,null,null,null,"LA-VEGA-CAUCA"]
[null,null,null,null,null,null,null,null,null,null,null,null,null,null,null,null,null,"LA-VEGA-CUNDINAMARCA"]
[null,null,null,null,null,null,null,null,null,null,null,null,null,null,null,null,null,"LA-VICTORIA-AMAZONAS"]
[null,null,null,null,null,null,null,null,null,null,null,null,null,null,null,null,null,"LA-VICTORIA-BOYACA"]
[null,null,null,null,null,null,null,null,null,null,null,null,null,null,null,null,null,"LA-VICTORIA-VALLE"]
[null,null,null,null,null,null,null,null,null,null,null,null,null,null,null,null,null,"LA-VIRGINIA-RISARALDA"]
[null,null,null,null,null,null,null,null,null,null,null,null,null,null,null,null,null,"LABATECA-NORTE DE SANTANDER"]
[null,null,null,null,null,null,null,null,null,null,null,null,null,null,null,null,null,"LABRANZAGRANDE-BOYACA"]
[null,null,null,null,null,null,null,null,null,null,null,null,null,null,null,null,null,"LANDAZURI-SANTANDER"]
[null,null,null,null,null,null,null,null,null,null,null,null,null,null,null,null,null,"LEBRIJA-SANTANDER"]
[null,null,null,null,null,null,null,null,null,null,null,null,null,null,null,null,null,"LEIVA-NARINO"]
[null,null,null,null,null,null,null,null,null,null,null,null,null,null,null,null,null,"LEJANIAS-META"]
[null,null,null,null,null,null,null,null,null,null,null,null,null,null,null,null,null,"LENGUAZAQUE-CUNDINAMARCA"]
[null,null,null,null,null,null,null,null,null,null,null,null,null,null,null,null,null,"LERIDA-TOLIMA"]
[null,null,null,null,null,null,null,null,null,null,null,null,null,null,null,null,null,"LETICIA-AMAZONAS"]
[null,null,null,null,null,null,null,null,null,null,null,null,null,null,null,null,null,"LIBANO-TOLIMA"]
[null,null,null,null,null,null,null,null,null,null,null,null,null,null,null,null,null,"LIBORINA-ANTIOQUIA"]
[null,null,null,null,null,null,null,null,null,null,null,null,null,null,null,null,null,"LINARES-NARINO"]
[null,null,null,null,null,null,null,null,null,null,null,null,null,null,null,null,null,"LLORO-CHOCO"]
[null,null,null,null,null,null,null,null,null,null,null,null,null,null,null,null,null,"LOPEZ-(MICAY)-CAUCA"]
[null,null,null,null,null,null,null,null,null,null,null,null,null,null,null,null,null,"LORICA-CORDOBA"]
[null,null,null,null,null,null,null,null,null,null,null,null,null,null,null,null,null,"LOS-ANDES-NARINO"]
[null,null,null,null,null,null,null,null,null,null,null,null,null,null,null,null,null,"LOS-CORDOBAS-CORDOBA"]
[null,null,null,null,null,null,null,null,null,null,null,null,null,null,null,null,null,"LOS-PALMITOS-SUCRE"]
[null,null,null,null,null,null,null,null,null,null,null,null,null,null,null,null,null,"LOS-PATIOS-NORTE DE SANTANDER"]
[null,null,null,null,null,null,null,null,null,null,null,null,null,null,null,null,null,"LOS-SANTOS-SANTANDER"]
[null,null,null,null,null,null,null,null,null,null,null,null,null,null,null,null,null,"LOURDES-NORTE DE SANTANDER"]
[null,null,null,null,null,null,null,null,null,null,null,null,null,null,null,null,null,"LURUACO-ATLANTICO"]
[null,null,null,null,null,null,null,null,null,null,null,null,null,null,null,null,null,"MACANAL-BOYACA"]
[null,null,null,null,null,null,null,null,null,null,null,null,null,null,null,null,null,"MACARAVITA-SANTANDER"]
[null,null,null,null,null,null,null,null,null,null,null,null,null,null,null,null,null,"MACEO-ANTIOQUIA"]
[null,null,null,null,null,null,null,null,null,null,null,null,null,null,null,null,null,"MACHETA-CUNDINAMARCA"]
[null,null,null,null,null,null,null,null,null,null,null,null,null,null,null,null,null,"MADRID-CUNDINAMARCA"]
[null,null,null,null,null,null,null,null,null,null,null,null,null,null,null,null,null,"MAGANGUE-BOLIVAR"]
[null,null,null,null,null,null,null,null,null,null,null,null,null,null,null,null,null,"MAGUI-NARINO"]
[null,null,null,null,null,null,null,null,null,null,null,null,null,null,null,null,null,"MAHATES-BOLIVAR"]
[null,null,null,null,null,null,null,null,null,null,null,null,null,null,null,null,null,"MAICAO-LA GUAJIRA"]
[null,null,null,null,null,null,null,null,null,null,null,null,null,null,null,null,null,"MAJAGUAL-SUCRE"]
[null,null,null,null,null,null,null,null,null,null,null,null,null,null,null,null,null,"MALAGA-SANTANDER"]
[null,null,null,null,null,null,null,null,null,null,null,null,null,null,null,null,null,"MALAMBO-ATLANTICO"]
[null,null,null,null,null,null,null,null,null,null,null,null,null,null,null,null,null,"MALLAMA-NARINO"]
[null,null,null,null,null,null,null,null,null,null,null,null,null,null,null,null,null,"MANATI-ATLANTICO"]
[null,null,null,null,null,null,null,null,null,null,null,null,null,null,null,null,null,"MANAURE-BALCON-DEL-CESAR-CESAR"]
[null,null,null,null,null,null,null,null,null,null,null,null,null,null,null,null,null,"MANAURE-LA GUAJIRA"]
[null,null,null,null,null,null,null,null,null,null,null,null,null,null,null,null,null,"MANI-CASANARE"]
[null,null,null,null,null,null,null,null,null,null,null,null,null,null,null,null,null,"MANIZALES-CALDAS"]
[null,null,null,null,null,null,null,null,null,null,null,null,null,null,null,null,null,"MANTA-CUNDINAMARCA"]
[null,null,null,null,null,null,null,null,null,null,null,null,null,null,null,null,null,"MANZANARES-CALDAS"]
[null,null,null,null,null,null,null,null,null,null,null,null,null,null,null,null,null,"MAPIRIPANA-GUAINIA"]
[null,null,null,null,null,null,null,null,null,null,null,null,null,null,null,null,null,"MAPIRIPÁN-META"]
[null,null,null,null,null,null,null,null,null,null,null,null,null,null,null,null,null,"MARGARITA-BOLIVAR"]
[null,null,null,null,null,null,null,null,null,null,null,null,null,null,null,null,null,"MARIA-LA-BAJA-BOLIVAR"]
[null,null,null,null,null,null,null,null,null,null,null,null,null,null,null,null,null,"MARINILLA-ANTIOQUIA"]
[null,null,null,null,null,null,null,null,null,null,null,null,null,null,null,null,null,"MARIPI-BOYACA"]
[null,null,null,null,null,null,null,null,null,null,null,null,null,null,null,null,null,"MARIQUITA-TOLIMA"]
[null,null,null,null,null,null,null,null,null,null,null,null,null,null,null,null,null,"MARMATO-CALDAS"]
[null,null,null,null,null,null,null,null,null,null,null,null,null,null,null,null,null,"MARQUETALIA-CALDAS"]
[null,null,null,null,null,null,null,null,null,null,null,null,null,null,null,null,null,"MARSELLA-RISARALDA"]
[null,null,null,null,null,null,null,null,null,null,null,null,null,null,null,null,null,"MARULANDA-CALDAS"]
[null,null,null,null,null,null,null,null,null,null,null,null,null,null,null,null,null,"MATANZA-SANTANDER"]
[null,null,null,null,null,null,null,null,null,null,null,null,null,null,null,null,null,"MEDELLIN-ANTIOQUIA"]
[null,null,null,null,null,null,null,null,null,null,null,null,null,null,null,null,null,"MEDINA-CUNDINAMARCA"]
[null,null,null,null,null,null,null,null,null,null,null,null,null,null,null,null,null,"MEDIO-ATRATO-CHOCO"]
[null,null,null,null,null,null,null,null,null,null,null,null,null,null,null,null,null,"MEDIO-BAUDÓ-CHOCO"]
[null,null,null,null,null,null,null,null,null,null,null,null,null,null,null,null,null,"MEDIO-SAN-JUAN-CHOCO"]
[null,null,null,null,null,null,null,null,null,null,null,null,null,null,null,null,null,"MELGAR-TOLIMA"]
[null,null,null,null,null,null,null,null,null,null,null,null,null,null,null,null,null,"MERCADERES-CAUCA"]
[null,null,null,null,null,null,null,null,null,null,null,null,null,null,null,null,null,"MESETAS-META"]
[null,null,null,null,null,null,null,null,null,null,null,null,null,null,null,null,null,"MILAN-CAQUETA"]
[null,null,null,null,null,null,null,null,null,null,null,null,null,null,null,null,null,"MIRAFLORES-BOYACA"]
[null,null,null,null,null,null,null,null,null,null,null,null,null,null,null,null,null,"MIRAFLORES-GUAVIARE"]
[null,null,null,null,null,null,null,null,null,null,null,null,null,null,null,null,null,"MIRANDA-CAUCA"]
[null,null,null,null,null,null,null,null,null,null,null,null,null,null,null,null,null,"MIRITI-PARANA-AMAZONAS"]
[null,null,null,null,null,null,null,null,null,null,null,null,null,null,null,null,null,"MISTRATO-RISARALDA"]
[null,null,null,null,null,null,null,null,null,null,null,null,null,null,null,null,null,"MITU-VAUPES"]
[null,null,null,null,null,null,null,null,null,null,null,null,null,null,null,null,null,"MOCOA-PUTUMAYO"]
[null,null,null,null,null,null,null,null,null,null,null,null,null,null,null,null,null,"MOGOTES-SANTANDER"]
[null,null,null,null,null,null,null,null,null,null,null,null,null,null,null,null,null,"MOLAGAVITA-SANTANDER"]
[null,null,null,null,null,null,null,null,null,null,null,null,null,null,null,null,null,"MOMIL-CORDOBA"]
[null,null,null,null,null,null,null,null,null,null,null,null,null,null,null,null,null,"MOMPOS-BOLIVAR"]
[null,null,null,null,null,null,null,null,null,null,null,null,null,null,null,null,null,"MONGUA-BOYACA"]
[null,null,null,null,null,null,null,null,null,null,null,null,null,null,null,null,null,"MONGUI-BOYACA"]
[null,null,null,null,null,null,null,null,null,null,null,null,null,null,null,null,null,"MONIQUIRA-BOYACA"]
[null,null,null,null,null,null,null,null,null,null,null,null,null,null,null,null,null,"MONITOS-CORDOBA"]
[null,null,null,null,null,null,null,null,null,null,null,null,null,null,null,null,null,"MONTEBELLO-ANTIOQUIA"]
[null,null,null,null,null,null,null,null,null,null,null,null,null,null,null,null,null,"MONTECRISTO-BOLIVAR"]
[null,null,null,null,null,null,null,null,null,null,null,null,null,null,null,null,null,"MONTELIBANO-CORDOBA"]
[null,null,null,null,null,null,null,null,null,null,null,null,null,null,null,null,null,"MONTENEGRO-QUINDIO"]
[null,null,null,null,null,null,null,null,null,null,null,null,null,null,null,null,null,"MONTERIA-CORDOBA"]
[null,null,null,null,null,null,null,null,null,null,null,null,null,null,null,null,null,"MONTERREY-CASANARE"]
[null,null,null,null,null,null,null,null,null,null,null,null,null,null,null,null,null,"MORALES-BOLIVAR"]
[null,null,null,null,null,null,null,null,null,null,null,null,null,null,null,null,null,"MORALES-CAUCA"]
[null,null,null,null,null,null,null,null,null,null,null,null,null,null,null,null,null,"MORELIA-CAQUETA"]
[null,null,null,null,null,null,null,null,null,null,null,null,null,null,null,null,null,"MORICHAL-GUAINIA"]
[null,null,null,null,null,null,null,null,null,null,null,null,null,null,null,null,null,"MORICHAL-GUAVIARE"]
[null,null,null,null,null,null,null,null,null,null,null,null,null,null,null,null,null,"MORROA-SUCRE"]
[null,null,null,null,null,null,null,null,null,null,null,null,null,null,null,null,null,"MOSQUERA-CUNDINAMARCA"]
[null,null,null,null,null,null,null,null,null,null,null,null,null,null,null,null,null,"MOSQUERA-NARINO"]
[null,null,null,null,null,null,null,null,null,null,null,null,null,null,null,null,null,"MOTAVITA-BOYACA"]
[null,null,null,null,null,null,null,null,null,null,null,null,null,null,null,null,null,"MURILLO-TOLIMA"]
[null,null,null,null,null,null,null,null,null,null,null,null,null,null,null,null,null,"MURINDO-ANTIOQUIA"]
[null,null,null,null,null,null,null,null,null,null,null,null,null,null,null,null,null,"MUTATA-ANTIOQUIA"]
[null,null,null,null,null,null,null,null,null,null,null,null,null,null,null,null,null,"MUTISCUA-NORTE DE SANTANDER"]
[null,null,null,null,null,null,null,null,null,null,null,null,null,null,null,null,null,"MUZO-BOYACA"]
[null,null,null,null,null,null,null,null,null,null,null,null,null,null,null,null,null,"NARINO-ANTIOQUIA"]
[null,null,null,null,null,null,null,null,null,null,null,null,null,null,null,null,null,"NARINO-CUNDINAMARCA"]
[null,null,null,null,null,null,null,null,null,null,null,null,null,null,null,null,null,"NARIÑO-NARINO"]
[null,null,null,null,null,null,null,null,null,null,null,null,null,null,null,null,null,"NATAGA-HUILA"]
[null,null,null,null,null,null,null,null,null,null,null,null,null,null,null,null,null,"NATAGAIMA-TOLIMA"]
[null,null,null,null,null,null,null,null,null,null,null,null,null,null,null,null,null,"NECHI-ANTIOQUIA"]
[null,null,null,null,null,null,null,null,null,null,null,null,null,null,null,null,null,"NECOCLI-ANTIOQUIA"]
[null,null,null,null,null,null,null,null,null,null,null,null,null,null,null,null,null,"NEIRA-CALDAS"]
[null,null,null,null,null,null,null,null,null,null,null,null,null,null,null,null,null,"NEIVA-HUILA"]
[null,null,null,null,null,null,null,null,null,null,null,null,null,null,null,null,null,"NEMOCON-CUNDINAMARCA"]
[null,null,null,null,null,null,null,null,null,null,null,null,null,null,null,null,null,"NILO-CUNDINAMARCA"]
[null,null,null,null,null,null,null,null,null,null,null,null,null,null,null,null,null,"NIMAIMA-CUNDINAMARCA"]
[null,null,null,null,null,null,null,null,null,null,null,null,null,null,null,null,null,"NOBSA-BOYACA"]
[null,null,null,null,null,null,null,null,null,null,null,null,null,null,null,null,null,"NOCAIMA-CUNDINAMARCA"]
[null,null,null,null,null,null,null,null,null,null,null,null,null,null,null,null,null,"NORCASIA-CALDAS"]
[null,null,null,null,null,null,null,null,null,null,null,null,null,null,null,null,null,"NOROSI-BOLIVAR"]
[null,null,null,null,null,null,null,null,null,null,null,null,null,null,null,null,null,"NOVITA-CHOCO"]
[null,null,null,null,null,null,null,null,null,null,null,null,null,null,null,null,null,"NUEVA-ANTIOQUIA-VICHADA"]
[null,null,null,null,null,null,null,null,null,null,null,null,null,null,null,null,null,"NUEVA-GRANADA-MAGDALENA"]
[null,null,null,null,null,null,null,null,null,null,null,null,null,null,null,null,null,"NUEVO-COLON-BOYACA"]
[null,null,null,null,null,null,null,null,null,null,null,null,null,null,null,null,null,"NUNCHIA-CASANARE"]
[null,null,null,null,null,null,null,null,null,null,null,null,null,null,null,null,null,"NUQUI-CHOCO"]
[null,null,null,null,null,null,null,null,null,null,null,null,null,null,null,null,null,"OBANDO-VALLE"]
[null,null,null,null,null,null,null,null,null,null,null,null,null,null,null,null,null,"OCAMONTE-SANTANDER"]
[null,null,null,null,null,null,null,null,null,null,null,null,null,null,null,null,null,"OCANA-NORTE DE SANTANDER"]
[null,null,null,null,null,null,null,null,null,null,null,null,null,null,null,null,null,"OIBA-SANTANDER"]
[null,null,null,null,null,null,null,null,null,null,null,null,null,null,null,null,null,"OICATA-BOYACA"]
[null,null,null,null,null,null,null,null,null,null,null,null,null,null,null,null,null,"OLAYA-ANTIOQUIA"]
[null,null,null,null,null,null,null,null,null,null,null,null,null,null,null,null,null,"OLAYA-HERRERA-NARINO"]
[null,null,null,null,null,null,null,null,null,null,null,null,null,null,null,null,null,"ONZAGA-SANTANDER"]
[null,null,null,null,null,null,null,null,null,null,null,null,null,null,null,null,null,"OPORAPA-HUILA"]
[null,null,null,null,null,null,null,null,null,null,null,null,null,null,null,null,null,"ORITO-PUTUMAYO"]
[null,null,null,null,null,null,null,null,null,null,null,null,null,null,null,null,null,"OROCUE-CASANARE"]
[null,null,null,null,null,null,null,null,null,null,null,null,null,null,null,null,null,"ORTEGA-TOLIMA"]
[null,null,null,null,null,null,null,null,null,null,null,null,null,null,null,null,null,"OSPINA-NARINO"]
[null,null,null,null,null,null,null,null,null,null,null,null,null,null,null,null,null,"OTANCHE-BOYACA"]
[null,null,null,null,null,null,null,null,null,null,null,null,null,null,null,null,null,"OVEJAS-SUCRE"]
[null,null,null,null,null,null,null,null,null,null,null,null,null,null,null,null,null,"PACHAVITA-BOYACA"]
[null,null,null,null,null,null,null,null,null,null,null,null,null,null,null,null,null,"PACHO-CUNDINAMARCA"]
[null,null,null,null,null,null,null,null,null,null,null,null,null,null,null,null,null,"PACOA-VAUPES"]
[null,null,null,null,null,null,null,null,null,null,null,null,null,null,null,null,null,"PACORA-CALDAS"]
[null,null,null,null,null,null,null,null,null,null,null,null,null,null,null,null,null,"PADILLA-CAUCA"]
[null,null,null,null,null,null,null,null,null,null,null,null,null,null,null,null,null,"PAEZ-BOYACA"]
[null,null,null,null,null,null,null,null,null,null,null,null,null,null,null,null,null,"PAEZ-CAUCA"]
[null,null,null,null,null,null,null,null,null,null,null,null,null,null,null,null,null,"PAICOL-HUILA"]
[null,null,null,null,null,null,null,null,null,null,null,null,null,null,null,null,null,"PAILITAS-CESAR"]
[null,null,null,null,null,null,null,null,null,null,null,null,null,null,null,null,null,"PAIME-CUNDINAMARCA"]
[null,null,null,null,null,null,null,null,null,null,null,null,null,null,null,null,null,"PAIPA-BOYACA"]
[null,null,null,null,null,null,null,null,null,null,null,null,null,null,null,null,null,"PAJARITO-BOYACA"]
[null,null,null,null,null,null,null,null,null,null,null,null,null,null,null,null,null,"PALERMO-HUILA"]
[null,null,null,null,null,null,null,null,null,null,null,null,null,null,null,null,null,"PALESTINA-CALDAS"]
[null,null,null,null,null,null,null,null,null,null,null,null,null,null,null,null,null,"PALESTINA-HUILA"]
[null,null,null,null,null,null,null,null,null,null,null,null,null,null,null,null,null,"PALMAR-DE-VARELA-ATLANTICO"]
[null,null,null,null,null,null,null,null,null,null,null,null,null,null,null,null,null,"PALMAR-SANTANDER"]
[null,null,null,null,null,null,null,null,null,null,null,null,null,null,null,null,null,"PALMAS-DEL-SOCORRO-SANTANDER"]
[null,null,null,null,null,null,null,null,null,null,null,null,null,null,null,null,null,"PALMIRA-VALLE"]
[null,null,null,null,null,null,null,null,null,null,null,null,null,null,null,null,null,"PALMITO-SUCRE"]
[null,null,null,null,null,null,null,null,null,null,null,null,null,null,null,null,null,"PALOCABILDO-TOLIMA"]
[null,null,null,null,null,null,null,null,null,null,null,null,null,null,null,null,null,"PAMPLONA-NORTE DE SANTANDER"]
[null,null,null,null,null,null,null,null,null,null,null,null,null,null,null,null,null,"PAMPLONITA-NORTE DE SANTANDER"]
[null,null,null,null,null,null,null,null,null,null,null,null,null,null,null,null,null,"PANA-PANA-GUAINIA"]
[null,null,null,null,null,null,null,null,null,null,null,null,null,null,null,null,null,"PANDI-CUNDINAMARCA"]
[null,null,null,null,null,null,null,null,null,null,null,null,null,null,null,null,null,"PANQUEBA-BOYACA"]
[null,null,null,null,null,null,null,null,null,null,null,null,null,null,null,null,null,"PAPUNAUA-VAUPES"]
[null,null,null,null,null,null,null,null,null,null,null,null,null,null,null,null,null,"PARAMO-SANTANDER"]
[null,null,null,null,null,null,null,null,null,null,null,null,null,null,null,null,null,"PARATEBUENO-CUNDINAMARCA"]
[null,null,null,null,null,null,null,null,null,null,null,null,null,null,null,null,null,"PASCA-CUNDINAMARCA"]
[null,null,null,null,null,null,null,null,null,null,null,null,null,null,null,null,null,"PASTO-NARINO"]
[null,null,null,null,null,null,null,null,null,null,null,null,null,null,null,null,null,"PATIA(EL-BORDO)-CAUCA"]
[null,null,null,null,null,null,null,null,null,null,null,null,null,null,null,null,null,"PAUNA-BOYACA"]
[null,null,null,null,null,null,null,null,null,null,null,null,null,null,null,null,null,"PAYA-BOYACA"]
[null,null,null,null,null,null,null,null,null,null,null,null,null,null,null,null,null,"PAZ-DE-ARIPORO-CASANARE"]
[null,null,null,null,null,null,null,null,null,null,null,null,null,null,null,null,null,"PAZ-DE-RIO-BOYACA"]
[null,null,null,null,null,null,null,null,null,null,null,null,null,null,null,null,null,"PEDRAZA-MAGDALENA"]
[null,null,null,null,null,null,null,null,null,null,null,null,null,null,null,null,null,"PELAYA-CESAR"]
[null,null,null,null,null,null,null,null,null,null,null,null,null,null,null,null,null,"PENOL-ANTIOQUIA"]
[null,null,null,null,null,null,null,null,null,null,null,null,null,null,null,null,null,"PENSILVANIA-CALDAS"]
[null,null,null,null,null,null,null,null,null,null,null,null,null,null,null,null,null,"PEQUE-ANTIOQUIA"]
[null,null,null,null,null,null,null,null,null,null,null,null,null,null,null,null,null,"PEREIRA-RISARALDA"]
[null,null,null,null,null,null,null,null,null,null,null,null,null,null,null,null,null,"PESCA-BOYACA"]
[null,null,null,null,null,null,null,null,null,null,null,null,null,null,null,null,null,"PIAMONTE-CAUCA"]
[null,null,null,null,null,null,null,null,null,null,null,null,null,null,null,null,null,"PIEDECUESTA-SANTANDER"]
[null,null,null,null,null,null,null,null,null,null,null,null,null,null,null,null,null,"PIEDRAS-TOLIMA"]
[null,null,null,null,null,null,null,null,null,null,null,null,null,null,null,null,null,"PIENDAMO-CAUCA"]
[null,null,null,null,null,null,null,null,null,null,null,null,null,null,null,null,null,"PIJAO-QUINDIO"]
[null,null,null,null,null,null,null,null,null,null,null,null,null,null,null,null,null,"PIJIÑO-DEL-CARMEN-MAGDALENA"]
[null,null,null,null,null,null,null,null,null,null,null,null,null,null,null,null,null,"PINCHOTE-SANTANDER"]
[null,null,null,null,null,null,null,null,null,null,null,null,null,null,null,null,null,"PINILLOS-BOLIVAR"]
[null,null,null,null,null,null,null,null,null,null,null,null,null,null,null,null,null,"PIOJO-ATLANTICO"]
[null,null,null,null,null,null,null,null,null,null,null,null,null,null,null,null,null,"PISVA-BOYACA"]
[null,null,null,null,null,null,null,null,null,null,null,null,null,null,null,null,null,"PITAL-HUILA"]
[null,null,null,null,null,null,null,null,null,null,null,null,null,null,null,null,null,"PITALITO-HUILA"]
[null,null,null,null,null,null,null,null,null,null,null,null,null,null,null,null,null,"PIVIJAY-MAGDALENA"]
[null,null,null,null,null,null,null,null,null,null,null,null,null,null,null,null,null,"PLANADAS-TOLIMA"]
[null,null,null,null,null,null,null,null,null,null,null,null,null,null,null,null,null,"PLANETA-RICA-CORDOBA"]
[null,null,null,null,null,null,null,null,null,null,null,null,null,null,null,null,null,"PLATO-MAGDALENA"]
[null,null,null,null,null,null,null,null,null,null,null,null,null,null,null,null,null,"POLICARPA-NARINO"]
[null,null,null,null,null,null,null,null,null,null,null,null,null,null,null,null,null,"POLONUEVO-ATLANTICO"]
[null,null,null,null,null,null,null,null,null,null,null,null,null,null,null,null,null,"PONEDERA-ATLANTICO"]
[null,null,null,null,null,null,null,null,null,null,null,null,null,null,null,null,null,"POPAYAN-CAUCA"]
[null,null,null,null,null,null,null,null,null,null,null,null,null,null,null,null,null,"PORE-CASANARE"]
[null,null,null,null,null,null,null,null,null,null,null,null,null,null,null,null,null,"POTOSI-NARINO"]
[null,null,null,null,null,null,null,null,null,null,null,null,null,null,null,null,null,"PRADERA-VALLE"]
[null,null,null,null,null,null,null,null,null,null,null,null,null,null,null,null,null,"PRADO-TOLIMA"]
[null,null,null,null,null,null,null,null,null,null,null,null,null,null,null,null,null,"PROVIDENCIA-NARINO"]
[null,null,null,null,null,null,null,null,null,null,null,null,null,null,null,null,null,"PROVIDENCIA-SAN ANDRES Y PROVIDENCIA"]
[null,null,null,null,null,null,null,null,null,null,null,null,null,null,null,null,null,"PUEBLO-BELLO-CESAR"]
[null,null,null,null,null,null,null,null,null,null,null,null,null,null,null,null,null,"PUEBLO-NUEVO-CORDOBA"]
[null,null,null,null,null,null,null,null,null,null,null,null,null,null,null,null,null,"PUEBLO-RICO-RISARALDA"]
[null,null,null,null,null,null,null,null,null,null,null,null,null,null,null,null,null,"PUEBLORRICO-ANTIOQUIA"]
[null,null,null,null,null,null,null,null,null,null,null,null,null,null,null,null,null,"PUEBLOVIEJO-MAGDALENA"]
[null,null,null,null,null,null,null,null,null,null,null,null,null,null,null,null,null,"PUENTE-NACIONAL-SANTANDER"]
[null,null,null,null,null,null,null,null,null,null,null,null,null,null,null,null,null,"PUERRES-NARINO"]
[null,null,null,null,null,null,null,null,null,null,null,null,null,null,null,null,null,"PUERTO-ALEGRIA-AMAZONAS"]
[null,null,null,null,null,null,null,null,null,null,null,null,null,null,null,null,null,"PUERTO-ARICA-AMAZONAS"]
[null,null,null,null,null,null,null,null,null,null,null,null,null,null,null,null,null,"PUERTO-ASIS-PUTUMAYO"]
[null,null,null,null,null,null,null,null,null,null,null,null,null,null,null,null,null,"PUERTO-BERRIO-ANTIOQUIA"]
[null,null,null,null,null,null,null,null,null,null,null,null,null,null,null,null,null,"PUERTO-BOYACA-BOYACA"]
[null,null,null,null,null,null,null,null,null,null,null,null,null,null,null,null,null,"PUERTO-CAICEDO-PUTUMAYO"]
[null,null,null,null,null,null,null,null,null,null,null,null,null,null,null,null,null,"PUERTO-CARRENO-VICHADA"]
[null,null,null,null,null,null,null,null,null,null,null,null,null,null,null,null,null,"PUERTO-COLOMBIA-ATLANTICO"]
[null,null,null,null,null,null,null,null,null,null,null,null,null,null,null,null,null,"PUERTO-COLOMBIA-GUAINIA"]
[null,null,null,null,null,null,null,null,null,null,null,null,null,null,null,null,null,"PUERTO-CONCORDIA-META"]
[null,null,null,null,null,null,null,null,null,null,null,null,null,null,null,null,null,"PUERTO-ESCONDIDO-CORDOBA"]
[null,null,null,null,null,null,null,null,null,null,null,null,null,null,null,null,null,"PUERTO-GAITAN-META"]
[null,null,null,null,null,null,null,null,null,null,null,null,null,null,null,null,null,"PUERTO-GUZMÁN-PUTUMAYO"]
[null,null,null,null,null,null,null,null,null,null,null,null,null,null,null,null,null,"PUERTO-LIBERTADOR-CORDOBA"]
[null,null,null,null,null,null,null,null,null,null,null,null,null,null,null,null,null,"PUERTO-LLERAS-META"]
[null,null,null,null,null,null,null,null,null,null,null,null,null,null,null,null,null,"PUERTO-LOPEZ-META"]
[null,null,null,null,null,null,null,null,null,null,null,null,null,null,null,null,null,"PUERTO-NARE-ANTIOQUIA"]
[null,null,null,null,null,null,null,null,null,null,null,null,null,null,null,null,null,"PUERTO-NARINO-AMAZONAS"]
[null,null,null,null,null,null,null,null,null,null,null,null,null,null,null,null,null,"PUERTO-PARRA-SANTANDER"]
[null,null,null,null,null,null,null,null,null,null,null,null,null,null,null,null,null,"PUERTO-RICO-CAQUETA"]
[null,null,null,null,null,null,null,null,null,null,null,null,null,null,null,null,null,"PUERTO-RICO-META"]
[null,null,null,null,null,null,null,null,null,null,null,null,null,null,null,null,null,"PUERTO-RONDON-ARAUCA"]
[null,null,null,null,null,null,null,null,null,null,null,null,null,null,null,null,null,"PUERTO-SALGAR-CUNDINAMARCA"]
[null,null,null,null,null,null,null,null,null,null,null,null,null,null,null,null,null,"PUERTO-SANTANDER-AMAZONAS"]
[null,null,null,null,null,null,null,null,null,null,null,null,null,null,null,null,null,"PUERTO-SANTANDER-NORTE DE SANTANDER"]
[null,null,null,null,null,null,null,null,null,null,null,null,null,null,null,null,null,"PUERTO-TEJADA-CAUCA"]
[null,null,null,null,null,null,null,null,null,null,null,null,null,null,null,null,null,"PUERTO-TRIUNFO-ANTIOQUIA"]
[null,null,null,null,null,null,null,null,null,null,null,null,null,null,null,null,null,"PUERTO-WILCHES-SANTANDER"]
[null,null,null,null,null,null,null,null,null,null,null,null,null,null,null,null,null,"PULI-CUNDINAMARCA"]
[null,null,null,null,null,null,null,null,null,null,null,null,null,null,null,null,null,"PUPIALES-NARINO"]
[null,null,null,null,null,null,null,null,null,null,null,null,null,null,null,null,null,"PURACE-CAUCA"]
[null,null,null,null,null,null,null,null,null,null,null,null,null,null,null,null,null,"PURIFICACION-TOLIMA"]
[null,null,null,null,null,null,null,null,null,null,null,null,null,null,null,null,null,"PURISIMA-CORDOBA"]
[null,null,null,null,null,null,null,null,null,null,null,null,null,null,null,null,null,"QUEBRADANEGRA-CUNDINAMARCA"]
[null,null,null,null,null,null,null,null,null,null,null,null,null,null,null,null,null,"QUETAME-CUNDINAMARCA"]
[null,null,null,null,null,null,null,null,null,null,null,null,null,null,null,null,null,"QUIBDO-CHOCO"]
[null,null,null,null,null,null,null,null,null,null,null,null,null,null,null,null,null,"QUIMBAYA-QUINDIO"]
[null,null,null,null,null,null,null,null,null,null,null,null,null,null,null,null,null,"QUINCHIA-RISARALDA"]
[null,null,null,null,null,null,null,null,null,null,null,null,null,null,null,null,null,"QUIPAMA-BOYACA"]
[null,null,null,null,null,null,null,null,null,null,null,null,null,null,null,null,null,"QUIPILE-CUNDINAMARCA"]
[null,null,null,null,null,null,null,null,null,null,null,null,null,null,null,null,null,"RAGONVALIA-NORTE DE SANTANDER"]
[null,null,null,null,null,null,null,null,null,null,null,null,null,null,null,null,null,"RAMIRIQUI-BOYACA"]
[null,null,null,null,null,null,null,null,null,null,null,null,null,null,null,null,null,"RAQUIRA-BOYACA"]
[null,null,null,null,null,null,null,null,null,null,null,null,null,null,null,null,null,"RECETOR-CASANARE"]
[null,null,null,null,null,null,null,null,null,null,null,null,null,null,null,null,null,"REGIDOR-BOLIVAR"]
[null,null,null,null,null,null,null,null,null,null,null,null,null,null,null,null,null,"REMEDIOS-ANTIOQUIA"]
[null,null,null,null,null,null,null,null,null,null,null,null,null,null,null,null,null,"REMOLINO-MAGDALENA"]
[null,null,null,null,null,null,null,null,null,null,null,null,null,null,null,null,null,"REPELON-ATLANTICO"]
[null,null,null,null,null,null,null,null,null,null,null,null,null,null,null,null,null,"RESTREPO-META"]
[null,null,null,null,null,null,null,null,null,null,null,null,null,null,null,null,null,"RESTREPO-VALLE"]
[null,null,null,null,null,null,null,null,null,null,null,null,null,null,null,null,null,"RETIRO-ANTIOQUIA"]
[null,null,null,null,null,null,null,null,null,null,null,null,null,null,null,null,null,"RICAURTE-CUNDINAMARCA"]
[null,null,null,null,null,null,null,null,null,null,null,null,null,null,null,null,null,"RICAURTE-NARINO"]
[null,null,null,null,null,null,null,null,null,null,null,null,null,null,null,null,null,"RIO-DE-ORO-CESAR"]
[null,null,null,null,null,null,null,null,null,null,null,null,null,null,null,null,null,"RIO-VIEJO-BOLIVAR"]
[null,null,null,null,null,null,null,null,null,null,null,null,null,null,null,null,null,"RIOBLANCO-TOLIMA"]
[null,null,null,null,null,null,null,null,null,null,null,null,null,null,null,null,null,"RIOFRIO-VALLE"]
[null,null,null,null,null,null,null,null,null,null,null,null,null,null,null,null,null,"RIOHACHA-LA GUAJIRA"]
[null,null,null,null,null,null,null,null,null,null,null,null,null,null,null,null,null,"RIONEGRO-ANTIOQUIA"]
[null,null,null,null,null,null,null,null,null,null,null,null,null,null,null,null,null,"RIONEGRO-SANTANDER"]
[null,null,null,null,null,null,null,null,null,null,null,null,null,null,null,null,null,"RIOSUCIO-CALDAS"]
[null,null,null,null,null,null,null,null,null,null,null,null,null,null,null,null,null,"RIOSUCIO-CHOCO"]
[null,null,null,null,null,null,null,null,null,null,null,null,null,null,null,null,null,"RISARALDA-CALDAS"]
[null,null,null,null,null,null,null,null,null,null,null,null,null,null,null,null,null,"RIVERA-HUILA"]
[null,null,null,null,null,null,null,null,null,null,null,null,null,null,null,null,null,"ROBERTO-PAYAN-NARINO"]
[null,null,null,null,null,null,null,null,null,null,null,null,null,null,null,null,null,"ROLDANILLO-VALLE"]
[null,null,null,null,null,null,null,null,null,null,null,null,null,null,null,null,null,"RONCESVALLES-TOLIMA"]
[null,null,null,null,null,null,null,null,null,null,null,null,null,null,null,null,null,"RONDON-BOYACA"]
[null,null,null,null,null,null,null,null,null,null,null,null,null,null,null,null,null,"ROSAS-CAUCA"]
[null,null,null,null,null,null,null,null,null,null,null,null,null,null,null,null,null,"ROVIRA-TOLIMA"]
[null,null,null,null,null,null,null,null,null,null,null,null,null,null,null,null,null,"RÍO-IRO-CHOCO"]
[null,null,null,null,null,null,null,null,null,null,null,null,null,null,null,null,null,"RÍO-QUITO-CHOCO"]
[null,null,null,null,null,null,null,null,null,null,null,null,null,null,null,null,null,"SABANA-DE-TORRES-SANTANDER"]
[null,null,null,null,null,null,null,null,null,null,null,null,null,null,null,null,null,"SABANAGRANDE-ATLANTICO"]
[null,null,null,null,null,null,null,null,null,null,null,null,null,null,null,null,null,"SABANALARGA-ANTIOQUIA"]
[null,null,null,null,null,null,null,null,null,null,null,null,null,null,null,null,null,"SABANALARGA-ATLANTICO"]
[null,null,null,null,null,null,null,null,null,null,null,null,null,null,null,null,null,"SABANALARGA-CASANARE"]
[null,null,null,null,null,null,null,null,null,null,null,null,null,null,null,null,null,"SABANAS-DE-SAN-ANGEL-MAGDALENA"]
[null,null,null,null,null,null,null,null,null,null,null,null,null,null,null,null,null,"SABANETA-ANTIOQUIA"]
[null,null,null,null,null,null,null,null,null,null,null,null,null,null,null,null,null,"SABOYA-BOYACA"]
[null,null,null,null,null,null,null,null,null,null,null,null,null,null,null,null,null,"SACAMA-CASANARE"]
[null,null,null,null,null,null,null,null,null,null,null,null,null,null,null,null,null,"SACHICA-BOYACA"]
[null,null,null,null,null,null,null,null,null,null,null,null,null,null,null,null,null,"SAHAGUN-CORDOBA"]
[null,null,null,null,null,null,null,null,null,null,null,null,null,null,null,null,null,"SALADOBLANCO-HUILA"]
[null,null,null,null,null,null,null,null,null,null,null,null,null,null,null,null,null,"SALAMINA-CALDAS"]
[null,null,null,null,null,null,null,null,null,null,null,null,null,null,null,null,null,"SALAMINA-MAGDALENA"]
[null,null,null,null,null,null,null,null,null,null,null,null,null,null,null,null,null,"SALAZAR-NORTE DE SANTANDER"]
[null,null,null,null,null,null,null,null,null,null,null,null,null,null,null,null,null,"SALDANA-TOLIMA"]
[null,null,null,null,null,null,null,null,null,null,null,null,null,null,null,null,null,"SALENTO-QUINDIO"]
[null,null,null,null,null,null,null,null,null,null,null,null,null,null,null,null,null,"SALGAR-ANTIOQUIA"]
[null,null,null,null,null,null,null,null,null,null,null,null,null,null,null,null,null,"SAMACA-BOYACA"]
[null,null,null,null,null,null,null,null,null,null,null,null,null,null,null,null,null,"SAMANA-CALDAS"]
[null,null,null,null,null,null,null,null,null,null,null,null,null,null,null,null,null,"SAMANIEGO-NARINO"]
[null,null,null,null,null,null,null,null,null,null,null,null,null,null,null,null,null,"SAMPUES-SUCRE"]
[null,null,null,null,null,null,null,null,null,null,null,null,null,null,null,null,null,"SAN-AGUSTIN-HUILA"]
[null,null,null,null,null,null,null,null,null,null,null,null,null,null,null,null,null,"SAN-ALBERTO-CESAR"]
[null,null,null,null,null,null,null,null,null,null,null,null,null,null,null,null,null,"SAN-ANDRES-ANTIOQUIA"]
[null,null,null,null,null,null,null,null,null,null,null,null,null,null,null,null,null,"SAN-ANDRES-DE-SOTAVENTO-CORDOBA"]
[null,null,null,null,null,null,null,null,null,null,null,null,null,null,null,null,null,"SAN-ANDRES-SAN ANDRES Y PROVIDENCIA"]
[null,null,null,null,null,null,null,null,null,null,null,null,null,null,null,null,null,"SAN-ANDRES-SANTANDER"]
[null,null,null,null,null,null,null,null,null,null,null,null,null,null,null,null,null,"SAN-ANTERO-CORDOBA"]
[null,null,null,null,null,null,null,null,null,null,null,null,null,null,null,null,null,"SAN-ANTONIO-DEL-TEQUENDAMA-CUNDINAMARCA"]
[null,null,null,null,null,null,null,null,null,null,null,null,null,null,null,null,null,"SAN-ANTONIO-TOLIMA"]
[null,null,null,null,null,null,null,null,null,null,null,null,null,null,null,null,null,"SAN-BENITO-ABAD-SUCRE"]
[null,null,null,null,null,null,null,null,null,null,null,null,null,null,null,null,null,"SAN-BENITO-SANTANDER"]
[null,null,null,null,null,null,null,null,null,null,null,null,null,null,null,null,null,"SAN-BERNARDO-CUNDINAMARCA"]
[null,null,null,null,null,null,null,null,null,null,null,null,null,null,null,null,null,"SAN-BERNARDO-DEL-VIENTO-CORDOBA"]
[null,null,null,null,null,null,null,null,null,null,null,null,null,null,null,null,null,"SAN-BERNARDO-NARINO"]
[null,null,null,null,null,null,null,null,null,null,null,null,null,null,null,null,null,"SAN-CALIXTO-NORTE DE SANTANDER"]
[null,null,null,null,null,null,null,null,null,null,null,null,null,null,null,null,null,"SAN-CARLOS-ANTIOQUIA"]
[null,null,null,null,null,null,null,null,null,null,null,null,null,null,null,null,null,"SAN-CARLOS-CORDOBA"]
[null,null,null,null,null,null,null,null,null,null,null,null,null,null,null,null,null,"SAN-CARLOS-DE-GUAR0A-META"]
[null,null,null,null,null,null,null,null,null,null,null,null,null,null,null,null,null,"SAN-CAYETANO-CUNDINAMARCA"]
[null,null,null,null,null,null,null,null,null,null,null,null,null,null,null,null,null,"SAN-CAYETANO-NORTE DE SANTANDER"]
[null,null,null,null,null,null,null,null,null,null,null,null,null,null,null,null,null,"SAN-CRISTÓBAL-BOLIVAR"]
[null,null,null,null,null,null,null,null,null,null,null,null,null,null,null,null,null,"SAN-DIEGO-CESAR"]
[null,null,null,null,null,null,null,null,null,null,null,null,null,null,null,null,null,"SAN-EDUARDO-BOYACA"]
[null,null,null,null,null,null,null,null,null,null,null,null,null,null,null,null,null,"SAN-ESTANISLAO-BOLIVAR"]
[null,null,null,null,null,null,null,null,null,null,null,null,null,null,null,null,null,"SAN-FELIPE-GUAINIA"]
[null,null,null,null,null,null,null,null,null,null,null,null,null,null,null,null,null,"SAN-FERNANDO-BOLIVAR"]
[null,null,null,null,null,null,null,null,null,null,null,null,null,null,null,null,null,"SAN-FRANCISCO-ANTIOQUIA"]
[null,null,null,null,null,null,null,null,null,null,null,null,null,null,null,null,null,"SAN-FRANCISCO-CUNDINAMARCA"]
[null,null,null,null,null,null,null,null,null,null,null,null,null,null,null,null,null,"SAN-FRANCISCO-PUTUMAYO"]
[null,null,null,null,null,null,null,null,null,null,null,null,null,null,null,null,null,"SAN-GIL-SANTANDER"]
[null,null,null,null,null,null,null,null,null,null,null,null,null,null,null,null,null,"SAN-JACINTO-BOLIVAR"]
[null,null,null,null,null,null,null,null,null,null,null,null,null,null,null,null,null,"SAN-JACINTO-DEL-CAUCA-BOLIVAR"]
[null,null,null,null,null,null,null,null,null,null,null,null,null,null,null,null,null,"SAN-JERONIMO-ANTIOQUIA"]
[null,null,null,null,null,null,null,null,null,null,null,null,null,null,null,null,null,"SAN-JOAQUIN-SANTANDER"]
[null,null,null,null,null,null,null,null,null,null,null,null,null,null,null,null,null,"SAN-JOSE-DE-FRAGUA-CAQUETA"]
[null,null,null,null,null,null,null,null,null,null,null,null,null,null,null,null,null,"SAN-JOSE-DE-LA-MONTANA-ANTIOQUIA"]
[null,null,null,null,null,null,null,null,null,null,null,null,null,null,null,null,null,"SAN-JOSE-DE-MIRANDA-SANTANDER"]
[null,null,null,null,null,null,null,null,null,null,null,null,null,null,null,null,null,"SAN-JOSE-DE-OCUNE-VICHADA"]
[null,null,null,null,null,null,null,null,null,null,null,null,null,null,null,null,null,"SAN-JOSE-DE-PARE-BOYACA"]
[null,null,null,null,null,null,null,null,null,null,null,null,null,null,null,null,null,"SAN-JOSE-DE-URE-CORDOBA"]
[null,null,null,null,null,null,null,null,null,null,null,null,null,null,null,null,null,"SAN-JOSE-DEL-GUAVIARE-GUAVIARE"]
[null,null,null,null,null,null,null,null,null,null,null,null,null,null,null,null,null,"SAN-JOSE-DEL-PALMAR-CHOCO"]
[null,null,null,null,null,null,null,null,null,null,null,null,null,null,null,null,null,"SAN-JOSÉ-CALDAS"]
[null,null,null,null,null,null,null,null,null,null,null,null,null,null,null,null,null,"SAN-JUAN-DE-ARAMA-META"]
[null,null,null,null,null,null,null,null,null,null,null,null,null,null,null,null,null,"SAN-JUAN-DE-BETULIA-SUCRE"]
[null,null,null,null,null,null,null,null,null,null,null,null,null,null,null,null,null,"SAN-JUAN-DE-RIOSECO-CUNDINAMARCA"]
[null,null,null,null,null,null,null,null,null,null,null,null,null,null,null,null,null,"SAN-JUAN-DE-URABA-ANTIOQUIA"]
[null,null,null,null,null,null,null,null,null,null,null,null,null,null,null,null,null,"SAN-JUAN-DEL-CESAR-LA GUAJIRA"]
[null,null,null,null,null,null,null,null,null,null,null,null,null,null,null,null,null,"SAN-JUAN-NEPOMUCENO-BOLIVAR"]
[null,null,null,null,null,null,null,null,null,null,null,null,null,null,null,null,null,"SAN-JUANITO-META"]
[null,null,null,null,null,null,null,null,null,null,null,null,null,null,null,null,null,"SAN-LORENZO-NARINO"]
[null,null,null,null,null,null,null,null,null,null,null,null,null,null,null,null,null,"SAN-LUIS-ANTIOQUIA"]
[null,null,null,null,null,null,null,null,null,null,null,null,null,null,null,null,null,"SAN-LUIS-DE-GACENO-BOYACA"]
[null,null,null,null,null,null,null,null,null,null,null,null,null,null,null,null,null,"SAN-LUIS-DE-PALENQUE-CASANARE"]
[null,null,null,null,null,null,null,null,null,null,null,null,null,null,null,null,null,"SAN-LUIS-TOLIMA"]
[null,null,null,null,null,null,null,null,null,null,null,null,null,null,null,null,null,"SAN-MARCOS-SUCRE"]
[null,null,null,null,null,null,null,null,null,null,null,null,null,null,null,null,null,"SAN-MARTIN-CESAR"]
[null,null,null,null,null,null,null,null,null,null,null,null,null,null,null,null,null,"SAN-MARTIN-DE-LOBA-BOLIVAR"]
[null,null,null,null,null,null,null,null,null,null,null,null,null,null,null,null,null,"SAN-MARTIN-META"]
[null,null,null,null,null,null,null,null,null,null,null,null,null,null,null,null,null,"SAN-MATEO-BOYACA"]
[null,null,null,null,null,null,null,null,null,null,null,null,null,null,null,null,null,"SAN-MIGUEL-DE-SEMA-BOYACA"]
[null,null,null,null,null,null,null,null,null,null,null,null,null,null,null,null,null,"SAN-MIGUEL-PUTUMAYO"]
[null,null,null,null,null,null,null,null,null,null,null,null,null,null,null,null,null,"SAN-MIGUEL-SANTANDER"]
[null,null,null,null,null,null,null,null,null,null,null,null,null,null,null,null,null,"SAN-ONOFRE-SUCRE"]
[null,null,null,null,null,null,null,null,null,null,null,null,null,null,null,null,null,"SAN-PABLO-BOLIVAR"]
[null,null,null,null,null,null,null,null,null,null,null,null,null,null,null,null,null,"SAN-PABLO-DE-BORBUR-BOYACA"]
[null,null,null,null,null,null,null,null,null,null,null,null,null,null,null,null,null,"SAN-PABLO-NARINO"]
[null,null,null,null,null,null,null,null,null,null,null,null,null,null,null,null,null,"SAN-PEDRO-ANTIOQUIA"]
[null,null,null,null,null,null,null,null,null,null,null,null,null,null,null,null,null,"SAN-PEDRO-DE-CARTAGO-NARINO"]
[null,null,null,null,null,null,null,null,null,null,null,null,null,null,null,null,null,"SAN-PEDRO-DE-URABA-ANTIOQUIA"]
[null,null,null,null,null,null,null,null,null,null,null,null,null,null,null,null,null,"SAN-PEDRO-SUCRE"]
[null,null,null,null,null,null,null,null,null,null,null,null,null,null,null,null,null,"SAN-PEDRO-VALLE"]
[null,null,null,null,null,null,null,null,null,null,null,null,null,null,null,null,null,"SAN-PELAYO-CORDOBA"]
[null,null,null,null,null,null,null,null,null,null,null,null,null,null,null,null,null,"SAN-RAFAEL-ANTIOQUIA"]
[null,null,null,null,null,null,null,null,null,null,null,null,null,null,null,null,null,"SAN-ROQUE-ANTIOQUIA"]
[null,null,null,null,null,null,null,null,null,null,null,null,null,null,null,null,null,"SAN-SEBASTIAN-CAUCA"]
[null,null,null,null,null,null,null,null,null,null,null,null,null,null,null,null,null,"SAN-SEBASTIAN-DE-BUENAVISMAGDALENA"]
[null,null,null,null,null,null,null,null,null,null,null,null,null,null,null,null,null,"SAN-VICENTE-ANTIOQUIA"]
[null,null,null,null,null,null,null,null,null,null,null,null,null,null,null,null,null,"SAN-VICENTE-DE-CHUCURI-SANTANDER"]
[null,null,null,null,null,null,null,null,null,null,null,null,null,null,null,null,null,"SAN-VICENTE-DEL-CAGUAN-CAQUETA"]
[null,null,null,null,null,null,null,null,null,null,null,null,null,null,null,null,null,"SAN-ZENON-MAGDALENA"]
[null,null,null,null,null,null,null,null,null,null,null,null,null,null,null,null,null,"SANDONA-NARINO"]
[null,null,null,null,null,null,null,null,null,null,null,null,null,null,null,null,null,"SANTA-ANA-MAGDALENA"]
[null,null,null,null,null,null,null,null,null,null,null,null,null,null,null,null,null,"SANTA-BARBARA-ANTIOQUIA"]
[null,null,null,null,null,null,null,null,null,null,null,null,null,null,null,null,null,"SANTA-BARBARA-NARINO"]
[null,null,null,null,null,null,null,null,null,null,null,null,null,null,null,null,null,"SANTA-BARBARA-SANTANDER"]
[null,null,null,null,null,null,null,null,null,null,null,null,null,null,null,null,null,"SANTA-BÁRBARA-DE-PINTO-MAGDALENA"]
[null,null,null,null,null,null,null,null,null,null,null,null,null,null,null,null,null,"SANTA-CATALINA-BOLIVAR"]
[null,null,null,null,null,null,null,null,null,null,null,null,null,null,null,null,null,"SANTA-HELENA-DEL-OPON-SANTANDER"]
[null,null,null,null,null,null,null,null,null,null,null,null,null,null,null,null,null,"SANTA-ISABEL-TOLIMA"]
[null,null,null,null,null,null,null,null,null,null,null,null,null,null,null,null,null,"SANTA-LUCIA-ATLANTICO"]
[null,null,null,null,null,null,null,null,null,null,null,null,null,null,null,null,null,"SANTA-MARIA-BOYACA"]
[null,null,null,null,null,null,null,null,null,null,null,null,null,null,null,null,null,"SANTA-MARTA-MAGDALENA"]
[null,null,null,null,null,null,null,null,null,null,null,null,null,null,null,null,null,"SANTA-RITA-VICHADA"]
[null,null,null,null,null,null,null,null,null,null,null,null,null,null,null,null,null,"SANTA-ROSA-BOLIVAR"]
[null,null,null,null,null,null,null,null,null,null,null,null,null,null,null,null,null,"SANTA-ROSA-CAUCA"]
[null,null,null,null,null,null,null,null,null,null,null,null,null,null,null,null,null,"SANTA-ROSA-DE-CABAL-RISARALDA"]
[null,null,null,null,null,null,null,null,null,null,null,null,null,null,null,null,null,"SANTA-ROSA-DE-OSOS-ANTIOQUIA"]
[null,null,null,null,null,null,null,null,null,null,null,null,null,null,null,null,null,"SANTA-ROSA-DE-VITERBO-BOYACA"]
[null,null,null,null,null,null,null,null,null,null,null,null,null,null,null,null,null,"SANTA-ROSA-DEL-SUR-BOLIVAR"]
[null,null,null,null,null,null,null,null,null,null,null,null,null,null,null,null,null,"SANTA-ROSALIA-VICHADA"]
[null,null,null,null,null,null,null,null,null,null,null,null,null,null,null,null,null,"SANTA-SOFIA-BOYACA"]
[null,null,null,null,null,null,null,null,null,null,null,null,null,null,null,null,null,"SANTACRUZ-NARINO"]
[null,null,null,null,null,null,null,null,null,null,null,null,null,null,null,null,null,"SANTAMARIA-HUILA"]
[null,null,null,null,null,null,null,null,null,null,null,null,null,null,null,null,null,"SANTANA-BOYACA"]
[null,null,null,null,null,null,null,null,null,null,null,null,null,null,null,null,null,"SANTANDER-DE-QUILICHAO-CAUCA"]
[null,null,null,null,null,null,null,null,null,null,null,null,null,null,null,null,null,"SANTIAGO-NORTE DE SANTANDER"]
[null,null,null,null,null,null,null,null,null,null,null,null,null,null,null,null,null,"SANTIAGO-PUTUMAYO"]
[null,null,null,null,null,null,null,null,null,null,null,null,null,null,null,null,null,"SANTIVANORTE-BOYACA"]
[null,null,null,null,null,null,null,null,null,null,null,null,null,null,null,null,null,"SANTIVASUR-BOYACA"]
[null,null,null,null,null,null,null,null,null,null,null,null,null,null,null,null,null,"SANTO-DOMINGO-ANTIOQUIA"]
[null,null,null,null,null,null,null,null,null,null,null,null,null,null,null,null,null,"SANTO-TOMAS-ATLANTICO"]
[null,null,null,null,null,null,null,null,null,null,null,null,null,null,null,null,null,"SANTUARIO-ANTIOQUIA"]
[null,null,null,null,null,null,null,null,null,null,null,null,null,null,null,null,null,"SAPUYES-NARINO"]
[null,null,null,null,null,null,null,null,null,null,null,null,null,null,null,null,null,"SARAVENA-ARAUCA"]
[null,null,null,null,null,null,null,null,null,null,null,null,null,null,null,null,null,"SARDINATA-NORTE DE SANTANDER"]
[null,null,null,null,null,null,null,null,null,null,null,null,null,null,null,null,null,"SASAIMA-CUNDINAMARCA"]
[null,null,null,null,null,null,null,null,null,null,null,null,null,null,null,null,null,"SATUARIO-RISARALDA"]
[null,null,null,null,null,null,null,null,null,null,null,null,null,null,null,null,null,"SEGOVIA-ANTIOQUIA"]
[null,null,null,null,null,null,null,null,null,null,null,null,null,null,null,null,null,"SESQUILE-CUNDINAMARCA"]
[null,null,null,null,null,null,null,null,null,null,null,null,null,null,null,null,null,"SEVILLA-VALLE"]
[null,null,null,null,null,null,null,null,null,null,null,null,null,null,null,null,null,"SIACHOQUE-BOYACA"]
[null,null,null,null,null,null,null,null,null,null,null,null,null,null,null,null,null,"SIBATE-CUNDINAMARCA"]
[null,null,null,null,null,null,null,null,null,null,null,null,null,null,null,null,null,"SIBUNDOY-PUTUMAYO"]
[null,null,null,null,null,null,null,null,null,null,null,null,null,null,null,null,null,"SILOS-NORTE DE SANTANDER"]
[null,null,null,null,null,null,null,null,null,null,null,null,null,null,null,null,null,"SILVANIA-CUNDINAMARCA"]
[null,null,null,null,null,null,null,null,null,null,null,null,null,null,null,null,null,"SILVIA-CAUCA"]
[null,null,null,null,null,null,null,null,null,null,null,null,null,null,null,null,null,"SIMACOTA-SANTANDER"]
[null,null,null,null,null,null,null,null,null,null,null,null,null,null,null,null,null,"SIMIJACA-CUNDINAMARCA"]
[null,null,null,null,null,null,null,null,null,null,null,null,null,null,null,null,null,"SIMITI-BOLIVAR"]
[null,null,null,null,null,null,null,null,null,null,null,null,null,null,null,null,null,"SINCE-SUCRE"]
[null,null,null,null,null,null,null,null,null,null,null,null,null,null,null,null,null,"SINCELEJO-SUCRE"]
[null,null,null,null,null,null,null,null,null,null,null,null,null,null,null,null,null,"SIPI-CHOCO"]
[null,null,null,null,null,null,null,null,null,null,null,null,null,null,null,null,null,"SITIONUEVO-MAGDALENA"]
[null,null,null,null,null,null,null,null,null,null,null,null,null,null,null,null,null,"SOACHA-CUNDINAMARCA"]
[null,null,null,null,null,null,null,null,null,null,null,null,null,null,null,null,null,"SOATA-BOYACA"]
[null,null,null,null,null,null,null,null,null,null,null,null,null,null,null,null,null,"SOCHA-BOYACA"]
[null,null,null,null,null,null,null,null,null,null,null,null,null,null,null,null,null,"SOCORRO-SANTANDER"]
[null,null,null,null,null,null,null,null,null,null,null,null,null,null,null,null,null,"SOCOTA-BOYACA"]
[null,null,null,null,null,null,null,null,null,null,null,null,null,null,null,null,null,"SOGAMOSO-BOYACA"]
[null,null,null,null,null,null,null,null,null,null,null,null,null,null,null,null,null,"SOLANO-CAQUETA"]
[null,null,null,null,null,null,null,null,null,null,null,null,null,null,null,null,null,"SOLEDAD-ATLANTICO"]
[null,null,null,null,null,null,null,null,null,null,null,null,null,null,null,null,null,"SOLITA-CAQUETA"]
[null,null,null,null,null,null,null,null,null,null,null,null,null,null,null,null,null,"SOMONDOCO-BOYACA"]
[null,null,null,null,null,null,null,null,null,null,null,null,null,null,null,null,null,"SONSON-ANTIOQUIA"]
[null,null,null,null,null,null,null,null,null,null,null,null,null,null,null,null,null,"SOPETRAN-ANTIOQUIA"]
[null,null,null,null,null,null,null,null,null,null,null,null,null,null,null,null,null,"SOPLAVIENTO-BOLIVAR"]
[null,null,null,null,null,null,null,null,null,null,null,null,null,null,null,null,null,"SOPO-CUNDINAMARCA"]
[null,null,null,null,null,null,null,null,null,null,null,null,null,null,null,null,null,"SORA-BOYACA"]
[null,null,null,null,null,null,null,null,null,null,null,null,null,null,null,null,null,"SORACA-BOYACA"]
[null,null,null,null,null,null,null,null,null,null,null,null,null,null,null,null,null,"SOTAQUIRA-BOYACA"]
[null,null,null,null,null,null,null,null,null,null,null,null,null,null,null,null,null,"SOTARA-CAUCA"]
[null,null,null,null,null,null,null,null,null,null,null,null,null,null,null,null,null,"SUAITA-SANTANDER"]
[null,null,null,null,null,null,null,null,null,null,null,null,null,null,null,null,null,"SUAN-ATLANTICO"]
[null,null,null,null,null,null,null,null,null,null,null,null,null,null,null,null,null,"SUAREZ-TOLIMA"]
[null,null,null,null,null,null,null,null,null,null,null,null,null,null,null,null,null,"SUAZA-HUILA"]
[null,null,null,null,null,null,null,null,null,null,null,null,null,null,null,null,null,"SUBA-BOGOTA D.C."]
[null,null,null,null,null,null,null,null,null,null,null,null,null,null,null,null,null,"SUBACHOQUE-CUNDINAMARCA"]
[null,null,null,null,null,null,null,null,null,null,null,null,null,null,null,null,null,"SUCRE-CAUCA"]
[null,null,null,null,null,null,null,null,null,null,null,null,null,null,null,null,null,"SUCRE-SANTANDER"]
[null,null,null,null,null,null,null,null,null,null,null,null,null,null,null,null,null,"SUCRE-SUCRE"]
[null,null,null,null,null,null,null,null,null,null,null,null,null,null,null,null,null,"SUESCA-CUNDINAMARCA"]
[null,null,null,null,null,null,null,null,null,null,null,null,null,null,null,null,null,"SUPATA-CUNDINAMARCA"]
[null,null,null,null,null,null,null,null,null,null,null,null,null,null,null,null,null,"SUPIA-CALDAS"]
[null,null,null,null,null,null,null,null,null,null,null,null,null,null,null,null,null,"SURATA-SANTANDER"]
[null,null,null,null,null,null,null,null,null,null,null,null,null,null,null,null,null,"SUSA-CUNDINAMARCA"]
[null,null,null,null,null,null,null,null,null,null,null,null,null,null,null,null,null,"SUSACON-BOYACA"]
[null,null,null,null,null,null,null,null,null,null,null,null,null,null,null,null,null,"SUTAMARCHAN-BOYACA"]
[null,null,null,null,null,null,null,null,null,null,null,null,null,null,null,null,null,"SUTATAUSA-CUNDINAMARCA"]
[null,null,null,null,null,null,null,null,null,null,null,null,null,null,null,null,null,"SUTATENZA-BOYACA"]
[null,null,null,null,null,null,null,null,null,null,null,null,null,null,null,null,null,"SUÁREZ-CAUCA"]
[null,null,null,null,null,null,null,null,null,null,null,null,null,null,null,null,null,"TABIO-CUNDINAMARCA"]
[null,null,null,null,null,null,null,null,null,null,null,null,null,null,null,null,null,"TADO-CHOCO"]
[null,null,null,null,null,null,null,null,null,null,null,null,null,null,null,null,null,"TALAIGUA-NUEVO-BOLIVAR"]
[null,null,null,null,null,null,null,null,null,null,null,null,null,null,null,null,null,"TAMALAMEQUE-CESAR"]
[null,null,null,null,null,null,null,null,null,null,null,null,null,null,null,null,null,"TAMARA-CASANARE"]
[null,null,null,null,null,null,null,null,null,null,null,null,null,null,null,null,null,"TAME-ARAUCA"]
[null,null,null,null,null,null,null,null,null,null,null,null,null,null,null,null,null,"TAMESIS-ANTIOQUIA"]
[null,null,null,null,null,null,null,null,null,null,null,null,null,null,null,null,null,"TAMINANGO-NARINO"]
[null,null,null,null,null,null,null,null,null,null,null,null,null,null,null,null,null,"TANGUA-NARINO"]
[null,null,null,null,null,null,null,null,null,null,null,null,null,null,null,null,null,"TARAIRA-VAUPES"]
[null,null,null,null,null,null,null,null,null,null,null,null,null,null,null,null,null,"TARAPACA-AMAZONAS"]
[null,null,null,null,null,null,null,null,null,null,null,null,null,null,null,null,null,"TARAZA-ANTIOQUIA"]
[null,null,null,null,null,null,null,null,null,null,null,null,null,null,null,null,null,"TARQUI-HUILA"]
[null,null,null,null,null,null,null,null,null,null,null,null,null,null,null,null,null,"TARSO-ANTIOQUIA"]
[null,null,null,null,null,null,null,null,null,null,null,null,null,null,null,null,null,"TASCO-BOYACA"]
[null,null,null,null,null,null,null,null,null,null,null,null,null,null,null,null,null,"TAURAMENA-CASANARE"]
[null,null,null,null,null,null,null,null,null,null,null,null,null,null,null,null,null,"TAUSA-CUNDINAMARCA"]
[null,null,null,null,null,null,null,null,null,null,null,null,null,null,null,null,null,"TELLO-HUILA"]
[null,null,null,null,null,null,null,null,null,null,null,null,null,null,null,null,null,"TENA-CUNDINAMARCA"]
[null,null,null,null,null,null,null,null,null,null,null,null,null,null,null,null,null,"TENERIFE-MAGDALENA"]
[null,null,null,null,null,null,null,null,null,null,null,null,null,null,null,null,null,"TENJO-CUNDINAMARCA"]
[null,null,null,null,null,null,null,null,null,null,null,null,null,null,null,null,null,"TENZA-BOYACA"]
[null,null,null,null,null,null,null,null,null,null,null,null,null,null,null,null,null,"TEORAMA-NORTE DE SANTANDER"]
[null,null,null,null,null,null,null,null,null,null,null,null,null,null,null,null,null,"TERUEL-HUILA"]
[null,null,null,null,null,null,null,null,null,null,null,null,null,null,null,null,null,"TESALIA-HUILA"]
[null,null,null,null,null,null,null,null,null,null,null,null,null,null,null,null,null,"TIBACUY-CUNDINAMARCA"]
[null,null,null,null,null,null,null,null,null,null,null,null,null,null,null,null,null,"TIBANA-BOYACA"]
[null,null,null,null,null,null,null,null,null,null,null,null,null,null,null,null,null,"TIBASOSA-BOYACA"]
[null,null,null,null,null,null,null,null,null,null,null,null,null,null,null,null,null,"TIBIRITA-CUNDINAMARCA"]
[null,null,null,null,null,null,null,null,null,null,null,null,null,null,null,null,null,"TIBU-NORTE DE SANTANDER"]
[null,null,null,null,null,null,null,null,null,null,null,null,null,null,null,null,null,"TIERRALTA-CORDOBA"]
[null,null,null,null,null,null,null,null,null,null,null,null,null,null,null,null,null,"TIMANA-HUILA"]
[null,null,null,null,null,null,null,null,null,null,null,null,null,null,null,null,null,"TIMBIO-CAUCA"]
[null,null,null,null,null,null,null,null,null,null,null,null,null,null,null,null,null,"TIMBIQUI-CAUCA"]
[null,null,null,null,null,null,null,null,null,null,null,null,null,null,null,null,null,"TINJACA-BOYACA"]
[null,null,null,null,null,null,null,null,null,null,null,null,null,null,null,null,null,"TIPACOQUE-BOYACA"]
[null,null,null,null,null,null,null,null,null,null,null,null,null,null,null,null,null,"TIQUISIO-BOLIVAR"]
[null,null,null,null,null,null,null,null,null,null,null,null,null,null,null,null,null,"TITIRIBI-ANTIOQUIA"]
[null,null,null,null,null,null,null,null,null,null,null,null,null,null,null,null,null,"TOCA-BOYACA"]
[null,null,null,null,null,null,null,null,null,null,null,null,null,null,null,null,null,"TOCAIMA-CUNDINAMARCA"]
[null,null,null,null,null,null,null,null,null,null,null,null,null,null,null,null,null,"TOCANCIPA-CUNDINAMARCA"]
[null,null,null,null,null,null,null,null,null,null,null,null,null,null,null,null,null,"TOGUI-BOYACA"]
[null,null,null,null,null,null,null,null,null,null,null,null,null,null,null,null,null,"TOLEDO-ANTIOQUIA"]
[null,null,null,null,null,null,null,null,null,null,null,null,null,null,null,null,null,"TOLEDO-NORTE DE SANTANDER"]
[null,null,null,null,null,null,null,null,null,null,null,null,null,null,null,null,null,"TOLU-SUCRE"]
[null,null,null,null,null,null,null,null,null,null,null,null,null,null,null,null,null,"TOLUVIEJO-SUCRE"]
[null,null,null,null,null,null,null,null,null,null,null,null,null,null,null,null,null,"TONA-SANTANDER"]
[null,null,null,null,null,null,null,null,null,null,null,null,null,null,null,null,null,"TOPAGA-BOYACA"]
[null,null,null,null,null,null,null,null,null,null,null,null,null,null,null,null,null,"TOPAIPI-CUNDINAMARCA"]
[null,null,null,null,null,null,null,null,null,null,null,null,null,null,null,null,null,"TORIBIO-CAUCA"]
[null,null,null,null,null,null,null,null,null,null,null,null,null,null,null,null,null,"TORO-VALLE"]
[null,null,null,null,null,null,null,null,null,null,null,null,null,null,null,null,null,"TOTA-BOYACA"]
[null,null,null,null,null,null,null,null,null,null,null,null,null,null,null,null,null,"TOTORO-CAUCA"]
[null,null,null,null,null,null,null,null,null,null,null,null,null,null,null,null,null,"TRINIDAD-CASANARE"]
[null,null,null,null,null,null,null,null,null,null,null,null,null,null,null,null,null,"TRUJILLO-VALLE"]
[null,null,null,null,null,null,null,null,null,null,null,null,null,null,null,null,null,"TUBARA-ATLANTICO"]
[null,null,null,null,null,null,null,null,null,null,null,null,null,null,null,null,null,"TUCHIN-CORDOBA"]
[null,null,null,null,null,null,null,null,null,null,null,null,null,null,null,null,null,"TULUA-VALLE"]
[null,null,null,null,null,null,null,null,null,null,null,null,null,null,null,null,null,"TUMACO-NARINO"]
[null,null,null,null,null,null,null,null,null,null,null,null,null,null,null,null,null,"TUNJA-BOYACA"]
[null,null,null,null,null,null,null,null,null,null,null,null,null,null,null,null,null,"TUNUNGUA-BOYACA"]
[null,null,null,null,null,null,null,null,null,null,null,null,null,null,null,null,null,"TUQUERRES-NARINO"]
[null,null,null,null,null,null,null,null,null,null,null,null,null,null,null,null,null,"TURBACO-BOLIVAR"]
[null,null,null,null,null,null,null,null,null,null,null,null,null,null,null,null,null,"TURBANA-BOLIVAR"]
[null,null,null,null,null,null,null,null,null,null,null,null,null,null,null,null,null,"TURBO-ANTIOQUIA"]
[null,null,null,null,null,null,null,null,null,null,null,null,null,null,null,null,null,"TURMEQUE-BOYACA"]
[null,null,null,null,null,null,null,null,null,null,null,null,null,null,null,null,null,"TUTA-BOYACA"]
[null,null,null,null,null,null,null,null,null,null,null,null,null,null,null,null,null,"TUTASA-BOYACA"]
[null,null,null,null,null,null,null,null,null,null,null,null,null,null,null,null,null,"UBALA-CUNDINAMARCA"]
[null,null,null,null,null,null,null,null,null,null,null,null,null,null,null,null,null,"UBAQUE-CUNDINAMARCA"]
[null,null,null,null,null,null,null,null,null,null,null,null,null,null,null,null,null,"UBATE-CUNDINAMARCA"]
[null,null,null,null,null,null,null,null,null,null,null,null,null,null,null,null,null,"ULLOA-VALLE"]
[null,null,null,null,null,null,null,null,null,null,null,null,null,null,null,null,null,"UMBITA-BOYACA"]
[null,null,null,null,null,null,null,null,null,null,null,null,null,null,null,null,null,"UNE-CUNDINAMARCA"]
[null,null,null,null,null,null,null,null,null,null,null,null,null,null,null,null,null,"UNGUIA-CHOCO"]
[null,null,null,null,null,null,null,null,null,null,null,null,null,null,null,null,null,"UNIÓN-PANAMERICANA-CHOCO"]
[null,null,null,null,null,null,null,null,null,null,null,null,null,null,null,null,null,"URAMITA-ANTIOQUIA"]
[null,null,null,null,null,null,null,null,null,null,null,null,null,null,null,null,null,"URIBE-META"]
[null,null,null,null,null,null,null,null,null,null,null,null,null,null,null,null,null,"URIBIA-LA GUAJIRA"]
[null,null,null,null,null,null,null,null,null,null,null,null,null,null,null,null,null,"URRAO-ANTIOQUIA"]
[null,null,null,null,null,null,null,null,null,null,null,null,null,null,null,null,null,"URUMITA-LA GUAJIRA"]
[null,null,null,null,null,null,null,null,null,null,null,null,null,null,null,null,null,"USAQUEN-BOGOTA D.C."]
[null,null,null,null,null,null,null,null,null,null,null,null,null,null,null,null,null,"USIACURI-ATLANTICO"]
[null,null,null,null,null,null,null,null,null,null,null,null,null,null,null,null,null,"USME-BOGOTA D.C."]
[null,null,null,null,null,null,null,null,null,null,null,null,null,null,null,null,null,"UTICA-CUNDINAMARCA"]
[null,null,null,null,null,null,null,null,null,null,null,null,null,null,null,null,null,"VALDIVIA-ANTIOQUIA"]
[null,null,null,null,null,null,null,null,null,null,null,null,null,null,null,null,null,"VALENCIA-CORDOBA"]
[null,null,null,null,null,null,null,null,null,null,null,null,null,null,null,null,null,"VALLE-GUAMUEZ-PUTUMAYO"]
[null,null,null,null,null,null,null,null,null,null,null,null,null,null,null,null,null,"VALLE-SAN-JOSE-SANTANDER"]
[null,null,null,null,null,null,null,null,null,null,null,null,null,null,null,null,null,"VALLE-SAN-JUAN-TOLIMA"]
[null,null,null,null,null,null,null,null,null,null,null,null,null,null,null,null,null,"VALLEDUPAR-CESAR"]
[null,null,null,null,null,null,null,null,null,null,null,null,null,null,null,null,null,"VALPARAISO-ANTIOQUIA"]
[null,null,null,null,null,null,null,null,null,null,null,null,null,null,null,null,null,"VALPARAISO-CAQUETA"]
[null,null,null,null,null,null,null,null,null,null,null,null,null,null,null,null,null,"VEGACHI-ANTIOQUIA"]
[null,null,null,null,null,null,null,null,null,null,null,null,null,null,null,null,null,"VELEZ-SANTANDER"]
[null,null,null,null,null,null,null,null,null,null,null,null,null,null,null,null,null,"VENADILLO-TOLIMA"]
[null,null,null,null,null,null,null,null,null,null,null,null,null,null,null,null,null,"VENECIA-ANTIOQUIA"]
[null,null,null,null,null,null,null,null,null,null,null,null,null,null,null,null,null,"VENECIA-OSPINA-PEREZ-CUNDINAMARCA"]
[null,null,null,null,null,null,null,null,null,null,null,null,null,null,null,null,null,"VENTAQUEMADA-BOYACA"]
[null,null,null,null,null,null,null,null,null,null,null,null,null,null,null,null,null,"VERGARA-CUNDINAMARCA"]
[null,null,null,null,null,null,null,null,null,null,null,null,null,null,null,null,null,"VERSALLES-VALLE"]
[null,null,null,null,null,null,null,null,null,null,null,null,null,null,null,null,null,"VETAS-SANTANDER"]
[null,null,null,null,null,null,null,null,null,null,null,null,null,null,null,null,null,"VIANI-CUNDINAMARCA"]
[null,null,null,null,null,null,null,null,null,null,null,null,null,null,null,null,null,"VICTORIA-CALDAS"]
[null,null,null,null,null,null,null,null,null,null,null,null,null,null,null,null,null,"VIGIA-DEL-FUERTE-ANTIOQUIA"]
[null,null,null,null,null,null,null,null,null,null,null,null,null,null,null,null,null,"VIJES-VALLE"]
[null,null,null,null,null,null,null,null,null,null,null,null,null,null,null,null,null,"VILLA-CARO-NORTE DE SANTANDER"]
[null,null,null,null,null,null,null,null,null,null,null,null,null,null,null,null,null,"VILLA-DE-LEYVA-BOYACA"]
[null,null,null,null,null,null,null,null,null,null,null,null,null,null,null,null,null,"VILLA-RICA-CAUCA"]
[null,null,null,null,null,null,null,null,null,null,null,null,null,null,null,null,null,"VILLA-ROSARIO-NORTE DE SANTANDER"]
[null,null,null,null,null,null,null,null,null,null,null,null,null,null,null,null,null,"VILLAGARZON-PUTUMAYO"]
[null,null,null,null,null,null,null,null,null,null,null,null,null,null,null,null,null,"VILLAGOMEZ-CUNDINAMARCA"]
[null,null,null,null,null,null,null,null,null,null,null,null,null,null,null,null,null,"VILLAHERMOSA-TOLIMA"]
[null,null,null,null,null,null,null,null,null,null,null,null,null,null,null,null,null,"VILLAMARIA-CALDAS"]
[null,null,null,null,null,null,null,null,null,null,null,null,null,null,null,null,null,"VILLANUEVA-BOLIVAR"]
[null,null,null,null,null,null,null,null,null,null,null,null,null,null,null,null,null,"VILLANUEVA-CASANARE"]
[null,null,null,null,null,null,null,null,null,null,null,null,null,null,null,null,null,"VILLANUEVA-LA GUAJIRA"]
[null,null,null,null,null,null,null,null,null,null,null,null,null,null,null,null,null,"VILLANUEVA-SANTANDER"]
[null,null,null,null,null,null,null,null,null,null,null,null,null,null,null,null,null,"VILLAPINZON-CUNDINAMARCA"]
[null,null,null,null,null,null,null,null,null,null,null,null,null,null,null,null,null,"VILLARRICA-TOLIMA"]
[null,null,null,null,null,null,null,null,null,null,null,null,null,null,null,null,null,"VILLAVICENCIO-META"]
[null,null,null,null,null,null,null,null,null,null,null,null,null,null,null,null,null,"VILLAVIEJA-HUILA"]
[null,null,null,null,null,null,null,null,null,null,null,null,null,null,null,null,null,"VILLETA-CUNDINAMARCA"]
[null,null,null,null,null,null,null,null,null,null,null,null,null,null,null,null,null,"VIOTA-CUNDINAMARCA"]
[null,null,null,null,null,null,null,null,null,null,null,null,null,null,null,null,null,"VIRACACHA-BOYACA"]
[null,null,null,null,null,null,null,null,null,null,null,null,null,null,null,null,null,"VISTA-HERMOSA-META"]
[null,null,null,null,null,null,null,null,null,null,null,null,null,null,null,null,null,"VITERBO-CALDAS"]
[null,null,null,null,null,null,null,null,null,null,null,null,null,null,null,null,null,"YACOPI-CUNDINAMARCA"]
[null,null,null,null,null,null,null,null,null,null,null,null,null,null,null,null,null,"YACUANQUER-NARINO"]
[null,null,null,null,null,null,null,null,null,null,null,null,null,null,null,null,null,"YAGUARA-HUILA"]
[null,null,null,null,null,null,null,null,null,null,null,null,null,null,null,null,null,"YALI-ANTIOQUIA"]
[null,null,null,null,null,null,null,null,null,null,null,null,null,null,null,null,null,"YARUMAL-ANTIOQUIA"]
[null,null,null,null,null,null,null,null,null,null,null,null,null,null,null,null,null,"YAVARATE-VAUPES"]
[null,null,null,null,null,null,null,null,null,null,null,null,null,null,null,null,null,"YOLOMBO-ANTIOQUIA"]
[null,null,null,null,null,null,null,null,null,null,null,null,null,null,null,null,null,"YONDO-ANTIOQUIA"]
[null,null,null,null,null,null,null,null,null,null,null,null,null,null,null,null,null,"YOPAL-CASANARE"]
[null,null,null,null,null,null,null,null,null,null,null,null,null,null,null,null,null,"YOTOCO-VALLE"]
[null,null,null,null,null,null,null,null,null,null,null,null,null,null,null,null,null,"YUMBO-VALLE"]
[null,null,null,null,null,null,null,null,null,null,null,null,null,null,null,null,null,"ZAMBRANO-BOLIVAR"]
[null,null,null,null,null,null,null,null,null,null,null,null,null,null,null,null,null,"ZAPATOCA-SANTANDER"]
[null,null,null,null,null,null,null,null,null,null,null,null,null,null,null,null,null,"ZAPAYÁN-MAGDALENA"]
[null,null,null,null,null,null,null,null,null,null,null,null,null,null,null,null,null,"ZARAGOZA-ANTIOQUIA"]
[null,null,null,null,null,null,null,null,null,null,null,null,null,null,null,null,null,"ZARZAL-VALLE"]
[null,null,null,null,null,null,null,null,null,null,null,null,null,null,null,null,null,"ZETAQUIRA-BOYACA"]
[null,null,null,null,null,null,null,null,null,null,null,null,null,null,null,null,null,"ZIPACON-CUNDINAMARCA"]
[null,null,null,null,null,null,null,null,null,null,null,null,null,null,null,null,null,"ZIPAQUIRA-CUNDINAMARCA"]
[null,null,null,null,null,null,null,null,null,null,null,null,null,null,null,null,null,"ZONA-BANANERA-MAGDALENA"]

{"sheet":"Premisas","index":2,"n_rows":22,"n_cols":16,"rows_kept":22,"cut":false,"hidden":true,"merged":[]}
[]
["Formulas",null,null,"Trama Omitir","Trama Ignorar",null,"FileName:",null,null,"Valida:",null,null,"Check:",null,null,"Version"]
[{"$f":"IF(G3=\"\",\"/*\",\"\")","v":""},null,null,null,null,null,{"$f":"\"N\"&'110000 - Carátula'!E11&\"A\"&MID(YEAR('110000 - Carátula'!E13),3,2)&\"G3\"&\".xbrl\"","v":"NA17G3.xbrl"},null,null,"Si",null,null,{"$f":"'Resumen de Validaciones'!G17","v":32},null,null,{"$f":"Contenido!B6","v":"Versión 1.0"}]
[null,null,null,null,null,null," "]
["OutPutRange"]
["OutputHeader:",{"$f":"Data!$B$5:$B$13","v":"xmlns:link = 'http://www.xbrl.org/2003/linkbase'"}]
["Schema ref:",{"$f":"Data!$B$14","v":"link:schemaRef xlink:type='simple' xlink:href='http://www.supervigilancia.gov.co/tools/Taxonomias/2017-12-31/Grupo3_2017-12-31.xsd'"}]
["OutputMiddle:",{"$f":"Data!B15:B20","v":{"$error":"#VALUE!"}}]
["hwOutputTail:",{"$f":"Data!B23","v":"</xbrli:xbrl>"}]
["FootnoteLang:",{"$f":"Data!B22","v":"\"en\""}]
[]
[]
[]
[]
[]
[]
[]
["Local address"]
[{"$f":"'110000 - Carátula'!D9","v":0}]
[{"$f":"'110010 GeneraXBRL'!D10","v":"co-svsp-core_2017-12-31:AdministradoresEje"}]
[{"$f":"'210000 - Est. Situa. Financiera'!D10","v":0}]
[{"$f":"'310000 - Est. Resultados'!D10","v":0}]

{"sheet":"Periodos","index":3,"n_rows":11,"n_cols":4,"rows_kept":11,"cut":false,"hidden":true,"merged":[]}
[]
[null,"Time map","Periodo 1","Periodo 2"]
[null,"Fecha inicio periodo:","2017-01-01","2016-01-01"]
[null,"Fecha final periodo:","2017-12-31","2016-12-31"]
[]
[]
[null,"Validaciones"]
[null,"CARÁTULA",{"$f":"'110000 - Carátula'!I9","v":24}]
[null,"ADMINISTRADORES",{"$f":"+'110010 - Administradores'!N9","v":2}]
[null,"ESTADO DE SITUACIÓN FINANCIERA",{"$f":"'210000 - Est. Situa. Financiera'!J10","v":2}]
[null,"ESTADO DE RESULTADOS",{"$f":"'310000 - Est. Resultados'!L10","v":4}]

{"sheet":"Resumen de Validaciones","index":4,"n_rows":17,"n_cols":8,"rows_kept":17,"cut":false,"hidden":false,"merged":[[16,1,16,5],[1,1,1,2],[2,1,2,2],[3,1,3,2],[5,2,7,5],[9,2,10,3],[9,4,10,5]]}
[]
[]
[]
[]
[]
[null,null,"Resumen de validaciones"]
[]
[]
[null,{"$f":"MID(A9,27,2)","v":""}]
[null,{"$f":"MID(A10,34,2)","v":""},"Formulario",null,"Estado de validaciones por formulario"]
[null,{"$f":"MID(A11,48,2)","v":""}]
[null,null,110000,"Carátula",{"$f":"IF('110000 - Carátula'!I9=0,\"El formulario NO tiene validaciones pendientes\",\"El Formulario tiene validaciones pendientes\")","v":"El Formulario tiene validaciones pendientes"},{"$f":"'110000 - Carátula'!G9","v":"Formulario 'Carátula' con 24 Celdas por diligenciar"},{"$f":"MID(F12,27,2)","v":"24"},{"$f":"IF(F12=\"Formulario 'Carátula' Completo\",0,ABS(G12))","v":24}]
[null,null,110010,"Administradores",{"$f":"IF('110010 - Administradores'!N9=0,\"El formulario NO tiene validaciones pendientes\",\"El Formulario tiene validaciones pendientes\")","v":"El Formulario tiene validaciones pendientes"},{"$f":"'110010 - Administradores'!L9","v":"Formulario 'Administradores' con 2 filas por diligenciar"},{"$f":"MID(F13,34,2)","v":"2 "},{"$f":"IF(F13=\"Formulario 'Administradores' Completo\",0,ABS(G13))","v":2}]
[null,null,210000,"Estado de situación financiera",{"$f":"IF('210000 - Est. Situa. Financiera'!J10=0,\"El formulario NO tiene validaciones pendientes\",\"El Formulario tiene validaciones pendientes\")","v":"El Formulario tiene validaciones pendientes"},{"$f":"'210000 - Est. Situa. Financiera'!H10","v":"Formulario 'Estado de Situación Financiera' con 2 inconsistencias"},{"$f":"MID(F14,48,2)","v":" 2"},{"$f":"IF(F14=\"Formulario 'Estado de Situación Financiera' Válido\",0,ABS(G14))","v":2}]
[null,null,310000,"Estado de Resultados",{"$f":"IF('310000 - Est. Resultados'!L10=0,\"El formulario NO tiene validaciones pendientes\",\"El Formulario tiene validaciones pendientes\")","v":"El Formulario tiene validaciones pendientes"},{"$f":"'310000 - Est. Resultados'!H10","v":"Formulario 'Estado de Resultados' con 4 inconsistencias"},{"$f":"MID(F15,38,2)","v":" 4"},{"$f":"IF(F15=\"Formulario 'Estado de Resultados' Válido\",0,ABS(G15))","v":4}]
[]
[null,{"$f":"IF(G17=0,\"El archivo NO tiene validaciones pendientes\",\"El archivo tiene validaciones pendientes:\")","v":"El archivo tiene validaciones pendientes:"},null,null,null,null,{"$f":"H17","v":32},{"$f":"IFERROR(SUM(H12:H15),Check)","v":32}]

{"sheet":"110000 - Carátula","index":5,"n_rows":46,"n_cols":13,"rows_kept":46,"cut":false,"hidden":false,"merged":[[3,3,5,4]]}
[]
[]
[]
[null,null,null,"110000 - CARÁTULA"]
[]
[]
[]
[null,null,null,null,1]
[null,"Periodo",null,null,"INFORMACIÓN A REVELAR 2017-21-31",null,{"$f":"IF(I9=0,\"Formulario 'Carátula' Completo\",\"Formulario 'Carátula' con \"&I9&\" Celdas por diligenciar\")","v":"Formulario 'Carátula' con 24 Celdas por diligenciar"},null,{"$f":"SUM(I11:I46)","v":24}]
[null,1,"co-svsp-core_2017-12-31:DatosBasicos","Datos Básicos"]
[null,1,"co-svsp-core_2017-12-31:NIT","NIT",null,null,{"$f":"IF(E11<>\"\",\"CORRECTO\",\"Debe registrar información para '\"&D11&\"'\")","v":"Debe registrar información para 'NIT'"},null,{"$f":"IF(G11=\"CORRECTO\",0,1)","v":1}]
[null,1,"co-svsp-core_2017-12-31:DV","DV",null,null,{"$f":"IF(E12<>\"\",\"CORRECTO\",\"Debe registrar información para '\"&D12&\"'\")","v":"Debe registrar información para 'DV'"},null,{"$f":"IF(G12=\"CORRECTO\",0,1)","v":1}]
[null,1,"co-svsp-core_2017-12-31:FechadeCorte","Fecha de Corte","2017-12-31",null,{"$f":"IF(E13<>\"\",\"CORRECTO\",\"Debe registrar información para '\"&D13&\"'\")","v":"CORRECTO"},null,0]
[null,1,"co-svsp-core_2017-12-31:SereunioelmaximoOrganoSocialparaconsiderarlosEstadosFinancieros","Se reunió el máximo Órgano Social para considerar los Estados Financieros",null,null,"Debe registrar información para 'Se reunió el máximo Órgano Social para considerar los Estados Financieros'",null,1,null,{"$f":"IF(OR(E14=\"\",E14=\"NO\"),0,1)","v":0}]
[null,1,"co-svsp-core_2017-12-31:ActaNumero","Acta Número",null,null,{"$f":"IF(M15=\"CORRECTO\",\"CORRECTO\",\"Debe registrar información para '\"&D15&\"' cuando responde afirmativamente a '\"&D14&\"'. '\"&D15&\"' debe estar vacio cuando responde negativamente a '\"&D14&\"'\")","v":"CORRECTO"},null,0,null,{"$f":"IF(OR(E15=\"\",E15=\"NO\"),0,1)","v":0},{"$f":"IF(E15=\"\",0,1)","v":0},{"$f":"IF(AND(K14=0,L15=0),\"CORRECTO\",IF(AND(K14<>0,L15<>0),\"CORRECTO\",\"INCORRECTO\"))","v":"CORRECTO"}]
[null,1,"co-svsp-core_2017-12-31:FechadelActa","Fecha del Acta",null,null,{"$f":"IF(M16=\"CORRECTO\",\"CORRECTO\",\"Debe registrar información para '\"&D16&\"' cuando responde afirmativamente a '\"&D15&\"'. '\"&D16&\"' debe estar vacio cuando responde negativamente a '\"&D15&\"'\")","v":"CORRECTO"},null,0,null,{"$f":"IF(OR(E16=\"\",E16=\"NO\"),0,1)","v":0},{"$f":"IF(E16=\"\",0,1)","v":0},{"$f":"IF(AND(K14=0,L16=0),\"CORRECTO\",IF(AND(K14<>0,L16<>0),\"CORRECTO\",\"INCORRECTO\"))","v":"CORRECTO"}]
[null,1,"co-svsp-core_2017-12-31:FueronaprobadosenAsambleaGeneraldeAccionistasolaJuntadeSocios","Fueron aprobados en Asamblea General de Accionistas o la Junta de Socios",null,null,{"$f":"IF(M17=\"CORRECTO\",\"CORRECTO\",\"Debe registrar información para '\"&D17&\"' cuando responde afirmativamente a '\"&D16&\"'. '\"&D17&\"' debe estar vacio cuando responde negativamente a '\"&D16&\"'\")","v":"CORRECTO"},null,0,null,{"$f":"IF(OR(E17=\"\",E17=\"NO\"),0,1)","v":0},{"$f":"IF(E17=\"\",0,1)","v":0},{"$f":"IF(AND(K14=0,L17=0),\"CORRECTO\",IF(AND(K14<>0,L17<>0),\"CORRECTO\",\"INCORRECTO\"))","v":"CORRECTO"}]
[null,1,"co-svsp-core_2017-12-31:InformacionGeneral","Información General"]
[null,1,"co-svsp-core_2017-12-31:RazonSocial","Razón Social",null,null,{"$f":"IF(E19<>\"\",\"CORRECTO\",\"Debe registrar información para '\"&D19&\"'\")","v":"Debe registrar información para 'Razón Social'"},null,{"$f":"IF(G19=\"CORRECTO\",0,1)","v":1}]
[null,1,"co-svsp-core_2017-12-31:ObjetoSocialPrincipal","Objeto Social Principal",null,null,"Debe registrar información para 'Objeto Social Principal'",null,1]
[null,1,"co-svsp-core_2017-12-31:ClasificacionIndustrialInternacionalUniformeVersion4AC","Clasificación Industrial Internacional Uniforme Versión 4 A.C",null,null,"Debe registrar información para 'Clasificación Industrial Internacional Uniforme Versión 4 A.C'",null,1]
[null,1,"co-svsp-core_2017-12-31:GrupodePreparadoresdeInformacionFinanciera","Grupo de Preparadores de Información Financiera",null,null,"Debe registrar información para 'Grupo de Preparadores de Información Financiera'",null,1]
[null,1,"co-svsp-core_2017-12-31:NaturalezadelaEmpresa","Naturaleza de la Empresa",null,null,"Debe registrar información para 'Naturaleza de la Empresa'",null,1]
[null,1,"co-svsp-core_2017-12-31:TipoSocietario","Tipo Societario",null,null,"Debe registrar información para 'Tipo Societario'",null,1]
[null,1,"co-svsp-core_2017-12-31:EstadoDeLaEmpresa","Estado de la Empresa",null,null,"Debe registrar información para 'Estado de la Empresa'",null,1]
[null,1,"co-svsp-core_2017-12-31:DirecciondeNotificacionJudicial","Dirección de Notificación Judicial",null,null,"Debe registrar información para 'Dirección de Notificación Judicial'",null,1]
[null,1,"co-svsp-core_2017-12-31:DepartamentodeNotificacionJudicial","Departamento de Notificación Judicial",null,null,"Debe registrar información para 'Departamento de Notificación Judicial'",null,1]
[null,1,"co-svsp-core_2017-12-31:CiudaddeNotificacionJudicial","Ciudad de Notificación Judicial",null,null,"Debe registrar información para 'Ciudad de Notificación Judicial'",null,1]
[null,1,"co-svsp-core_2017-12-31:EmailEmpresarialdeNotificacionJudicial","E-mail Empresarial de Notificación Judicial",null,null,{"$f":"IF(AND(H29=FALSE,E29<>\"\"),\"CORRECTO\",\"Debe registrar información para '\"&D29&\"'\")","v":"Debe registrar información para 'E-mail Empresarial de Notificación Judicial'"},{"$f":"ISERROR(AND(SEARCH(\"@\",E29),SEARCH(\".\",E29)))","v":true},1]
[null,1,"co-svsp-core_2017-12-31:Celular","Celular",null,null,"Debe registrar información para 'Celular'",null,1]
[null,1,"co-svsp-core_2017-12-31:TelefonoFijo","Teléfono Fijo",null,null,"Debe registrar información para 'Teléfono Fijo'",null,1]
[null,1,"co-svsp-core_2017-12-31:InformacionAnteSupervigilancia","Información ante Supervigilancia"]
[null,1,"co-svsp-core_2017-12-31:EstadoDeLicenciaDeFuncionamiento","Estado de Licencia de Funcionamiento",null,null,{"$f":"IF(E33<>\"\",\"CORRECTO\",\"Debe registrar información para '\"&D33&\"'\")","v":"Debe registrar información para 'Estado de Licencia de Funcionamiento'"},null,{"$f":"IF(G33=\"CORRECTO\",0,1)","v":1}]
[null,1,"co-svsp-core_2017-12-31:TipoDeServicio","Tipo de Servicio",null,null,"Debe registrar información para 'Tipo de Servicio'",null,1]
[null,1,"co-svsp-core_2017-12-31:InformacionSobreLaRevisoriaFiscal","Información sobre la Revisoría Fiscal"]
[null,1,"co-svsp-core_2017-12-31:LaCompaniaEstaObligadaARevisorFiscal","¿La compañía esta obligada a tener revisor fiscal?",null,null,{"$f":"IF(E36<>\"\",\"CORRECTO\",\"Debe registrar información para '\"&D36&\"'\")","v":"Debe registrar información para '¿La compañía esta obligada a tener revisor fiscal?'"},null,{"$f":"IF(G36=\"CORRECTO\",0,1)","v":1},null,{"$f":"IF(OR(E36=\"\",E36=\"NO\"),0,1)","v":0}]
[null,1,"co-svsp-core_2017-12-31:RevisorFiscalPerteneceAFirma","¿El revisor fiscal pertenece a una firma?",null,null,{"$f":"IF(M37=\"CORRECTO\",\"CORRECTO\",\"Debe registrar información para '\"&D37&\"' cuando responde afirmativamente a '\"&D36&\"'. '\"&D37&\"' debe estar vacio cuando responde negativamente a '\"&D36&\"'\")","v":"CORRECTO"},null,0,null,{"$f":"IF(OR(E37=\"\",E37=\"NO\"),0,1)","v":0},{"$f":"IF(E37=\"\",0,1)","v":0},{"$f":"IF(AND(K36=0,L37=0),\"CORRECTO\",IF(AND(K36<>0,L37<>0),\"CORRECTO\",\"INCORRECTO\"))","v":"CORRECTO"}]
[null,1,"co-svsp-core_2017-12-31:RazonSocialRevisorFiscalPersonaJurídica","¿A que firma pertenece el revisor fiscal?",null,null,{"$f":"IF(M38=\"CORRECTO\",\"CORRECTO\",\"Debe registrar información para '\"&D38&\"' cuando responde afirmativamente a '\"&D37&\"'. '\"&D38&\"' debe estar vacio cuando responde negativamente a '\"&D37&\"'\")","v":"CORRECTO"},null,0,null,null,{"$f":"IF(E38=\"\",0,1)","v":0},{"$f":"IF(AND(K37=0,L38=0),\"CORRECTO\",IF(AND(K37<>0,L38<>0),\"CORRECTO\",\"INCORRECTO\"))","v":"CORRECTO"}]
[null,1,"co-svsp-core_2017-12-31:DirecciondeDomicilioRevisorFiscalPersonaJurídica","Dirección de Domicilio de la firma a la cual pertenece el revisor fiscal",null,null,{"$f":"IF(M39=\"CORRECTO\",\"CORRECTO\",\"Debe registrar información para '\"&D39&\"' cuando responde afirmativamente a '\"&D37&\"'. '\"&D39&\"' debe estar vacio cuando responde negativamente a '\"&D37&\"'\")","v":"CORRECTO"},null,0,null,null,{"$f":"IF(E39=\"\",0,1)","v":0},{"$f":"IF(AND(K37=0,L39=0),\"CORRECTO\",IF(AND(K37<>0,L39<>0),\"CORRECTO\",\"INCORRECTO\"))","v":"CORRECTO"}]
[null,1,"co-svsp-core_2017-12-31:RegistroJCCRevisorFiscalPersonaJurídica","Registro en la Junta Central de Contadores del Revisor fiscal",null,null,{"$f":"IF(M40=\"CORRECTO\",\"CORRECTO\",\"Debe registrar información para '\"&D40&\"' cuando responde afirmativamente a '\"&D36&\"'. '\"&D40&\"' debe estar vacio cuando responde negativamente a '\"&D36&\"'\")","v":"CORRECTO"},null,0,null,null,{"$f":"IF(E40=\"\",0,1)","v":0},{"$f":"IF(AND(K36=0,L40=0),\"CORRECTO\",IF(AND(K36<>0,L40<>0),\"CORRECTO\",\"INCORRECTO\"))","v":"CORRECTO"}]
[null,1,"co-svsp-core_2017-12-31:InformacionSobreConsolidacionDeEstadosFinancieros","Información sobre consolidación de Estados Financieros"]
[null,1,"co-svsp-core_2017-12-31:LaCompaniaEsResponsableDeConsolidarInformacionParaEstePeriodo","¿La compañía es responsable de consolidar información para este periodo?",null,null,{"$f":"IF(E42<>\"\",\"CORRECTO\",\"Debe registrar información para '\"&D42&\"'\")","v":"Debe registrar información para '¿La compañía es responsable de consolidar información para este periodo?'"},null,1]
[null,1,"co-svsp-core_2017-12-31:LaCompaniaEsSubordinadaOAsociadaDeOtraCompania","¿La compañía es subordinada o asociada de otra compañía?",null,null,"Debe registrar información para '¿La compañía es subordinada o asociada de otra compañía?'",null,1]
[null,1,"co-svsp-core_2017-12-31:LaCompaniaTieneSubordinadas","¿La compañía tiene subordinadas?",null,null,"Debe registrar información para '¿La compañía tiene subordinadas?'",null,1]
[null,1,"co-svsp-core_2017-12-31:LaCompaniaTieneAsociadas","¿La compañía tiene asociadas?",null,null,"Debe registrar información para '¿La compañía tiene asociadas?'",null,1]
[null,1,"co-svsp-core_2017-12-31:LaCompaniaTieneNegociosConjuntos","¿La compañía tiene negocios conjuntos?",null,null,"Debe registrar información para '¿La compañía tiene negocios conjuntos?'",null,1]

{"sheet":"110010 - Administradores","index":6,"n_rows":13,"n_cols":14,"rows_kept":13,"cut":false,"hidden":false,"merged":[[3,3,5,9],[8,4,8,9]]}
[]
[]
[]
[null,null,null,"110010 - Información a revelar sobre administradores"]
[]
[]
[]
[]
[null,null,null,null,"Detalles de Administradores ",null,null,null,null,null,null,{"$f":"IF(N9=0,\"Formulario 'Administradores' Completo\",\"Formulario 'Administradores' con \"&N9&\" filas por diligenciar\")","v":"Formulario 'Administradores' con 2 filas por diligenciar"},null,{"$f":"SUM(N11:N13)","v":2}]
[null,null,null,"co-svsp-core_2017-12-31:AdministradoresEje","Tipo de documento","Numero de documento","Nombres","Apellidos","Email","Tarjeta profesional"]
[null,null,null,"Representante legal [miembro]",null,null,null,null,null,null,null,{"$f":"IF(AND(D11<>\"\",E11<>\"\",F11<>\"\",G11<>\"\",H11<>\"\",I11<>\"\",M11=FALSE),\"CORRECTO\",\"Registre de forma completa y adecuada la información de \"&D11&\"'\")","v":"Registre de forma completa y adecuada la información de Representante legal [miembro]'"},{"$f":"ISERROR(AND(SEARCH(\"@\",I11),SEARCH(\".\",I11)))","v":true},{"$f":"IF(L11=\"CORRECTO\",0,1)","v":1}]
[null,null,null,"Contador [miembro]",null,null,null,null,null,null,null,{"$f":"IF(AND(D12<>\"\",E12<>\"\",F12<>\"\",G12<>\"\",H12<>\"\",I12<>\"\",J12<>\"\",M12=FALSE),\"CORRECTO\",\"Registre de forma completa y adecuada la información de \"&D12&\"'\")","v":"Registre de forma completa y adecuada la información de Contador [miembro]'"},{"$f":"ISERROR(AND(SEARCH(\"@\",I12),SEARCH(\".\",I12)))","v":true},1]
[null,null,null,"Revisor fiscal [miembro]",null,null,null,null,null,null,null,{"$f":"IF(OR('110000 - Carátula'!E36=\"\",'110000 - Carátula'!E36=\"NO\"),\"CORRECTO\",IF(AND('110000 - Carátula'!E36=\"SI\",D13<>\"\",E13<>\"\",F13<>\"\",G13<>\"\",H13<>\"\",I13<>\"\",J13<>\"\",M13=FALSE),\"CORRECTO\",\"Se indíca en 'Carátula' la obligatoriedad de tener revisor fiscal, de forma completa y adecuada la información de \"&D13&\"'\"))","v":"CORRECTO"},{"$f":"ISERROR(AND(SEARCH(\"@\",I13),SEARCH(\".\",I13)))","v":true},0]

{"sheet":"110010 GeneraXBRL","index":7,"n_rows":16,"n_cols":7,"rows_kept":16,"cut":false,"hidden":true,"merged":[[3,3,5,9],[7,3,7,6]]}
[]
[]
[]
[null,null,null,"110010 - Información a revelar sobre administradores"]
[]
[]
[]
[]
[null,null,null,null,"co-svsp-core_2017-12-31:RepresentantePrincipalMiembro","co-svsp-core_2017-12-31:ContadorMiembro","co-svsp-core_2017-12-31:RevisorFiscalMiembro"]
[null,"Periodo",null,"co-svsp-core_2017-12-31:AdministradoresEje","Representante legal [miembro]","Contador [miembro]","Revisor fiscal [miembro]"]
[null,"1;1","co-svsp-core_2017-12-31:TipoDeDocumento","Tipo de documento",{"$f":"IF('110010 - Administradores'!E11=\"\",\"\",'110010 - Administradores'!E11)","v":""},{"$f":"IF('110010 - Administradores'!E12=\"\",\"\",'110010 - Administradores'!E12)","v":""},{"$f":"IF('110010 - Administradores'!E13=\"\",\"\",'110010 - Administradores'!E13)","v":""}]
[null,"1;1","co-svsp-core_2017-12-31:NumeroDeDocumento","Numero de documento",{"$f":"IF('110010 - Administradores'!F11=\"\",\"\",'110010 - Administradores'!F11)","v":""},{"$f":"IF('110010 - Administradores'!F12=\"\",\"\",'110010 - Administradores'!F12)","v":""},{"$f":"IF('110010 - Administradores'!F13=\"\",\"\",'110010 - Administradores'!F13)","v":""}]
[null,"1;1","co-svsp-core_2017-12-31:Nombres","Nombres",{"$f":"IF('110010 - Administradores'!G11=\"\",\"\",'110010 - Administradores'!G11)","v":""},{"$f":"IF('110010 - Administradores'!G12=\"\",\"\",'110010 - Administradores'!G12)","v":""},{"$f":"IF('110010 - Administradores'!G13=\"\",\"\",'110010 - Administradores'!G13)","v":""}]
[null,"1;1","co-svsp-core_2017-12-31:Apellidos","Apellidos",{"$f":"IF('110010 - Administradores'!H11=\"\",\"\",'110010 - Administradores'!H11)","v":""},{"$f":"IF('110010 - Administradores'!H12=\"\",\"\",'110010 - Administradores'!H12)","v":""},{"$f":"IF('110010 - Administradores'!H13=\"\",\"\",'110010 - Administradores'!H13)","v":""}]
[null,"1;1","co-svsp-core_2017-12-31:Email","Email",{"$f":"IF('110010 - Administradores'!I11=\"\",\"\",'110010 - Administradores'!I11)","v":""},{"$f":"IF('110010 - Administradores'!I12=\"\",\"\",'110010 - Administradores'!I12)","v":""},{"$f":"IF('110010 - Administradores'!I13=\"\",\"\",'110010 - Administradores'!I13)","v":""}]
[null,"1;1","co-svsp-core_2017-12-31:TarjetaProfesional","Tarjeta profesional",{"$f":"IF('110010 - Administradores'!J11=\"\",\"\",'110010 - Administradores'!J11)","v":""},{"$f":"IF('110010 - Administradores'!J12=\"\",\"\",'110010 - Administradores'!J12)","v":""},{"$f":"IF('110010 - Administradores'!J13=\"\",\"\",'110010 - Administradores'!J13)","v":""}]

{"sheet":"210000 - Est. Situa. Financiera","index":8,"n_rows":73,"n_cols":10,"rows_kept":73,"cut":false,"hidden":false,"merged":[[4,2,4,5]]}
[]
[]
[]
[]
[null,null,"210000 - ESTADO DE SITUACIÓN FINANCIERA"]
[]
[]
[]
[null,null,null,null,1,2]
[null,null,null,null,"2017-12-31","2016-12-31",null,{"$f":"IF(J10=0,\"Formulario 'Estado de Situación Financiera' Válido\",\"Formulario 'Estado de Situación Financiera' con \"&J10&\" inconsistencias\")","v":"Formulario 'Estado de Situación Financiera' con 2 inconsistencias"},null,{"$f":"SUM(J11:J12)","v":2}]
[null,1,"ifrs-full:StatementOfFinancialPositionAbstract","Estado de situación financiera [resumen]",null,null,null,null,null,{"$f":"IF(E72=\"CORRECTO\",0,1)","v":1}]
[null,1,"ifrs-full:AssetsAbstract","Activos [resumen]",null,null,null,null,null,{"$f":"IF(F72=\"CORRECTO\",0,1)","v":1}]
[null,1,"ifrs-full:CurrentAssetsAbstract","Activos corrientes [resumen]"]
[null,1,"ifrs-full:CashAndCashEquivalents","Efectivo y equivalentes al efectivo"]
[null,1,"ifrs-full:TradeAndOtherCurrentReceivables","Cuentas comerciales por cobrar y otras cuentas por cobrar corrientes"]
[null,1,"ifrs-full:Inventories","Inventarios corrientes"]
[null,1,"ifrs-full:CurrentTaxAssetsCurrent","Activos por impuestos corrientes, corriente"]
[null,1,"co-svsp-core_2017-12-31:InversionesCorrientesG3","Inversiones corrientes"]
[null,1,"co-svsp-core_2017-12-31:OtrosActivosCorrientesG3","Otros activos corrientes"]
[null,1,"ifrs-full:CurrentAssets","Activos corrientes totales",{"$f":"IF(SUM(E14:E19)=0,\"\",SUM(E14:E19))","v":""},{"$f":"IF(SUM(F14:F19)=0,\"\",SUM(F14:F19))","v":""}]
[null,1,"ifrs-full:NoncurrentAssetsAbstract","Activos no corrientes [resumen]"]
[null,1,"ifrs-full:InvestmentProperty","Propiedad de inversión"]
[null,1,"ifrs-full:PropertyPlantAndEquipment","Propiedades, planta y equipo"]
[null,1,"ifrs-full:Goodwill","Plusvalía"]
[null,1,"co-svsp-core_2017-12-31:InversionesNoCorrientesG3","Inversiones no corrientes"]
[null,1,"ifrs-full:NoncurrentReceivables","Cuentas comerciales por cobrar y otras cuentas por cobrar no corrientes"]
[null,1,"co-svsp-core_2017-12-31:DeterioroCuentasPorCobrarG3","Deterioro cuentas por cobrar"]
[null,1,"ifrs-full:NoncurrentInventories","Inventarios no corrientes"]
[null,1,"ifrs-full:DeferredTaxAssets","Activos por impuestos diferidos"]
[null,1,"ifrs-full:CurrentTaxAssetsNoncurrent","Activos por impuestos corrientes, no corriente"]
[null,1,"co-svsp-core_2017-12-31:OtrosActivosCorrientesNoCorrientesG3","Otros activos corrientes no corrientes"]
[null,1,"ifrs-full:NoncurrentAssets","Total de activos no corrientes",{"$f":"IF((SUM(E22:E26)-E27+SUM(E28:E31))=0,\"\",(SUM(E22:E26)-E27+SUM(E28:E31)))","v":""},{"$f":"IF((SUM(F22:F26)-F27+SUM(F28:F31))=0,\"\",(SUM(F22:F26)-F27+SUM(F28:F31)))","v":""}]
[null,1,"ifrs-full:Assets","Total de activos",{"$f":"IF((SUM(E14:E19)+SUM(E22:E26)-E27+SUM(E28:E31))=0,\"\",(SUM(E14:E19)+SUM(E22:E26)-E27+SUM(E28:E31)))","v":""},{"$f":"IF((SUM(F14:F19)+SUM(F22:F26)-F27+SUM(F28:F31))=0,\"\",(SUM(F14:F19)+SUM(F22:F26)-F27+SUM(F28:F31)))","v":""}]
[null,1,"ifrs-full:EquityAndLiabilitiesAbstract","Patrimonio y pasivos [resumen]"]
[null,1,"ifrs-full:LiabilitiesAbstract","Pasivos [resumen]"]
[null,1,"ifrs-full:CurrentLiabilitiesAbstract","Pasivos corrientes [resumen]"]
[null,1,"co-svsp-core_2017-12-31:AcreedoresComercialesYOtrasCuentasPorPagarCorrientesG3","Acreedores comerciales y otras cuentas por pagar corrientes"]
[null,1,"co-svsp-core_2017-12-31:ProveedoresCorrientesG3","Proveedores corrientes"]
[null,1,"co-svsp-core_2017-12-31:IngresosDiferidosCorrientesG3","Ingresos diferidos corrientes"]
[null,1,"co-svsp-core_2017-12-31:GastosAcumuladosPorPagarCorrientesG3","Gastos acumulados por pagar corrientes"]
[null,1,"co-svsp-core_2017-12-31:OtrasCuentasPorPagarCorrientesG3","Otras cuentas por pagar corrientes"]
[null,1,"co-svsp-core_2017-12-31:ObligacionesFinancierasCorrientesG3","Obligaciones financieras corrientes"]
[null,1,"co-svsp-core_2017-12-31:ObligacionesLaboralesCorrientesG3","Obligaciones laborales corrientes"]
[null,1,"co-svsp-core_2017-12-31:PasivosPorImpuestosCorrientesG3","Pasivos por impuestos corrientes"]
[null,1,"co-svsp-core_2017-12-31:ProvisionesCorrientesG3","Provisiones corrientes"]
[null,1,"co-svsp-core_2017-12-31:OtrosPasivosCorrientesG3","Otros pasivos corrientes"]
[null,1,"ifrs-full:CurrentLiabilities","Pasivos corrientes totales",{"$f":"IF(SUM(E37:E46)=0,\"\",SUM(E37:E46))","v":""},{"$f":"IF(SUM(F37:F46)=0,\"\",SUM(F37:F46))","v":""}]
[null,1,"ifrs-full:NoncurrentLiabilitiesAbstract","Pasivos no corrientes [resumen]"]
[null,1,"co-svsp-core_2017-12-31:AcreedoresComercialesYOtrasCuentasPorPagarNoCorrientesG3","Acreedores comerciales y otras cuentas por pagar no corrientes"]
[null,1,"co-svsp-core_2017-12-31:ProveedoresNoCorrientesG3","Proveedores no corrientes"]
[null,1,"co-svsp-core_2017-12-31:IngresosDiferidosNoCorrientesG3","Ingresos diferidos no corrientes"]
[null,1,"co-svsp-core_2017-12-31:GastosAcumuladosPorPagarNoCorrientesG3","Gastos acumulados por pagar no corrientes"]
[null,1,"co-svsp-core_2017-12-31:OtrasCuentasPorPagarNoCorrientesG3","Otras cuentas por pagar no corrientes"]
[null,1,"co-svsp-core_2017-12-31:ObligacionesFinancierasNoCorrientesG3","Obligaciones financieras no corrientes"]
[null,1,"co-svsp-core_2017-12-31:ObligacionesLaboralesNoCorrientesG3","Obligaciones laborales no corrientes"]
[null,1,"co-svsp-core_2017-12-31:PasivosPorImpuestosDiferidosG3","Pasivos por impuestos diferidos"]
[null,1,"co-svsp-core_2017-12-31:PasivosPorImpuestosNoCorrientesG3","Pasivos por impuestos no corrientes"]
[null,1,"co-svsp-core_2017-12-31:ProvisionesNoCorrientesG3","Provisiones no corrientes"]
[null,1,"co-svsp-core_2017-12-31:OtrosPasivosNoCorrientesG3","Otros pasivos no corrientes"]
[null,1,"ifrs-full:NoncurrentLiabilities","Total de pasivos no corrientes",{"$f":"IF((SUM(E49:E59))=0,\"\",(SUM(E49:E59)))","v":""},{"$f":"IF((SUM(F49:F59))=0,\"\",(SUM(F49:F59)))","v":""}]
[null,1,"ifrs-full:Liabilities","Total pasivos",{"$f":"IF((SUM(E37:E46)+SUM(E49:E59))=0,\"\",(SUM(E37:E46)+SUM(E49:E59)))","v":""},{"$f":"IF((SUM(F37:F46)+SUM(F49:F59))=0,\"\",(SUM(F37:F46)+SUM(F49:F59)))","v":""}]
[null,1,"ifrs-full:EquityAbstract","Patrimonio [resumen]"]
[null,1,"ifrs-full:IssuedCapital","Capital emitido"]
[null,1,"co-svsp-core_2017-12-31:UtilidadOPerdidaDelEjercicioG3","Utilidad o perdida del ejercicio"]
[null,1,"ifrs-full:RetainedEarnings","Ganancias acumuladas"]
[null,1,"co-svsp-core_2017-12-31:ReservasG3","Reservas"]
[null,1,"co-svsp-core_2017-12-31:OtrosComponentesDelPatrimonioG3","Otros componentes del patrimonio"]
[null,1,"ifrs-full:Equity","Patrimonio total",{"$f":"IF((SUM(E63:E67))=0,\"\",(SUM(E63:E67)))","v":""},{"$f":"IF((SUM(F63:F67))=0,\"\",(SUM(F63:F67)))","v":""}]
[null,1,"ifrs-full:EquityAndLiabilities","Total de patrimonio y pasivos",{"$f":"IF((SUM(E37:E46)+SUM(E49:E59)+SUM(E63:E67))=0,\"\",(SUM(E37:E46)+SUM(E49:E59)+SUM(E63:E67)))","v":""},{"$f":"IF((SUM(F37:F46)+SUM(F49:F59)+SUM(F63:F67))=0,\"\",(SUM(F37:F46)+SUM(F49:F59)+SUM(F63:F67)))","v":""}]
[]
[]
[null,null,null,"Cumplimiento de la Ecuación contable",{"$f":"IF(E73=0,\"CORRECTO\",\"INCORRECTO\")","v":"INCORRECTO"},{"$f":"IF(F73=0,\"CORRECTO\",\"INCORRECTO\")","v":"INCORRECTO"}]
[null,null,null,"Diferencia entre Activo y Pasivo + Patrimonio",{"$f":"IFERROR(+E33-E69,\"Registre valor en Total Activos y en Total Patrimonio y pasivos\")","v":"Registre valor en Total Activos y en Total Patrimonio y pasivos"},{"$f":"IFERROR(+F33-F69,\"Registre valor en Total Activos y en Total Patrimonio y pasivos\")","v":"Registre valor en Total Activos y en Total Patrimonio y pasivos"}]

{"sheet":"310000 - Est. Resultados","index":9,"n_rows":26,"n_cols":12,"rows_kept":26,"cut":false,"hidden":false,"merged":[[4,2,4,5],[9,7,9,8]]}
[]
[]
[]
[]
[null,null,"310000 - ESTADO DE RESULTADOS"]
[]
[]
[]
[null,null,null,null,1,2]
[null,null,null,null,"2017-12-31","2016-12-31",null,{"$f":"IF(L10=0,\"Formulario 'Estado de Resultados' Válido\",\"Formulario 'Estado de Resultados' con \"&L10&\" inconsistencias\")","v":"Formulario 'Estado de Resultados' con 4 inconsistencias"},null,null,null,{"$f":"SUM(K13:L26)","v":4}]
[null,0,"ifrs-full:IncomeStatementAbstract","Resultado de periodo [resumen]"]
[null,0,"ifrs-full:ProfitLossAbstract","Ganancia (pérdida) [resumen]"]
[null,0,"ifrs-full:Revenue","Ingresos de actividades ordinarias",null,null,null,{"$f":"IF(E13<>\"\",\"CORRECTO\",\"Debe registrar información para '\"&D13&\"' en la columna correspondiente al periodo actual.\")","v":"Debe registrar información para 'Ingresos de actividades ordinarias' en la columna correspondiente al periodo actual."},{"$f":"IF(F13<>\"\",\"CORRECTO\",\"Debe registrar información para '\"&D13&\"'  en la columna correspondiente al periodo anterior.\")","v":"Debe registrar información para 'Ingresos de actividades ordinarias'  en la columna correspondiente al periodo anterior."},null,{"$f":"IF(H13=\"CORRECTO\",0,1)","v":1},1]
[null,0,"ifrs-full:CostOfSales","Costo de ventas",null,null,null,{"$f":"IF(E14<>\"\",\"CORRECTO\",\"Debe registrar información para '\"&D14&\"' en la columna correspondiente al periodo actual.\")","v":"Debe registrar información para 'Costo de ventas' en la columna correspondiente al periodo actual."},{"$f":"IF(F14<>\"\",\"CORRECTO\",\"Debe registrar información para '\"&D14&\"'  en la columna correspondiente al periodo anterior.\")","v":"Debe registrar información para 'Costo de ventas'  en la columna correspondiente al periodo anterior."},null,1,1]
[null,0,"ifrs-full:GrossProfit","Ganancia bruta",{"$f":"E13-E14","v":0},{"$f":"F13-F14","v":0},null,{"$f":"IF(E15<>\"\",\"CORRECTO\",\"Debe registrar información para '\"&D15&\"' en la columna correspondiente al periodo actual.\")","v":"CORRECTO"},{"$f":"IF(F15<>\"\",\"CORRECTO\",\"Debe registrar información para '\"&D15&\"'  en la columna correspondiente al periodo anterior.\")","v":"CORRECTO"},null,0,0]
[null,0,"ifrs-full:OtherIncome","Otros ingresos"]
[null,0,"ifrs-full:DistributionCosts","Costos de distribución"]
[null,0,"ifrs-full:AdministrativeExpense","Gastos de administración"]
[null,0,"ifrs-full:OtherExpenseByFunction","Otros gastos"]
[null,0,"ifrs-full:OtherGainsLosses","Otras ganancias (pérdidas)"]
[null,0,"ifrs-full:FinanceCosts","Costos financieros"]
[null,0,"co-svsp-core_2017-12-31:OtrosIngresosG3","Otros ingresos"]
[null,0,"co-svsp-core_2017-12-31:IngresosFinancierosG3","Ingresos financieros"]
[null,0,"ifrs-full:ProfitLossBeforeTax","Ganancia (pérdida), antes de impuestos",{"$f":"E15+E16-E17-E18-E19+E20-E21+E22+E23","v":0},{"$f":"F15+F16-F17-F18-F19+F20-F21+F22+F23","v":0},null,{"$f":"IF(E24<>\"\",\"CORRECTO\",\"Debe registrar información para '\"&D24&\"' en la columna correspondiente al periodo actual.\")","v":"CORRECTO"},{"$f":"IF(F24<>\"\",\"CORRECTO\",\"Debe registrar información para '\"&D24&\"'  en la columna correspondiente al periodo anterior.\")","v":"CORRECTO"},null,{"$f":"IF(H24=\"CORRECTO\",0,1)","v":0},{"$f":"IF(I24=\"CORRECTO\",0,1)","v":0}]
[null,0,"co-svsp-core_2017-12-31:IngresoGastoPorImpuestoSobreRentaG3","Ingreso (gasto) por impuesto sobre la renta"]
[null,0,"ifrs-full:ProfitLoss","Ganancia (pérdida)",{"$f":"E24+E25","v":0},{"$f":"F24+F25","v":0},null,{"$f":"IF(E26<>\"\",\"CORRECTO\",\"Debe registrar información para '\"&D26&\"' en la columna correspondiente al periodo actual.\")","v":"CORRECTO"},{"$f":"IF(F26<>\"\",\"CORRECTO\",\"Debe registrar información para '\"&D26&\"'  en la columna correspondiente al periodo anterior.\")","v":"CORRECTO"},null,{"$f":"IF(H26=\"CORRECTO\",0,1)","v":0},{"$f":"IF(I26=\"CORRECTO\",0,1)","v":0}]

{"sheet":"Data","index":10,"n_rows":253,"n_cols":25,"rows_kept":253,"cut":false,"hidden":true,"merged":[]}
["RowId","Footnote","Local Primary Item","Primary Item","Decimals","UnitRef","Fact","Identifier","IdentifierSchema","PeriodInitDuration","PeriodEndInstant","Dimension","DimensionMember","Dimension","DimensionMember","Dimension","DimensionMember","Dimension","DimensionMember","Dimension","DimensionMember","Dimension","DimensionMember","Dimension","DimensionMember"]
["/* "]
["/* "]
["/*"]
["/**OutputHeader","xmlns:xbrli = 'http://www.xbrl.org/2003/instance'"]
["/**OutputHeader","xmlns:link = 'http://www.xbrl.org/2003/linkbase'"]
["/**OutputHeader","xmlns:xlink = 'http://www.w3.org/1999/xlink'"]
["/**OutputHeader","xmlns:xsi='http://www.w3.org/2001/XMLSchema-instance'"]
["/**OutputHeader","xmlns:iso4217='http://www.xbrl.org/2003/iso4217'"]
["/**OutputHeader","xmlns:xbrldi='http://xbrl.org/2006/xbrldi'"]
["/**OutputHeader","xmlns:rsu='http://www.reportingstandard.com/userDefinedUnits'"]
["/**OutputHeader","xmlns:ifrs-full='http://xbrl.ifrs.org/taxonomy/2017-03-09/ifrs-full'"]
["/**OutputHeader","xmlns:co-svsp-core_2017-12-31='http://www.supervigilancia.gov.co/tools/Taxonomias/2017-12-31/'"]
["/**OutputHeader","link:schemaRef xlink:type='simple' xlink:href='http://www.supervigilancia.gov.co/tools/Taxonomias/2017-12-31/Grupo3_2017-12-31.xsd'"]
["/**OutputMiddle","<xbrli:unit id=\"peso\">\n<xbrli:measure>iso4217:COP</xbrli:measure>\n</xbrli:unit>",null,"<xbrli:unit id=\"peso\">\n<xbrli:measure>iso4217:","COP","</xbrli:measure>\n</xbrli:unit>"]
["/**OutputMiddle","<xbrli:unit id=\"entero\">\n<xbrli:measure>xbrli:pure</xbrli:measure>\n</xbrli:unit>",null,"<xbrli:unit id=\"entero\">\n<xbrli:measure>xbrli:","pure","</xbrli:measure>\n</xbrli:unit>"]
["/**OutputMiddle","<xbrli:unit id=\"pesoXaccion\">    <xbrli:divide>\n      <xbrli:unitNumerator>\n      <xbrli:measure>iso4217:COP</xbrli:measure>\n      </xbrli:unitNumerator>\n      <xbrli:unitDenominator>\n      <xbrli:measure>xbrli:shares</xbrli:measure>\n      </xbrli:unitDenominator>\n    </xbrli:divide>\n</xbrli:unit>",null,"<xbrli:unit id=\"pesoXaccion\">","    <xbrli:divide>\n      <xbrli:unitNumerator>\n      <xbrli:measure>iso4217:COP</xbrli:measure>\n      </xbrli:unitNumerator>\n      <xbrli:unitDenominator>\n      <xbrli:measure>xbrli:shares</xbrli:measure>\n      </xbrli:unitDenominator>\n    </xbrli:divide>\n","</xbrli:unit>"]
["/**OutputMiddle","<xbrli:unit id=\"porcentaje\">\n<xbrli:measure>xbrli:pure</xbrli:measure>\n</xbrli:unit>",null,"<xbrli:unit id=\"porcentaje\">\n<xbrli:measure>xbrli:","pure","</xbrli:measure>\n</xbrli:unit>"]
["/**OutputMiddle","<xbrli:unit id=\"decimal\">\n<xbrli:measure>xbrli:pure</xbrli:measure>\n</xbrli:unit>",null,"<xbrli:unit id=\"decimal\">\n<xbrli:measure>xbrli:","pure","</xbrli:measure>\n</xbrli:unit>"]
["/**OutputMiddle","<xbrli:unit id=\"acciones\">\n<xbrli:measure>xbrli:shares</xbrli:measure>\n</xbrli:unit>",null,"<xbrli:unit id=\"acciones\">\n<xbrli:measure>xbrli:","shares","</xbrli:measure>\n</xbrli:unit>"]
["/**OutputMiddle","<xbrli:unit id=\"indefinido\">\n<xbrli:measure>rsu:undefined</xbrli:measure>\n</xbrli:unit>",null,"<xbrli:unit id=\"indefinido\">\n<xbrli:measure>xbrli:","rsu:undefined","</xbrli:measure>\n</xbrli:unit>"]
["/**FootnoteLang","\"en\""]
["/**OutputTail","</xbrli:xbrl>"]
["/*"]
[null,"_1-peso",null,null,0,"peso",null,{"$f":"'110000 - Carátula'!$E$11","v":0},"www.supervigilancia.gov.co"]
[null,"_2-vacio",null,null,null,null,null,{"$f":"'110000 - Carátula'!$E$11","v":0},"www.supervigilancia.gov.co"]
[null,"_3-entero",null,null,0,"entero",null,{"$f":"'110000 - Carátula'!$E$11","v":0},"www.supervigilancia.gov.co"]
[null,"_4-pesoXaccion",null,null,"INF","pesoXaccion",null,{"$f":"'110000 - Carátula'!$E$11","v":0},"www.supervigilancia.gov.co"]
[null,"_5-porcentaje",null,null,"INF","porcentaje",null,{"$f":"'110000 - Carátula'!$E$11","v":0},"www.supervigilancia.gov.co"]
[null,"_6-decimal",null,null,"INF","decimal",null,{"$f":"'110000 - Carátula'!$E$11","v":0},"www.supervigilancia.gov.co"]
[null,"_7-acciones",null,null,"INF","acciones",null,{"$f":"'110000 - Carátula'!$E$11","v":0},"www.supervigilancia.gov.co"]
["/*"]
[{"$f":"IF(G33=\"\",\"/*\",\"\")","v":"/*"}]
["/*",null,"110000 - Carátula"]
["/*",null,"--01--"]
["/*",null,{"$f":"'110000 - Carátula'!$D$10","v":"Datos Básicos"},{"$f":"'110000 - Carátula'!$C$10","v":"co-svsp-core_2017-12-31:DatosBasicos"}]
["",null,{"$f":"'110000 - Carátula'!$D$11","v":"NIT"},{"$f":"'110000 - Carátula'!$C$11","v":"co-svsp-core_2017-12-31:NIT"},null,null,{"$f":"'110000 - Carátula'!$E$11","v":0},800001965,"www.solutions.com",null,{"$f":"Periodos!$C$4","v":"2017-12-31"}]
["",null,{"$f":"'110000 - Carátula'!$D$12","v":"DV"},{"$f":"'110000 - Carátula'!$C$12","v":"co-svsp-core_2017-12-31:DV"},null,null,{"$f":"'110000 - Carátula'!$E$12","v":0},800001965,"www.solutions.com",null,{"$f":"Periodos!$C$4","v":"2017-12-31"}]
["",null,{"$f":"'110000 - Carátula'!$D$13","v":"Fecha de Corte"},{"$f":"'110000 - Carátula'!$C$13","v":"co-svsp-core_2017-12-31:FechadeCorte"},null,null,{"$f":"'110000 - Carátula'!$E$13","v":"2017-12-31"},800001965,"www.solutions.com",null,{"$f":"Periodos!$C$4","v":"2017-12-31"}]
["",null,{"$f":"'110000 - Carátula'!$D$14","v":"Se reunió el máximo Órgano Social para considerar los Estados Financieros"},{"$f":"'110000 - Carátula'!$C$14","v":"co-svsp-core_2017-12-31:SereunioelmaximoOrganoSocialparaconsiderarlosEstadosFinancieros"},null,null,{"$f":"'110000 - Carátula'!$E$14","v":0},800001965,"www.solutions.com",null,{"$f":"Periodos!$C$4","v":"2017-12-31"}]
["",null,{"$f":"'110000 - Carátula'!$D$15","v":"Acta Número"},{"$f":"'110000 - Carátula'!$C$15","v":"co-svsp-core_2017-12-31:ActaNumero"},null,null,{"$f":"'110000 - Carátula'!$E$15","v":0},800001965,"www.solutions.com",null,{"$f":"Periodos!$C$4","v":"2017-12-31"}]
["",null,{"$f":"'110000 - Carátula'!$D$16","v":"Fecha del Acta"},{"$f":"'110000 - Carátula'!$C$16","v":"co-svsp-core_2017-12-31:FechadelActa"},null,null,{"$f":"'110000 - Carátula'!$E$16","v":0},800001965,"www.solutions.com",null,{"$f":"Periodos!$C$4","v":"2017-12-31"}]
["",null,{"$f":"'110000 - Carátula'!$D$17","v":"Fueron aprobados en Asamblea General de Accionistas o la Junta de Socios"},{"$f":"'110000 - Carátula'!$C$17","v":"co-svsp-core_2017-12-31:FueronaprobadosenAsambleaGeneraldeAccionistasolaJuntadeSocios"},null,null,{"$f":"'110000 - Carátula'!$E$17","v":0},800001965,"www.solutions.com",null,{"$f":"Periodos!$C$4","v":"2017-12-31"}]
["/*",null,{"$f":"'110000 - Carátula'!$D$18","v":"Información General"},{"$f":"'110000 - Carátula'!$C$18","v":"co-svsp-core_2017-12-31:InformacionGeneral"}]
["",null,{"$f":"'110000 - Carátula'!$D$19","v":"Razón Social"},{"$f":"'110000 - Carátula'!$C$19","v":"co-svsp-core_2017-12-31:RazonSocial"},null,null,{"$f":"'110000 - Carátula'!$E$19","v":0},800001965,"www.solutions.com",null,{"$f":"Periodos!$C$4","v":"2017-12-31"}]
["",null,{"$f":"'110000 - Carátula'!$D$20","v":"Objeto Social Principal"},{"$f":"'110000 - Carátula'!$C$20","v":"co-svsp-core_2017-12-31:ObjetoSocialPrincipal"},null,null,{"$f":"'110000 - Carátula'!$E$20","v":0},800001965,"www.solutions.com",null,{"$f":"Periodos!$C$4","v":"2017-12-31"}]
["",null,{"$f":"'110000 - Carátula'!$D$21","v":"Clasificación Industrial Internacional Uniforme Versión 4 A.C"},{"$f":"'110000 - Carátula'!$C$21","v":"co-svsp-core_2017-12-31:ClasificacionIndustrialInternacionalUniformeVersion4AC"},null,null,{"$f":"'110000 - Carátula'!$E$21","v":0},800001965,"www.solutions.com",null,{"$f":"Periodos!$C$4","v":"2017-12-31"}]
["",null,{"$f":"'110000 - Carátula'!$D$22","v":"Grupo de Preparadores de Información Financiera"},{"$f":"'110000 - Carátula'!$C$22","v":"co-svsp-core_2017-12-31:GrupodePreparadoresdeInformacionFinanciera"},null,null,{"$f":"'110000 - Carátula'!$E$22","v":0},800001965,"www.solutions.com",null,{"$f":"Periodos!$C$4","v":"2017-12-31"}]
["",null,{"$f":"'110000 - Carátula'!$D$23","v":"Naturaleza de la Empresa"},{"$f":"'110000 - Carátula'!$C$23","v":"co-svsp-core_2017-12-31:NaturalezadelaEmpresa"},null,null,{"$f":"'110000 - Carátula'!$E$23","v":0},800001965,"www.solutions.com",null,{"$f":"Periodos!$C$4","v":"2017-12-31"}]
["",null,{"$f":"'110000 - Carátula'!$D$24","v":"Tipo Societario"},{"$f":"'110000 - Carátula'!$C$24","v":"co-svsp-core_2017-12-31:TipoSocietario"},null,null,{"$f":"'110000 - Carátula'!$E$24","v":0},800001965,"www.solutions.com",null,{"$f":"Periodos!$C$4","v":"2017-12-31"}]
["",null,{"$f":"'110000 - Carátula'!$D$25","v":"Estado de la Empresa"},{"$f":"'110000 - Carátula'!$C$25","v":"co-svsp-core_2017-12-31:EstadoDeLaEmpresa"},null,null,{"$f":"'110000 - Carátula'!$E$25","v":0},800001965,"www.solutions.com",null,{"$f":"Periodos!$C$4","v":"2017-12-31"}]
["",null,{"$f":"'110000 - Carátula'!$D$26","v":"Dirección de Notificación Judicial"},{"$f":"'110000 - Carátula'!$C$26","v":"co-svsp-core_2017-12-31:DirecciondeNotificacionJudicial"},null,null,{"$f":"'110000 - Carátula'!$E$26","v":0},800001965,"www.solutions.com",null,{"$f":"Periodos!$C$4","v":"2017-12-31"}]
["",null,{"$f":"'110000 - Carátula'!$D$27","v":"Departamento de Notificación Judicial"},{"$f":"'110000 - Carátula'!$C$27","v":"co-svsp-core_2017-12-31:DepartamentodeNotificacionJudicial"},null,null,{"$f":"'110000 - Carátula'!$E$27","v":0},800001965,"www.solutions.com",null,{"$f":"Periodos!$C$4","v":"2017-12-31"}]
["",null,{"$f":"'110000 - Carátula'!$D$28","v":"Ciudad de Notificación Judicial"},{"$f":"'110000 - Carátula'!$C$28","v":"co-svsp-core_2017-12-31:CiudaddeNotificacionJudicial"},null,null,{"$f":"'110000 - Carátula'!$E$28","v":0},800001965,"www.solutions.com",null,{"$f":"Periodos!$C$4","v":"2017-12-31"}]
["",null,{"$f":"'110000 - Carátula'!$D$29","v":"E-mail Empresarial de Notificación Judicial"},{"$f":"'110000 - Carátula'!$C$29","v":"co-svsp-core_2017-12-31:EmailEmpresarialdeNotificacionJudicial"},null,null,{"$f":"'110000 - Carátula'!$E$29","v":0},null,null,null,{"$f":"Periodos!$C$4","v":"2017-12-31"}]
["",null,{"$f":"'110000 - Carátula'!$D$30","v":"Celular"},{"$f":"'110000 - Carátula'!$C$30","v":"co-svsp-core_2017-12-31:Celular"},null,null,{"$f":"'110000 - Carátula'!$E$30","v":0},800001965,"www.solutions.com",null,{"$f":"Periodos!$C$4","v":"2017-12-31"}]
["",null,{"$f":"'110000 - Carátula'!$D$31","v":"Teléfono Fijo"},{"$f":"'110000 - Carátula'!$C$31","v":"co-svsp-core_2017-12-31:TelefonoFijo"},null,null,{"$f":"'110000 - Carátula'!$E$31","v":0},800001965,"www.solutions.com",null,{"$f":"Periodos!$C$4","v":"2017-12-31"}]
["/*",null,{"$f":"'110000 - Carátula'!$D$32","v":"Información ante Supervigilancia"},{"$f":"'110000 - Carátula'!$C$32","v":"co-svsp-core_2017-12-31:InformacionAnteSupervigilancia"}]
["",null,{"$f":"'110000 - Carátula'!$D$33","v":"Estado de Licencia de Funcionamiento"},{"$f":"'110000 - Carátula'!$C$33","v":"co-svsp-core_2017-12-31:EstadoDeLicenciaDeFuncionamiento"},null,null,{"$f":"'110000 - Carátula'!$E$33","v":0},800001965,"www.solutions.com",null,{"$f":"Periodos!$C$4","v":"2017-12-31"}]
["",null,{"$f":"'110000 - Carátula'!$D$34","v":"Tipo de Servicio"},{"$f":"'110000 - Carátula'!$C$34","v":"co-svsp-core_2017-12-31:TipoDeServicio"},null,null,{"$f":"'110000 - Carátula'!$E$34","v":0},800001965,"www.solutions.com",null,{"$f":"Periodos!$C$4","v":"2017-12-31"}]
["/*",null,{"$f":"'110000 - Carátula'!$D$35","v":"Información sobre la Revisoría Fiscal"},{"$f":"'110000 - Carátula'!$C$35","v":"co-svsp-core_2017-12-31:InformacionSobreLaRevisoriaFiscal"}]
["",null,{"$f":"'110000 - Carátula'!$D$36","v":"¿La compañía esta obligada a tener revisor fiscal?"},{"$f":"'110000 - Carátula'!$C$36","v":"co-svsp-core_2017-12-31:LaCompaniaEstaObligadaARevisorFiscal"},null,null,{"$f":"'110000 - Carátula'!$E$36","v":0},800001965,"www.solutions.com",null,{"$f":"Periodos!$C$4","v":"2017-12-31"}]
["/*",null,{"$f":"'110000 - Carátula'!$D$37","v":"¿El revisor fiscal pertenece a una firma?"},{"$f":"'110000 - Carátula'!$C$37","v":"co-svsp-core_2017-12-31:RevisorFiscalPerteneceAFirma"}]
["/*",null,{"$f":"'110000 - Carátula'!$D$38","v":"¿A que firma pertenece el revisor fiscal?"},{"$f":"'110000 - Carátula'!$C$38","v":"co-svsp-core_2017-12-31:RazonSocialRevisorFiscalPersonaJurídica"}]
["/*",null,{"$f":"'110000 - Carátula'!$D$39","v":"Dirección de Domicilio de la firma a la cual pertenece el revisor fiscal"},{"$f":"'110000 - Carátula'!$C$39","v":"co-svsp-core_2017-12-31:DirecciondeDomicilioRevisorFiscalPersonaJurídica"}]
["/*",null,{"$f":"'110000 - Carátula'!$D$40","v":"Registro en la Junta Central de Contadores del Revisor fiscal"},{"$f":"'110000 - Carátula'!$C$40","v":"co-svsp-core_2017-12-31:RegistroJCCRevisorFiscalPersonaJurídica"}]
["/*",null,{"$f":"'110000 - Carátula'!$D$41","v":"Información sobre consolidación de Estados Financieros"},{"$f":"'110000 - Carátula'!$C$41","v":"co-svsp-core_2017-12-31:InformacionSobreConsolidacionDeEstadosFinancieros"}]
["",null,{"$f":"'110000 - Carátula'!$D$42","v":"¿La compañía es responsable de consolidar información para este periodo?"},{"$f":"'110000 - Carátula'!$C$42","v":"co-svsp-core_2017-12-31:LaCompaniaEsResponsableDeConsolidarInformacionParaEstePeriodo"},null,null,{"$f":"'110000 - Carátula'!$E$42","v":0},800001965,"www.solutions.com",null,{"$f":"Periodos!$C$4","v":"2017-12-31"}]
["",null,{"$f":"'110000 - Carátula'!$D$43","v":"¿La compañía es subordinada o asociada de otra compañía?"},{"$f":"'110000 - Carátula'!$C$43","v":"co-svsp-core_2017-12-31:LaCompaniaEsSubordinadaOAsociadaDeOtraCompania"},null,null,{"$f":"'110000 - Carátula'!$E$43","v":0},800001965,"www.solutions.com",null,{"$f":"Periodos!$C$4","v":"2017-12-31"}]
["",null,{"$f":"'110000 - Carátula'!$D$44","v":"¿La compañía tiene subordinadas?"},{"$f":"'110000 - Carátula'!$C$44","v":"co-svsp-core_2017-12-31:LaCompaniaTieneSubordinadas"},null,null,{"$f":"'110000 - Carátula'!$E$44","v":0},800001965,"www.solutions.com",null,{"$f":"Periodos!$C$4","v":"2017-12-31"}]
["",null,{"$f":"'110000 - Carátula'!$D$45","v":"¿La compañía tiene asociadas?"},{"$f":"'110000 - Carátula'!$C$45","v":"co-svsp-core_2017-12-31:LaCompaniaTieneAsociadas"},null,null,{"$f":"'110000 - Carátula'!$E$45","v":0},800001965,"www.solutions.com",null,{"$f":"Periodos!$C$4","v":"2017-12-31"}]
["",null,{"$f":"'110000 - Carátula'!$D$46","v":"¿La compañía tiene negocios conjuntos?"},{"$f":"'110000 - Carátula'!$C$46","v":"co-svsp-core_2017-12-31:LaCompaniaTieneNegociosConjuntos"},null,null,{"$f":"'110000 - Carátula'!$E$46","v":0},800001965,"www.solutions.com",null,{"$f":"Periodos!$C$4","v":"2017-12-31"}]
["/*"]
["/*",null,"110010 GeneraXBRL"]
["/*",null,"--01--"]
["/*",null,{"$f":"'110010 GeneraXBRL'!$D$11","v":"Tipo de documento"},{"$f":"'110010 GeneraXBRL'!$C$11","v":"co-svsp-core_2017-12-31:TipoDeDocumento"},null,null,{"$f":"'110010 GeneraXBRL'!$E$11","v":""},800001965,"www.solutions.com",null,{"$f":"Periodos!$C$4","v":"2017-12-31"},{"$f":"'110010 GeneraXBRL'!$D$10","v":"co-svsp-core_2017-12-31:AdministradoresEje"},{"$f":"'110010 GeneraXBRL'!$E$9","v":"co-svsp-core_2017-12-31:RepresentantePrincipalMiembro"}]
["/*",null,{"$f":"'110010 GeneraXBRL'!$D$12","v":"Numero de documento"},{"$f":"'110010 GeneraXBRL'!$C$12","v":"co-svsp-core_2017-12-31:NumeroDeDocumento"},null,null,{"$f":"'110010 GeneraXBRL'!$E$12","v":""},800001965,"www.solutions.com",null,{"$f":"Periodos!$C$4","v":"2017-12-31"},{"$f":"'110010 GeneraXBRL'!$D$10","v":"co-svsp-core_2017-12-31:AdministradoresEje"},{"$f":"'110010 GeneraXBRL'!$E$9","v":"co-svsp-core_2017-12-31:RepresentantePrincipalMiembro"}]
["/*",null,{"$f":"'110010 GeneraXBRL'!$D$13","v":"Nombres"},{"$f":"'110010 GeneraXBRL'!$C$13","v":"co-svsp-core_2017-12-31:Nombres"},null,null,{"$f":"'110010 GeneraXBRL'!$E$13","v":""},800001965,"www.solutions.com",null,{"$f":"Periodos!$C$4","v":"2017-12-31"},{"$f":"'110010 GeneraXBRL'!$D$10","v":"co-svsp-core_2017-12-31:AdministradoresEje"},{"$f":"'110010 GeneraXBRL'!$E$9","v":"co-svsp-core_2017-12-31:RepresentantePrincipalMiembro"}]
["/*",null,{"$f":"'110010 GeneraXBRL'!$D$14","v":"Apellidos"},{"$f":"'110010 GeneraXBRL'!$C$14","v":"co-svsp-core_2017-12-31:Apellidos"},null,null,{"$f":"'110010 GeneraXBRL'!$E$14","v":""},800001965,"www.solutions.com",null,{"$f":"Periodos!$C$4","v":"2017-12-31"},{"$f":"'110010 GeneraXBRL'!$D$10","v":"co-svsp-core_2017-12-31:AdministradoresEje"},{"$f":"'110010 GeneraXBRL'!$E$9","v":"co-svsp-core_2017-12-31:RepresentantePrincipalMiembro"}]
["/*",null,{"$f":"'110010 GeneraXBRL'!$D$15","v":"Email"},{"$f":"'110010 GeneraXBRL'!$C$15","v":"co-svsp-core_2017-12-31:Email"},null,null,{"$f":"'110010 GeneraXBRL'!$E$15","v":""},800001965,"www.solutions.com",null,{"$f":"Periodos!$C$4","v":"2017-12-31"},{"$f":"'110010 GeneraXBRL'!$D$10","v":"co-svsp-core_2017-12-31:AdministradoresEje"},{"$f":"'110010 GeneraXBRL'!$E$9","v":"co-svsp-core_2017-12-31:RepresentantePrincipalMiembro"}]
["/*",null,{"$f":"'110010 GeneraXBRL'!$D$16","v":"Tarjeta profesional"},{"$f":"'110010 GeneraXBRL'!$C$16","v":"co-svsp-core_2017-12-31:TarjetaProfesional"}]
["/*",null,"--02--"]
["/*",null,{"$f":"'110010 GeneraXBRL'!$D$11","v":"Tipo de documento"},{"$f":"'110010 GeneraXBRL'!$C$11","v":"co-svsp-core_2017-12-31:TipoDeDocumento"},null,null,{"$f":"'110010 GeneraXBRL'!$F$11","v":""},800001965,"www.solutions.com",null,{"$f":"Periodos!$C$4","v":"2017-12-31"},{"$f":"'110010 GeneraXBRL'!$D$10","v":"co-svsp-core_2017-12-31:AdministradoresEje"},{"$f":"'110010 GeneraXBRL'!$F$9","v":"co-svsp-core_2017-12-31:ContadorMiembro"}]
["/*",null,{"$f":"'110010 GeneraXBRL'!$D$12","v":"Numero de documento"},{"$f":"'110010 GeneraXBRL'!$C$12","v":"co-svsp-core_2017-12-31:NumeroDeDocumento"},null,null,{"$f":"'110010 GeneraXBRL'!$F$12","v":""},800001965,"www.solutions.com",null,{"$f":"Periodos!$C$4","v":"2017-12-31"},{"$f":"'110010 GeneraXBRL'!$D$10","v":"co-svsp-core_2017-12-31:AdministradoresEje"},{"$f":"'110010 GeneraXBRL'!$F$9","v":"co-svsp-core_2017-12-31:ContadorMiembro"}]
["/*",null,{"$f":"'110010 GeneraXBRL'!$D$13","v":"Nombres"},{"$f":"'110010 GeneraXBRL'!$C$13","v":"co-svsp-core_2017-12-31:Nombres"},null,null,{"$f":"'110010 GeneraXBRL'!$F$13","v":""},800001965,"www.solutions.com",null,{"$f":"Periodos!$C$4","v":"2017-12-31"},{"$f":"'110010 GeneraXBRL'!$D$10","v":"co-svsp-core_2017-12-31:AdministradoresEje"},{"$f":"'110010 GeneraXBRL'!$F$9","v":"co-svsp-core_2017-12-31:ContadorMiembro"}]
["/*",null,{"$f":"'110010 GeneraXBRL'!$D$14","v":"Apellidos"},{"$f":"'110010 GeneraXBRL'!$C$14","v":"co-svsp-core_2017-12-31:Apellidos"},null,null,{"$f":"'110010 GeneraXBRL'!$F$14","v":""},800001965,"www.solutions.com",null,{"$f":"Periodos!$C$4","v":"2017-12-31"},{"$f":"'110010 GeneraXBRL'!$D$10","v":"co-svsp-core_2017-12-31:AdministradoresEje"},{"$f":"'110010 GeneraXBRL'!$F$9","v":"co-svsp-core_2017-12-31:ContadorMiembro"}]
["/*",null,{"$f":"'110010 GeneraXBRL'!$D$15","v":"Email"},{"$f":"'110010 GeneraXBRL'!$C$15","v":"co-svsp-core_2017-12-31:Email"},null,null,{"$f":"'110010 GeneraXBRL'!$F$15","v":""},800001965,"www.solutions.com",null,{"$f":"Periodos!$C$4","v":"2017-12-31"},{"$f":"'110010 GeneraXBRL'!$D$10","v":"co-svsp-core_2017-12-31:AdministradoresEje"},{"$f":"'110010 GeneraXBRL'!$F$9","v":"co-svsp-core_2017-12-31:ContadorMiembro"}]
["/*",null,{"$f":"'110010 GeneraXBRL'!$D$16","v":"Tarjeta profesional"},{"$f":"'110010 GeneraXBRL'!$C$16","v":"co-svsp-core_2017-12-31:TarjetaProfesional"},null,null,{"$f":"'110010 GeneraXBRL'!$F$16","v":""},800001965,"www.solutions.com",null,{"$f":"Periodos!$C$4","v":"2017-12-31"},{"$f":"'110010 GeneraXBRL'!$D$10","v":"co-svsp-core_2017-12-31:AdministradoresEje"},{"$f":"'110010 GeneraXBRL'!$F$9","v":"co-svsp-core_2017-12-31:ContadorMiembro"}]
["/*",null,"--03--"]
["/*",null,{"$f":"'110010 GeneraXBRL'!$D$11","v":"Tipo de documento"},{"$f":"'110010 GeneraXBRL'!$C$11","v":"co-svsp-core_2017-12-31:TipoDeDocumento"},null,null,{"$f":"'110010 GeneraXBRL'!$G$11","v":""},800001965,"www.solutions.com",null,{"$f":"Periodos!$C$4","v":"2017-12-31"},{"$f":"'110010 GeneraXBRL'!$D$10","v":"co-svsp-core_2017-12-31:AdministradoresEje"},{"$f":"'110010 GeneraXBRL'!$G$9","v":"co-svsp-core_2017-12-31:RevisorFiscalMiembro"}]
["/*",null,{"$f":"'110010 GeneraXBRL'!$D$12","v":"Numero de documento"},{"$f":"'110010 GeneraXBRL'!$C$12","v":"co-svsp-core_2017-12-31:NumeroDeDocumento"},null,null,{"$f":"'110010 GeneraXBRL'!$G$12","v":""},800001965,"www.solutions.com",null,{"$f":"Periodos!$C$4","v":"2017-12-31"},{"$f":"'110010 GeneraXBRL'!$D$10","v":"co-svsp-core_2017-12-31:AdministradoresEje"},{"$f":"'110010 GeneraXBRL'!$G$9","v":"co-svsp-core_2017-12-31:RevisorFiscalMiembro"}]
["/*",null,{"$f":"'110010 GeneraXBRL'!$D$13","v":"Nombres"},{"$f":"'110010 GeneraXBRL'!$C$13","v":"co-svsp-core_2017-12-31:Nombres"},null,null,{"$f":"'110010 GeneraXBRL'!$G$13","v":""},800001965,"www.solutions.com",null,{"$f":"Periodos!$C$4","v":"2017-12-31"},{"$f":"'110010 GeneraXBRL'!$D$10","v":"co-svsp-core_2017-12-31:AdministradoresEje"},{"$f":"'110010 GeneraXBRL'!$G$9","v":"co-svsp-core_2017-12-31:RevisorFiscalMiembro"}]
["/*",null,{"$f":"'110010 GeneraXBRL'!$D$14","v":"Apellidos"},{"$f":"'110010 GeneraXBRL'!$C$14","v":"co-svsp-core_2017-12-31:Apellidos"},null,null,{"$f":"'110010 GeneraXBRL'!$G$14","v":""},800001965,"www.solutions.com",null,{"$f":"Periodos!$C$4","v":"2017-12-31"},{"$f":"'110010 GeneraXBRL'!$D$10","v":"co-svsp-core_2017-12-31:AdministradoresEje"},{"$f":"'110010 GeneraXBRL'!$G$9","v":"co-svsp-core_2017-12-31:RevisorFiscalMiembro"}]
["/*",null,{"$f":"'110010 GeneraXBRL'!$D$15","v":"Email"},{"$f":"'110010 GeneraXBRL'!$C$15","v":"co-svsp-core_2017-12-31:Email"},null,null,{"$f":"'110010 GeneraXBRL'!$G$15","v":""},800001965,"www.solutions.com",null,{"$f":"Periodos!$C$4","v":"2017-12-31"},{"$f":"'110010 GeneraXBRL'!$D$10","v":"co-svsp-core_2017-12-31:AdministradoresEje"},{"$f":"'110010 GeneraXBRL'!$G$9","v":"co-svsp-core_2017-12-31:RevisorFiscalMiembro"}]
["/*",null,{"$f":"'110010 GeneraXBRL'!$D$16","v":"Tarjeta profesional"},{"$f":"'110010 GeneraXBRL'!$C$16","v":"co-svsp-core_2017-12-31:TarjetaProfesional"},null,null,{"$f":"'110010 GeneraXBRL'!$G$16","v":""},800001965,"www.solutions.com",null,{"$f":"Periodos!$C$4","v":"2017-12-31"},{"$f":"'110010 GeneraXBRL'!$D$10","v":"co-svsp-core_2017-12-31:AdministradoresEje"},{"$f":"'110010 GeneraXBRL'!$G$9","v":"co-svsp-core_2017-12-31:RevisorFiscalMiembro"}]
["/*"]
[{"$f":"IF(G97=\"\",\"/*\",\"\")","v":"/*"},null,"210000 - Est. Situa. Financiera"]
["/*",null,"--01--"]
["/*",null,{"$f":"'210000 - Est. Situa. Financiera'!$D$11","v":"Estado de situación financiera [resumen]"},{"$f":"'210000 - Est. Situa. Financiera'!$C$11","v":"ifrs-full:StatementOfFinancialPositionAbstract"}]
["/*",null,{"$f":"'210000 - Est. Situa. Financiera'!$D$12","v":"Activos [resumen]"},{"$f":"'210000 - Est. Situa. Financiera'!$C$12","v":"ifrs-full:AssetsAbstract"}]
["/*",null,{"$f":"'210000 - Est. Situa. Financiera'!$D$13","v":"Activos corrientes [resumen]"},{"$f":"'210000 - Est. Situa. Financiera'!$C$13","v":"ifrs-full:CurrentAssetsAbstract"}]
["",null,{"$f":"'210000 - Est. Situa. Financiera'!$D$14","v":"Efectivo y equivalentes al efectivo"},{"$f":"'210000 - Est. Situa. Financiera'!$C$14","v":"ifrs-full:CashAndCashEquivalents"},0,"peso",{"$f":"'210000 - Est. Situa. Financiera'!$E$14","v":0},800001965,"www.solutions.com",null,{"$f":"Periodos!$C$4","v":"2017-12-31"}]
["",null,{"$f":"'210000 - Est. Situa. Financiera'!$D$15","v":"Cuentas comerciales por cobrar y otras cuentas por cobrar corrientes"},{"$f":"'210000 - Est. Situa. Financiera'!$C$15","v":"ifrs-full:TradeAndOtherCurrentReceivables"},0,"peso",{"$f":"'210000 - Est. Situa. Financiera'!$E$15","v":0},800001965,"www.solutions.com",null,{"$f":"Periodos!$C$4","v":"2017-12-31"}]
["",null,{"$f":"'210000 - Est. Situa. Financiera'!$D$16","v":"Inventarios corrientes"},{"$f":"'210000 - Est. Situa. Financiera'!$C$16","v":"ifrs-full:Inventories"},0,"peso",{"$f":"'210000 - Est. Situa. Financiera'!$E$16","v":0},800001965,"www.solutions.com",null,{"$f":"Periodos!$C$4","v":"2017-12-31"}]
["",null,{"$f":"'210000 - Est. Situa. Financiera'!$D$17","v":"Activos por impuestos corrientes, corriente"},{"$f":"'210000 - Est. Situa. Financiera'!$C$17","v":"ifrs-full:CurrentTaxAssetsCurrent"},0,"peso",{"$f":"'210000 - Est. Situa. Financiera'!$E$17","v":0},800001965,"www.solutions.com",null,{"$f":"Periodos!$C$4","v":"2017-12-31"}]
["",null,{"$f":"'210000 - Est. Situa. Financiera'!$D$18","v":"Inversiones corrientes"},{"$f":"'210000 - Est. Situa. Financiera'!$C$18","v":"co-svsp-core_2017-12-31:InversionesCorrientesG3"},0,"peso",{"$f":"'210000 - Est. Situa. Financiera'!$E$18","v":0},800001965,"www.solutions.com",null,{"$f":"Periodos!$C$4","v":"2017-12-31"}]
["",null,{"$f":"'210000 - Est. Situa. Financiera'!$D$19","v":"Otros activos corrientes"},{"$f":"'210000 - Est. Situa. Financiera'!$C$19","v":"co-svsp-core_2017-12-31:OtrosActivosCorrientesG3"},0,"peso",{"$f":"'210000 - Est. Situa. Financiera'!$E$19","v":0},800001965,"www.solutions.com",null,{"$f":"Periodos!$C$4","v":"2017-12-31"}]
["/*",null,{"$f":"'210000 - Est. Situa. Financiera'!$D$20","v":"Activos corrientes totales"},{"$f":"'210000 - Est. Situa. Financiera'!$C$20","v":"ifrs-full:CurrentAssets"},0,"peso",{"$f":"'210000 - Est. Situa. Financiera'!$E$20","v":""},800001965,"www.solutions.com",null,{"$f":"Periodos!$C$4","v":"2017-12-31"}]
["/*",null,{"$f":"'210000 - Est. Situa. Financiera'!$D$21","v":"Activos no corrientes [resumen]"},{"$f":"'210000 - Est. Situa. Financiera'!$C$21","v":"ifrs-full:NoncurrentAssetsAbstract"}]
["",null,{"$f":"'210000 - Est. Situa. Financiera'!$D$22","v":"Propiedad de inversión"},{"$f":"'210000 - Est. Situa. Financiera'!$C$22","v":"ifrs-full:InvestmentProperty"},0,"peso",{"$f":"'210000 - Est. Situa. Financiera'!$E$22","v":0},800001965,"www.solutions.com",null,{"$f":"Periodos!$C$4","v":"2017-12-31"}]
["",null,{"$f":"'210000 - Est. Situa. Financiera'!$D$23","v":"Propiedades, planta y equipo"},{"$f":"'210000 - Est. Situa. Financiera'!$C$23","v":"ifrs-full:PropertyPlantAndEquipment"},0,"peso",{"$f":"'210000 - Est. Situa. Financiera'!$E$23","v":0},800001965,"www.solutions.com",null,{"$f":"Periodos!$C$4","v":"2017-12-31"}]
["",null,{"$f":"'210000 - Est. Situa. Financiera'!$D$24","v":"Plusvalía"},{"$f":"'210000 - Est. Situa. Financiera'!$C$24","v":"ifrs-full:Goodwill"},0,"peso",{"$f":"'210000 - Est. Situa. Financiera'!$E$24","v":0},800001965,"www.solutions.com",null,{"$f":"Periodos!$C$4","v":"2017-12-31"}]
["",null,{"$f":"'210000 - Est. Situa. Financiera'!$D$25","v":"Inversiones no corrientes"},{"$f":"'210000 - Est. Situa. Financiera'!$C$25","v":"co-svsp-core_2017-12-31:InversionesNoCorrientesG3"},0,"peso",{"$f":"'210000 - Est. Situa. Financiera'!$E$25","v":0},800001965,"www.solutions.com",null,{"$f":"Periodos!$C$4","v":"2017-12-31"}]
["",null,{"$f":"'210000 - Est. Situa. Financiera'!$D$26","v":"Cuentas comerciales por cobrar y otras cuentas por cobrar no corrientes"},{"$f":"'210000 - Est. Situa. Financiera'!$C$26","v":"ifrs-full:NoncurrentReceivables"},0,"peso",{"$f":"'210000 - Est. Situa. Financiera'!$E$26","v":0},800001965,"www.solutions.com",null,{"$f":"Periodos!$C$4","v":"2017-12-31"}]
["",null,{"$f":"'210000 - Est. Situa. Financiera'!$D$27","v":"Deterioro cuentas por cobrar"},{"$f":"'210000 - Est. Situa. Financiera'!$C$27","v":"co-svsp-core_2017-12-31:DeterioroCuentasPorCobrarG3"},0,"peso",{"$f":"'210000 - Est. Situa. Financiera'!$E$27","v":0},800001965,"www.solutions.com",null,{"$f":"Periodos!$C$4","v":"2017-12-31"}]
["",null,{"$f":"'210000 - Est. Situa. Financiera'!$D$28","v":"Inventarios no corrientes"},{"$f":"'210000 - Est. Situa. Financiera'!$C$28","v":"ifrs-full:NoncurrentInventories"},0,"peso",{"$f":"'210000 - Est. Situa. Financiera'!$E$28","v":0},800001965,"www.solutions.com",null,{"$f":"Periodos!$C$4","v":"2017-12-31"}]
["",null,{"$f":"'210000 - Est. Situa. Financiera'!$D$29","v":"Activos por impuestos diferidos"},{"$f":"'210000 - Est. Situa. Financiera'!$C$29","v":"ifrs-full:DeferredTaxAssets"},0,"peso",{"$f":"'210000 - Est. Situa. Financiera'!$E$29","v":0},800001965,"www.solutions.com",null,{"$f":"Periodos!$C$4","v":"2017-12-31"}]
["",null,{"$f":"'210000 - Est. Situa. Financiera'!$D$30","v":"Activos por impuestos corrientes, no corriente"},{"$f":"'210000 - Est. Situa. Financiera'!$C$30","v":"ifrs-full:CurrentTaxAssetsNoncurrent"},0,"peso",{"$f":"'210000 - Est. Situa. Financiera'!$E$30","v":0},800001965,"www.solutions.com",null,{"$f":"Periodos!$C$4","v":"2017-12-31"}]
["",null,{"$f":"'210000 - Est. Situa. Financiera'!$D$31","v":"Otros activos corrientes no corrientes"},{"$f":"'210000 - Est. Situa. Financiera'!$C$31","v":"co-svsp-core_2017-12-31:OtrosActivosCorrientesNoCorrientesG3"},0,"peso",{"$f":"'210000 - Est. Situa. Financiera'!$E$31","v":0},800001965,"www.solutions.com",null,{"$f":"Periodos!$C$4","v":"2017-12-31"}]
["/*",null,{"$f":"'210000 - Est. Situa. Financiera'!$D$32","v":"Total de activos no corrientes"},{"$f":"'210000 - Est. Situa. Financiera'!$C$32","v":"ifrs-full:NoncurrentAssets"},0,"peso",{"$f":"'210000 - Est. Situa. Financiera'!$E$32","v":""},800001965,"www.solutions.com",null,{"$f":"Periodos!$C$4","v":"2017-12-31"}]
["/*",null,{"$f":"'210000 - Est. Situa. Financiera'!$D$33","v":"Total de activos"},{"$f":"'210000 - Est. Situa. Financiera'!$C$33","v":"ifrs-full:Assets"},0,"peso",{"$f":"'210000 - Est. Situa. Financiera'!$E$33","v":""},800001965,"www.solutions.com",null,{"$f":"Periodos!$C$4","v":"2017-12-31"}]
["/*",null,{"$f":"'210000 - Est. Situa. Financiera'!$D$34","v":"Patrimonio y pasivos [resumen]"},{"$f":"'210000 - Est. Situa. Financiera'!$C$34","v":"ifrs-full:EquityAndLiabilitiesAbstract"}]
["/*",null,{"$f":"'210000 - Est. Situa. Financiera'!$D$35","v":"Pasivos [resumen]"},{"$f":"'210000 - Est. Situa. Financiera'!$C$35","v":"ifrs-full:LiabilitiesAbstract"}]
["/*",null,{"$f":"'210000 - Est. Situa. Financiera'!$D$36","v":"Pasivos corrientes [resumen]"},{"$f":"'210000 - Est. Situa. Financiera'!$C$36","v":"ifrs-full:CurrentLiabilitiesAbstract"}]
["",null,{"$f":"'210000 - Est. Situa. Financiera'!$D$37","v":"Acreedores comerciales y otras cuentas por pagar corrientes"},{"$f":"'210000 - Est. Situa. Financiera'!$C$37","v":"co-svsp-core_2017-12-31:AcreedoresComercialesYOtrasCuentasPorPagarCorrientesG3"},0,"peso",{"$f":"'210000 - Est. Situa. Financiera'!$E$37","v":0},800001965,"www.solutions.com",null,{"$f":"Periodos!$C$4","v":"2017-12-31"}]
["",null,{"$f":"'210000 - Est. Situa. Financiera'!$D$38","v":"Proveedores corrientes"},{"$f":"'210000 - Est. Situa. Financiera'!$C$38","v":"co-svsp-core_2017-12-31:ProveedoresCorrientesG3"},0,"peso",{"$f":"'210000 - Est. Situa. Financiera'!$E$38","v":0},800001965,"www.solutions.com",null,{"$f":"Periodos!$C$4","v":"2017-12-31"}]
["",null,{"$f":"'210000 - Est. Situa. Financiera'!$D$39","v":"Ingresos diferidos corrientes"},{"$f":"'210000 - Est. Situa. Financiera'!$C$39","v":"co-svsp-core_2017-12-31:IngresosDiferidosCorrientesG3"},0,"peso",{"$f":"'210000 - Est. Situa. Financiera'!$E$39","v":0},800001965,"www.solutions.com",null,{"$f":"Periodos!$C$4","v":"2017-12-31"}]
["",null,{"$f":"'210000 - Est. Situa. Financiera'!$D$40","v":"Gastos acumulados por pagar corrientes"},{"$f":"'210000 - Est. Situa. Financiera'!$C$40","v":"co-svsp-core_2017-12-31:GastosAcumuladosPorPagarCorrientesG3"},0,"peso",{"$f":"'210000 - Est. Situa. Financiera'!$E$40","v":0},800001965,"www.solutions.com",null,{"$f":"Periodos!$C$4","v":"2017-12-31"}]
["",null,{"$f":"'210000 - Est. Situa. Financiera'!$D$41","v":"Otras cuentas por pagar corrientes"},{"$f":"'210000 - Est. Situa. Financiera'!$C$41","v":"co-svsp-core_2017-12-31:OtrasCuentasPorPagarCorrientesG3"},0,"peso",{"$f":"'210000 - Est. Situa. Financiera'!$E$41","v":0},800001965,"www.solutions.com",null,{"$f":"Periodos!$C$4","v":"2017-12-31"}]
["",null,{"$f":"'210000 - Est. Situa. Financiera'!$D$42","v":"Obligaciones financieras corrientes"},{"$f":"'210000 - Est. Situa. Financiera'!$C$42","v":"co-svsp-core_2017-12-31:ObligacionesFinancierasCorrientesG3"},0,"peso",{"$f":"'210000 - Est. Situa. Financiera'!$E$42","v":0},800001965,"www.solutions.com",null,{"$f":"Periodos!$C$4","v":"2017-12-31"}]
["",null,{"$f":"'210000 - Est. Situa. Financiera'!$D$43","v":"Obligaciones laborales corrientes"},{"$f":"'210000 - Est. Situa. Financiera'!$C$43","v":"co-svsp-core_2017-12-31:ObligacionesLaboralesCorrientesG3"},0,"peso",{"$f":"'210000 - Est. Situa. Financiera'!$E$43","v":0},800001965,"www.solutions.com",null,{"$f":"Periodos!$C$4","v":"2017-12-31"}]
["",null,{"$f":"'210000 - Est. Situa. Financiera'!$D$44","v":"Pasivos por impuestos corrientes"},{"$f":"'210000 - Est. Situa. Financiera'!$C$44","v":"co-svsp-core_2017-12-31:PasivosPorImpuestosCorrientesG3"},0,"peso",{"$f":"'210000 - Est. Situa. Financiera'!$E$44","v":0},800001965,"www.solutions.com",null,{"$f":"Periodos!$C$4","v":"2017-12-31"}]
["",null,{"$f":"'210000 - Est. Situa. Financiera'!$D$45","v":"Provisiones corrientes"},{"$f":"'210000 - Est. Situa. Financiera'!$C$45","v":"co-svsp-core_2017-12-31:ProvisionesCorrientesG3"},0,"peso",{"$f":"'210000 - Est. Situa. Financiera'!$E$45","v":0},800001965,"www.solutions.com",null,{"$f":"Periodos!$C$4","v":"2017-12-31"}]
["",null,{"$f":"'210000 - Est. Situa. Financiera'!$D$46","v":"Otros pasivos corrientes"},{"$f":"'210000 - Est. Situa. Financiera'!$C$46","v":"co-svsp-core_2017-12-31:OtrosPasivosCorrientesG3"},0,"peso",{"$f":"'210000 - Est. Situa. Financiera'!$E$46","v":0},800001965,"www.solutions.com",null,{"$f":"Periodos!$C$4","v":"2017-12-31"}]
["/*",null,{"$f":"'210000 - Est. Situa. Financiera'!$D$47","v":"Pasivos corrientes totales"},{"$f":"'210000 - Est. Situa. Financiera'!$C$47","v":"ifrs-full:CurrentLiabilities"},0,"peso",{"$f":"'210000 - Est. Situa. Financiera'!$E$47","v":""},800001965,"www.solutions.com",null,{"$f":"Periodos!$C$4","v":"2017-12-31"}]
["/*",null,{"$f":"'210000 - Est. Situa. Financiera'!$D$48","v":"Pasivos no corrientes [resumen]"},{"$f":"'210000 - Est. Situa. Financiera'!$C$48","v":"ifrs-full:NoncurrentLiabilitiesAbstract"}]
["",null,{"$f":"'210000 - Est. Situa. Financiera'!$D$49","v":"Acreedores comerciales y otras cuentas por pagar no corrientes"},{"$f":"'210000 - Est. Situa. Financiera'!$C$49","v":"co-svsp-core_2017-12-31:AcreedoresComercialesYOtrasCuentasPorPagarNoCorrientesG3"},0,"peso",{"$f":"'210000 - Est. Situa. Financiera'!$E$49","v":0},800001965,"www.solutions.com",null,{"$f":"Periodos!$C$4","v":"2017-12-31"}]
["",null,{"$f":"'210000 - Est. Situa. Financiera'!$D$50","v":"Proveedores no corrientes"},{"$f":"'210000 - Est. Situa. Financiera'!$C$50","v":"co-svsp-core_2017-12-31:ProveedoresNoCorrientesG3"},0,"peso",{"$f":"'210000 - Est. Situa. Financiera'!$E$50","v":0},800001965,"www.solutions.com",null,{"$f":"Periodos!$C$4","v":"2017-12-31"}]
["",null,{"$f":"'210000 - Est. Situa. Financiera'!$D$51","v":"Ingresos diferidos no corrientes"},{"$f":"'210000 - Est. Situa. Financiera'!$C$51","v":"co-svsp-core_2017-12-31:IngresosDiferidosNoCorrientesG3"},0,"peso",{"$f":"'210000 - Est. Situa. Financiera'!$E$51","v":0},800001965,"www.solutions.com",null,{"$f":"Periodos!$C$4","v":"2017-12-31"}]
["",null,{"$f":"'210000 - Est. Situa. Financiera'!$D$52","v":"Gastos acumulados por pagar no corrientes"},{"$f":"'210000 - Est. Situa. Financiera'!$C$52","v":"co-svsp-core_2017-12-31:GastosAcumuladosPorPagarNoCorrientesG3"},0,"peso",{"$f":"'210000 - Est. Situa. Financiera'!$E$52","v":0},800001965,"www.solutions.com",null,{"$f":"Periodos!$C$4","v":"2017-12-31"}]
["",null,{"$f":"'210000 - Est. Situa. Financiera'!$D$53","v":"Otras cuentas por pagar no corrientes"},{"$f":"'210000 - Est. Situa. Financiera'!$C$53","v":"co-svsp-core_2017-12-31:OtrasCuentasPorPagarNoCorrientesG3"},0,"peso",{"$f":"'210000 - Est. Situa. Financiera'!$E$53","v":0},800001965,"www.solutions.com",null,{"$f":"Periodos!$C$4","v":"2017-12-31"}]
["",null,{"$f":"'210000 - Est. Situa. Financiera'!$D$54","v":"Obligaciones financieras no corrientes"},{"$f":"'210000 - Est. Situa. Financiera'!$C$54","v":"co-svsp-core_2017-12-31:ObligacionesFinancierasNoCorrientesG3"},0,"peso",{"$f":"'210000 - Est. Situa. Financiera'!$E$54","v":0},800001965,"www.solutions.com",null,{"$f":"Periodos!$C$4","v":"2017-12-31"}]
["",null,{"$f":"'210000 - Est. Situa. Financiera'!$D$55","v":"Obligaciones laborales no corrientes"},{"$f":"'210000 - Est. Situa. Financiera'!$C$55","v":"co-svsp-core_2017-12-31:ObligacionesLaboralesNoCorrientesG3"},0,"peso",{"$f":"'210000 - Est. Situa. Financiera'!$E$55","v":0},800001965,"www.solutions.com",null,{"$f":"Periodos!$C$4","v":"2017-12-31"}]
["",null,{"$f":"'210000 - Est. Situa. Financiera'!$D$56","v":"Pasivos por impuestos diferidos"},{"$f":"'210000 - Est. Situa. Financiera'!$C$56","v":"co-svsp-core_2017-12-31:PasivosPorImpuestosDiferidosG3"},0,"peso",{"$f":"'210000 - Est. Situa. Financiera'!$E$56","v":0},800001965,"www.solutions.com",null,{"$f":"Periodos!$C$4","v":"2017-12-31"}]
["",null,{"$f":"'210000 - Est. Situa. Financiera'!$D$57","v":"Pasivos por impuestos no corrientes"},{"$f":"'210000 - Est. Situa. Financiera'!$C$57","v":"co-svsp-core_2017-12-31:PasivosPorImpuestosNoCorrientesG3"},0,"peso",{"$f":"'210000 - Est. Situa. Financiera'!$E$57","v":0},800001965,"www.solutions.com",null,{"$f":"Periodos!$C$4","v":"2017-12-31"}]
["",null,{"$f":"'210000 - Est. Situa. Financiera'!$D$58","v":"Provisiones no corrientes"},{"$f":"'210000 - Est. Situa. Financiera'!$C$58","v":"co-svsp-core_2017-12-31:ProvisionesNoCorrientesG3"},0,"peso",{"$f":"'210000 - Est. Situa. Financiera'!$E$58","v":0},800001965,"www.solutions.com",null,{"$f":"Periodos!$C$4","v":"2017-12-31"}]
["",null,{"$f":"'210000 - Est. Situa. Financiera'!$D$59","v":"Otros pasivos no corrientes"},{"$f":"'210000 - Est. Situa. Financiera'!$C$59","v":"co-svsp-core_2017-12-31:OtrosPasivosNoCorrientesG3"},0,"peso",{"$f":"'210000 - Est. Situa. Financiera'!$E$59","v":0},800001965,"www.solutions.com",null,{"$f":"Periodos!$C$4","v":"2017-12-31"}]
["/*",null,{"$f":"'210000 - Est. Situa. Financiera'!$D$60","v":"Total de pasivos no corrientes"},{"$f":"'210000 - Est. Situa. Financiera'!$C$60","v":"ifrs-full:NoncurrentLiabilities"},0,"peso",{"$f":"'210000 - Est. Situa. Financiera'!$E$60","v":""},800001965,"www.solutions.com",null,{"$f":"Periodos!$C$4","v":"2017-12-31"}]
["/*",null,{"$f":"'210000 - Est. Situa. Financiera'!$D$61","v":"Total pasivos"},{"$f":"'210000 - Est. Situa. Financiera'!$C$61","v":"ifrs-full:Liabilities"},0,"peso",{"$f":"'210000 - Est. Situa. Financiera'!$E$61","v":""},800001965,"www.solutions.com",null,{"$f":"Periodos!$C$4","v":"2017-12-31"}]
["/*",null,{"$f":"'210000 - Est. Situa. Financiera'!$D$62","v":"Patrimonio [resumen]"},{"$f":"'210000 - Est. Situa. Financiera'!$C$62","v":"ifrs-full:EquityAbstract"}]
["",null,{"$f":"'210000 - Est. Situa. Financiera'!$D$63","v":"Capital emitido"},{"$f":"'210000 - Est. Situa. Financiera'!$C$63","v":"ifrs-full:IssuedCapital"},0,"peso",{"$f":"'210000 - Est. Situa. Financiera'!$E$63","v":0},800001965,"www.solutions.com",null,{"$f":"Periodos!$C$4","v":"2017-12-31"}]
["",null,{"$f":"'210000 - Est. Situa. Financiera'!$D$64","v":"Utilidad o perdida del ejercicio"},{"$f":"'210000 - Est. Situa. Financiera'!$C$64","v":"co-svsp-core_2017-12-31:UtilidadOPerdidaDelEjercicioG3"},0,"peso",{"$f":"'210000 - Est. Situa. Financiera'!$E$64","v":0},800001965,"www.solutions.com",null,{"$f":"Periodos!$C$4","v":"2017-12-31"}]
["",null,{"$f":"'210000 - Est. Situa. Financiera'!$D$65","v":"Ganancias acumuladas"},{"$f":"'210000 - Est. Situa. Financiera'!$C$65","v":"ifrs-full:RetainedEarnings"},0,"peso",{"$f":"'210000 - Est. Situa. Financiera'!$E$65","v":0},800001965,"www.solutions.com",null,{"$f":"Periodos!$C$4","v":"2017-12-31"}]
["",null,{"$f":"'210000 - Est. Situa. Financiera'!$D$66","v":"Reservas"},{"$f":"'210000 - Est. Situa. Financiera'!$C$66","v":"co-svsp-core_2017-12-31:ReservasG3"},0,"peso",{"$f":"'210000 - Est. Situa. Financiera'!$E$66","v":0},800001965,"www.solutions.com",null,{"$f":"Periodos!$C$4","v":"2017-12-31"}]
["",null,{"$f":"'210000 - Est. Situa. Financiera'!$D$67","v":"Otros componentes del patrimonio"},{"$f":"'210000 - Est. Situa. Financiera'!$C$67","v":"co-svsp-core_2017-12-31:OtrosComponentesDelPatrimonioG3"},0,"peso",{"$f":"'210000 - Est. Situa. Financiera'!$E$67","v":0},800001965,"www.solutions.com",null,{"$f":"Periodos!$C$4","v":"2017-12-31"}]
["/*",null,{"$f":"'210000 - Est. Situa. Financiera'!$D$68","v":"Patrimonio total"},{"$f":"'210000 - Est. Situa. Financiera'!$C$68","v":"ifrs-full:Equity"},0,"peso",{"$f":"'210000 - Est. Situa. Financiera'!$E$68","v":""},800001965,"www.solutions.com",null,{"$f":"Periodos!$C$4","v":"2017-12-31"}]
["/*",null,{"$f":"'210000 - Est. Situa. Financiera'!$D$69","v":"Total de patrimonio y pasivos"},{"$f":"'210000 - Est. Situa. Financiera'!$C$69","v":"ifrs-full:EquityAndLiabilities"},0,"peso",{"$f":"'210000 - Est. Situa. Financiera'!$E$69","v":""},800001965,"www.solutions.com",null,{"$f":"Periodos!$C$4","v":"2017-12-31"}]
["/*",null,"--02--"]
["/*",null,{"$f":"'210000 - Est. Situa. Financiera'!$D$11","v":"Estado de situación financiera [resumen]"},{"$f":"'210000 - Est. Situa. Financiera'!$C$11","v":"ifrs-full:StatementOfFinancialPositionAbstract"}]
["/*",null,{"$f":"'210000 - Est. Situa. Financiera'!$D$12","v":"Activos [resumen]"},{"$f":"'210000 - Est. Situa. Financiera'!$C$12","v":"ifrs-full:AssetsAbstract"}]
[{"$f":"IF(G161=\"\",\"/*\",\"\")","v":"/*"},null,{"$f":"'210000 - Est. Situa. Financiera'!$D$13","v":"Activos corrientes [resumen]"},{"$f":"'210000 - Est. Situa. Financiera'!$C$13","v":"ifrs-full:CurrentAssetsAbstract"}]
["",null,{"$f":"'210000 - Est. Situa. Financiera'!$D$14","v":"Efectivo y equivalentes al efectivo"},{"$f":"'210000 - Est. Situa. Financiera'!$C$14","v":"ifrs-full:CashAndCashEquivalents"},0,"peso",{"$f":"'210000 - Est. Situa. Financiera'!$F$14","v":0},800001965,"www.solutions.com",null,{"$f":"Periodos!$D$4","v":"2016-12-31"}]
["",null,{"$f":"'210000 - Est. Situa. Financiera'!$D$15","v":"Cuentas comerciales por cobrar y otras cuentas por cobrar corrientes"},{"$f":"'210000 - Est. Situa. Financiera'!$C$15","v":"ifrs-full:TradeAndOtherCurrentReceivables"},0,"peso",{"$f":"'210000 - Est. Situa. Financiera'!$F$15","v":0},800001965,"www.solutions.com",null,{"$f":"Periodos!$D$4","v":"2016-12-31"}]
["",null,{"$f":"'210000 - Est. Situa. Financiera'!$D$16","v":"Inventarios corrientes"},{"$f":"'210000 - Est. Situa. Financiera'!$C$16","v":"ifrs-full:Inventories"},0,"peso",{"$f":"'210000 - Est. Situa. Financiera'!$F$16","v":0},800001965,"www.solutions.com",null,{"$f":"Periodos!$D$4","v":"2016-12-31"}]
["",null,{"$f":"'210000 - Est. Situa. Financiera'!$D$17","v":"Activos por impuestos corrientes, corriente"},{"$f":"'210000 - Est. Situa. Financiera'!$C$17","v":"ifrs-full:CurrentTaxAssetsCurrent"},0,"peso",{"$f":"'210000 - Est. Situa. Financiera'!$F$17","v":0},800001965,"www.solutions.com",null,{"$f":"Periodos!$D$4","v":"2016-12-31"}]
["",null,{"$f":"'210000 - Est. Situa. Financiera'!$D$18","v":"Inversiones corrientes"},{"$f":"'210000 - Est. Situa. Financiera'!$C$18","v":"co-svsp-core_2017-12-31:InversionesCorrientesG3"},0,"peso",{"$f":"'210000 - Est. Situa. Financiera'!$F$18","v":0},800001965,"www.solutions.com",null,{"$f":"Periodos!$D$4","v":"2016-12-31"}]
["",null,{"$f":"'210000 - Est. Situa. Financiera'!$D$19","v":"Otros activos corrientes"},{"$f":"'210000 - Est. Situa. Financiera'!$C$19","v":"co-svsp-core_2017-12-31:OtrosActivosCorrientesG3"},0,"peso",{"$f":"'210000 - Est. Situa. Financiera'!$F$19","v":0},800001965,"www.solutions.com",null,{"$f":"Periodos!$D$4","v":"2016-12-31"}]
["/*",null,{"$f":"'210000 - Est. Situa. Financiera'!$D$20","v":"Activos corrientes totales"},{"$f":"'210000 - Est. Situa. Financiera'!$C$20","v":"ifrs-full:CurrentAssets"},0,"peso",{"$f":"'210000 - Est. Situa. Financiera'!$F$20","v":""},800001965,"www.solutions.com",null,{"$f":"Periodos!$D$4","v":"2016-12-31"}]
["/*",null,{"$f":"'210000 - Est. Situa. Financiera'!$D$21","v":"Activos no corrientes [resumen]"},{"$f":"'210000 - Est. Situa. Financiera'!$C$21","v":"ifrs-full:NoncurrentAssetsAbstract"}]
["",null,{"$f":"'210000 - Est. Situa. Financiera'!$D$22","v":"Propiedad de inversión"},{"$f":"'210000 - Est. Situa. Financiera'!$C$22","v":"ifrs-full:InvestmentProperty"},0,"peso",{"$f":"'210000 - Est. Situa. Financiera'!$F$22","v":0},800001965,"www.solutions.com",null,{"$f":"Periodos!$D$4","v":"2016-12-31"}]
["",null,{"$f":"'210000 - Est. Situa. Financiera'!$D$23","v":"Propiedades, planta y equipo"},{"$f":"'210000 - Est. Situa. Financiera'!$C$23","v":"ifrs-full:PropertyPlantAndEquipment"},0,"peso",{"$f":"'210000 - Est. Situa. Financiera'!$F$23","v":0},800001965,"www.solutions.com",null,{"$f":"Periodos!$D$4","v":"2016-12-31"}]
["",null,{"$f":"'210000 - Est. Situa. Financiera'!$D$24","v":"Plusvalía"},{"$f":"'210000 - Est. Situa. Financiera'!$C$24","v":"ifrs-full:Goodwill"},0,"peso",{"$f":"'210000 - Est. Situa. Financiera'!$F$24","v":0},800001965,"www.solutions.com",null,{"$f":"Periodos!$D$4","v":"2016-12-31"}]
["",null,{"$f":"'210000 - Est. Situa. Financiera'!$D$25","v":"Inversiones no corrientes"},{"$f":"'210000 - Est. Situa. Financiera'!$C$25","v":"co-svsp-core_2017-12-31:InversionesNoCorrientesG3"},0,"peso",{"$f":"'210000 - Est. Situa. Financiera'!$F$25","v":0},800001965,"www.solutions.com",null,{"$f":"Periodos!$D$4","v":"2016-12-31"}]
["",null,{"$f":"'210000 - Est. Situa. Financiera'!$D$26","v":"Cuentas comerciales por cobrar y otras cuentas por cobrar no corrientes"},{"$f":"'210000 - Est. Situa. Financiera'!$C$26","v":"ifrs-full:NoncurrentReceivables"},0,"peso",{"$f":"'210000 - Est. Situa. Financiera'!$F$26","v":0},800001965,"www.solutions.com",null,{"$f":"Periodos!$D$4","v":"2016-12-31"}]
["",null,{"$f":"'210000 - Est. Situa. Financiera'!$D$27","v":"Deterioro cuentas por cobrar"},{"$f":"'210000 - Est. Situa. Financiera'!$C$27","v":"co-svsp-core_2017-12-31:DeterioroCuentasPorCobrarG3"},0,"peso",{"$f":"'210000 - Est. Situa. Financiera'!$F$27","v":0},800001965,"www.solutions.com",null,{"$f":"Periodos!$D$4","v":"2016-12-31"}]
["",null,{"$f":"'210000 - Est. Situa. Financiera'!$D$28","v":"Inventarios no corrientes"},{"$f":"'210000 - Est. Situa. Financiera'!$C$28","v":"ifrs-full:NoncurrentInventories"},0,"peso",{"$f":"'210000 - Est. Situa. Financiera'!$F$28","v":0},800001965,"www.solutions.com",null,{"$f":"Periodos!$D$4","v":"2016-12-31"}]
["",null,{"$f":"'210000 - Est. Situa. Financiera'!$D$29","v":"Activos por impuestos diferidos"},{"$f":"'210000 - Est. Situa. Financiera'!$C$29","v":"ifrs-full:DeferredTaxAssets"},0,"peso",{"$f":"'210000 - Est. Situa. Financiera'!$F$29","v":0},800001965,"www.solutions.com",null,{"$f":"Periodos!$D$4","v":"2016-12-31"}]
["",null,{"$f":"'210000 - Est. Situa. Financiera'!$D$30","v":"Activos por impuestos corrientes, no corriente"},{"$f":"'210000 - Est. Situa. Financiera'!$C$30","v":"ifrs-full:CurrentTaxAssetsNoncurrent"},0,"peso",{"$f":"'210000 - Est. Situa. Financiera'!$F$30","v":0},800001965,"www.solutions.com",null,{"$f":"Periodos!$D$4","v":"2016-12-31"}]
["",null,{"$f":"'210000 - Est. Situa. Financiera'!$D$31","v":"Otros activos corrientes no corrientes"},{"$f":"'210000 - Est. Situa. Financiera'!$C$31","v":"co-svsp-core_2017-12-31:OtrosActivosCorrientesNoCorrientesG3"},0,"peso",{"$f":"'210000 - Est. Situa. Financiera'!$F$31","v":0},800001965,"www.solutions.com",null,{"$f":"Periodos!$D$4","v":"2016-12-31"}]
["/*",null,{"$f":"'210000 - Est. Situa. Financiera'!$D$32","v":"Total de activos no corrientes"},{"$f":"'210000 - Est. Situa. Financiera'!$C$32","v":"ifrs-full:NoncurrentAssets"},0,"peso",{"$f":"'210000 - Est. Situa. Financiera'!$F$32","v":""},800001965,"www.solutions.com",null,{"$f":"Periodos!$D$4","v":"2016-12-31"}]
["/*",null,{"$f":"'210000 - Est. Situa. Financiera'!$D$33","v":"Total de activos"},{"$f":"'210000 - Est. Situa. Financiera'!$C$33","v":"ifrs-full:Assets"},0,"peso",{"$f":"'210000 - Est. Situa. Financiera'!$F$33","v":""},800001965,"www.solutions.com",null,{"$f":"Periodos!$D$4","v":"2016-12-31"}]
["/*",null,{"$f":"'210000 - Est. Situa. Financiera'!$D$34","v":"Patrimonio y pasivos [resumen]"},{"$f":"'210000 - Est. Situa. Financiera'!$C$34","v":"ifrs-full:EquityAndLiabilitiesAbstract"}]
["/*",null,{"$f":"'210000 - Est. Situa. Financiera'!$D$35","v":"Pasivos [resumen]"},{"$f":"'210000 - Est. Situa. Financiera'!$C$35","v":"ifrs-full:LiabilitiesAbstract"}]
["/*",null,{"$f":"'210000 - Est. Situa. Financiera'!$D$36","v":"Pasivos corrientes [resumen]"},{"$f":"'210000 - Est. Situa. Financiera'!$C$36","v":"ifrs-full:CurrentLiabilitiesAbstract"}]
["",null,{"$f":"'210000 - Est. Situa. Financiera'!$D$37","v":"Acreedores comerciales y otras cuentas por pagar corrientes"},{"$f":"'210000 - Est. Situa. Financiera'!$C$37","v":"co-svsp-core_2017-12-31:AcreedoresComercialesYOtrasCuentasPorPagarCorrientesG3"},0,"peso",{"$f":"'210000 - Est. Situa. Financiera'!$F$37","v":0},800001965,"www.solutions.com",null,{"$f":"Periodos!$D$4","v":"2016-12-31"}]
["",null,{"$f":"'210000 - Est. Situa. Financiera'!$D$38","v":"Proveedores corrientes"},{"$f":"'210000 - Est. Situa. Financiera'!$C$38","v":"co-svsp-core_2017-12-31:ProveedoresCorrientesG3"},0,"peso",{"$f":"'210000 - Est. Situa. Financiera'!$F$38","v":0},800001965,"www.solutions.com",null,{"$f":"Periodos!$D$4","v":"2016-12-31"}]
["",null,{"$f":"'210000 - Est. Situa. Financiera'!$D$39","v":"Ingresos diferidos corrientes"},{"$f":"'210000 - Est. Situa. Financiera'!$C$39","v":"co-svsp-core_2017-12-31:IngresosDiferidosCorrientesG3"},0,"peso",{"$f":"'210000 - Est. Situa. Financiera'!$F$39","v":0},800001965,"www.solutions.com",null,{"$f":"Periodos!$D$4","v":"2016-12-31"}]
["",null,{"$f":"'210000 - Est. Situa. Financiera'!$D$40","v":"Gastos acumulados por pagar corrientes"},{"$f":"'210000 - Est. Situa. Financiera'!$C$40","v":"co-svsp-core_2017-12-31:GastosAcumuladosPorPagarCorrientesG3"},0,"peso",{"$f":"'210000 - Est. Situa. Financiera'!$F$40","v":0},800001965,"www.solutions.com",null,{"$f":"Periodos!$D$4","v":"2016-12-31"}]
["",null,{"$f":"'210000 - Est. Situa. Financiera'!$D$41","v":"Otras cuentas por pagar corrientes"},{"$f":"'210000 - Est. Situa. Financiera'!$C$41","v":"co-svsp-core_2017-12-31:OtrasCuentasPorPagarCorrientesG3"},0,"peso",{"$f":"'210000 - Est. Situa. Financiera'!$F$41","v":0},800001965,"www.solutions.com",null,{"$f":"Periodos!$D$4","v":"2016-12-31"}]
["",null,{"$f":"'210000 - Est. Situa. Financiera'!$D$42","v":"Obligaciones financieras corrientes"},{"$f":"'210000 - Est. Situa. Financiera'!$C$42","v":"co-svsp-core_2017-12-31:ObligacionesFinancierasCorrientesG3"},0,"peso",{"$f":"'210000 - Est. Situa. Financiera'!$F$42","v":0},800001965,"www.solutions.com",null,{"$f":"Periodos!$D$4","v":"2016-12-31"}]
["",null,{"$f":"'210000 - Est. Situa. Financiera'!$D$43","v":"Obligaciones laborales corrientes"},{"$f":"'210000 - Est. Situa. Financiera'!$C$43","v":"co-svsp-core_2017-12-31:ObligacionesLaboralesCorrientesG3"},0,"peso",{"$f":"'210000 - Est. Situa. Financiera'!$F$43","v":0},800001965,"www.solutions.com",null,{"$f":"Periodos!$D$4","v":"2016-12-31"}]
["",null,{"$f":"'210000 - Est. Situa. Financiera'!$D$44","v":"Pasivos por impuestos corrientes"},{"$f":"'210000 - Est. Situa. Financiera'!$C$44","v":"co-svsp-core_2017-12-31:PasivosPorImpuestosCorrientesG3"},0,"peso",{"$f":"'210000 - Est. Situa. Financiera'!$F$44","v":0},800001965,"www.solutions.com",null,{"$f":"Periodos!$D$4","v":"2016-12-31"}]
["",null,{"$f":"'210000 - Est. Situa. Financiera'!$D$45","v":"Provisiones corrientes"},{"$f":"'210000 - Est. Situa. Financiera'!$C$45","v":"co-svsp-core_2017-12-31:ProvisionesCorrientesG3"},0,"peso",{"$f":"'210000 - Est. Situa. Financiera'!$F$45","v":0},800001965,"www.solutions.com",null,{"$f":"Periodos!$D$4","v":"2016-12-31"}]
["",null,{"$f":"'210000 - Est. Situa. Financiera'!$D$46","v":"Otros pasivos corrientes"},{"$f":"'210000 - Est. Situa. Financiera'!$C$46","v":"co-svsp-core_2017-12-31:OtrosPasivosCorrientesG3"},0,"peso",{"$f":"'210000 - Est. Situa. Financiera'!$F$46","v":0},800001965,"www.solutions.com",null,{"$f":"Periodos!$D$4","v":"2016-12-31"}]
["/*",null,{"$f":"'210000 - Est. Situa. Financiera'!$D$47","v":"Pasivos corrientes totales"},{"$f":"'210000 - Est. Situa. Financiera'!$C$47","v":"ifrs-full:CurrentLiabilities"},0,"peso",{"$f":"'210000 - Est. Situa. Financiera'!$F$47","v":""},800001965,"www.solutions.com",null,{"$f":"Periodos!$D$4","v":"2016-12-31"}]
["/*",null,{"$f":"'210000 - Est. Situa. Financiera'!$D$48","v":"Pasivos no corrientes [resumen]"},{"$f":"'210000 - Est. Situa. Financiera'!$C$48","v":"ifrs-full:NoncurrentLiabilitiesAbstract"}]
["",null,{"$f":"'210000 - Est. Situa. Financiera'!$D$49","v":"Acreedores comerciales y otras cuentas por pagar no corrientes"},{"$f":"'210000 - Est. Situa. Financiera'!$C$49","v":"co-svsp-core_2017-12-31:AcreedoresComercialesYOtrasCuentasPorPagarNoCorrientesG3"},0,"peso",{"$f":"'210000 - Est. Situa. Financiera'!$F$49","v":0},800001965,"www.solutions.com",null,{"$f":"Periodos!$D$4","v":"2016-12-31"}]
["",null,{"$f":"'210000 - Est. Situa. Financiera'!$D$50","v":"Proveedores no corrientes"},{"$f":"'210000 - Est. Situa. Financiera'!$C$50","v":"co-svsp-core_2017-12-31:ProveedoresNoCorrientesG3"},0,"peso",{"$f":"'210000 - Est. Situa. Financiera'!$F$50","v":0},800001965,"www.solutions.com",null,{"$f":"Periodos!$D$4","v":"2016-12-31"}]
["",null,{"$f":"'210000 - Est. Situa. Financiera'!$D$51","v":"Ingresos diferidos no corrientes"},{"$f":"'210000 - Est. Situa. Financiera'!$C$51","v":"co-svsp-core_2017-12-31:IngresosDiferidosNoCorrientesG3"},0,"peso",{"$f":"'210000 - Est. Situa. Financiera'!$F$51","v":0},800001965,"www.solutions.com",null,{"$f":"Periodos!$D$4","v":"2016-12-31"}]
["",null,{"$f":"'210000 - Est. Situa. Financiera'!$D$52","v":"Gastos acumulados por pagar no corrientes"},{"$f":"'210000 - Est. Situa. Financiera'!$C$52","v":"co-svsp-core_2017-12-31:GastosAcumuladosPorPagarNoCorrientesG3"},0,"peso",{"$f":"'210000 - Est. Situa. Financiera'!$F$52","v":0},800001965,"www.solutions.com",null,{"$f":"Periodos!$D$4","v":"2016-12-31"}]
["",null,{"$f":"'210000 - Est. Situa. Financiera'!$D$53","v":"Otras cuentas por pagar no corrientes"},{"$f":"'210000 - Est. Situa. Financiera'!$C$53","v":"co-svsp-core_2017-12-31:OtrasCuentasPorPagarNoCorrientesG3"},0,"peso",{"$f":"'210000 - Est. Situa. Financiera'!$F$53","v":0},800001965,"www.solutions.com",null,{"$f":"Periodos!$D$4","v":"2016-12-31"}]
["",null,{"$f":"'210000 - Est. Situa. Financiera'!$D$54","v":"Obligaciones financieras no corrientes"},{"$f":"'210000 - Est. Situa. Financiera'!$C$54","v":"co-svsp-core_2017-12-31:ObligacionesFinancierasNoCorrientesG3"},0,"peso",{"$f":"'210000 - Est. Situa. Financiera'!$F$54","v":0},800001965,"www.solutions.com",null,{"$f":"Periodos!$D$4","v":"2016-12-31"}]
["",null,{"$f":"'210000 - Est. Situa. Financiera'!$D$55","v":"Obligaciones laborales no corrientes"},{"$f":"'210000 - Est. Situa. Financiera'!$C$55","v":"co-svsp-core_2017-12-31:ObligacionesLaboralesNoCorrientesG3"},0,"peso",{"$f":"'210000 - Est. Situa. Financiera'!$F$55","v":0},800001965,"www.solutions.com",null,{"$f":"Periodos!$D$4","v":"2016-12-31"}]
["",null,{"$f":"'210000 - Est. Situa. Financiera'!$D$56","v":"Pasivos por impuestos diferidos"},{"$f":"'210000 - Est. Situa. Financiera'!$C$56","v":"co-svsp-core_2017-12-31:PasivosPorImpuestosDiferidosG3"},0,"peso",{"$f":"'210000 - Est. Situa. Financiera'!$F$56","v":0},800001965,"www.solutions.com",null,{"$f":"Periodos!$D$4","v":"2016-12-31"}]
["",null,{"$f":"'210000 - Est. Situa. Financiera'!$D$57","v":"Pasivos por impuestos no corrientes"},{"$f":"'210000 - Est. Situa. Financiera'!$C$57","v":"co-svsp-core_2017-12-31:PasivosPorImpuestosNoCorrientesG3"},0,"peso",{"$f":"'210000 - Est. Situa. Financiera'!$F$57","v":0},800001965,"www.solutions.com",null,{"$f":"Periodos!$D$4","v":"2016-12-31"}]
["",null,{"$f":"'210000 - Est. Situa. Financiera'!$D$58","v":"Provisiones no corrientes"},{"$f":"'210000 - Est. Situa. Financiera'!$C$58","v":"co-svsp-core_2017-12-31:ProvisionesNoCorrientesG3"},0,"peso",{"$f":"'210000 - Est. Situa. Financiera'!$F$58","v":0},800001965,"www.solutions.com",null,{"$f":"Periodos!$D$4","v":"2016-12-31"}]
["",null,{"$f":"'210000 - Est. Situa. Financiera'!$D$59","v":"Otros pasivos no corrientes"},{"$f":"'210000 - Est. Situa. Financiera'!$C$59","v":"co-svsp-core_2017-12-31:OtrosPasivosNoCorrientesG3"},0,"peso",{"$f":"'210000 - Est. Situa. Financiera'!$F$59","v":0},800001965,"www.solutions.com",null,{"$f":"Periodos!$D$4","v":"2016-12-31"}]
["/*",null,{"$f":"'210000 - Est. Situa. Financiera'!$D$60","v":"Total de pasivos no corrientes"},{"$f":"'210000 - Est. Situa. Financiera'!$C$60","v":"ifrs-full:NoncurrentLiabilities"},0,"peso",{"$f":"'210000 - Est. Situa. Financiera'!$F$60","v":""},800001965,"www.solutions.com",null,{"$f":"Periodos!$D$4","v":"2016-12-31"}]
["/*",null,{"$f":"'210000 - Est. Situa. Financiera'!$D$61","v":"Total pasivos"},{"$f":"'210000 - Est. Situa. Financiera'!$C$61","v":"ifrs-full:Liabilities"},0,"peso",{"$f":"'210000 - Est. Situa. Financiera'!$F$61","v":""},800001965,"www.solutions.com",null,{"$f":"Periodos!$D$4","v":"2016-12-31"}]
["/*",null,{"$f":"'210000 - Est. Situa. Financiera'!$D$62","v":"Patrimonio [resumen]"},{"$f":"'210000 - Est. Situa. Financiera'!$C$62","v":"ifrs-full:EquityAbstract"}]
["",null,{"$f":"'210000 - Est. Situa. Financiera'!$D$63","v":"Capital emitido"},{"$f":"'210000 - Est. Situa. Financiera'!$C$63","v":"ifrs-full:IssuedCapital"},0,"peso",{"$f":"'210000 - Est. Situa. Financiera'!$F$63","v":0},800001965,"www.solutions.com",null,{"$f":"Periodos!$D$4","v":"2016-12-31"}]
["",null,{"$f":"'210000 - Est. Situa. Financiera'!$D$64","v":"Utilidad o perdida del ejercicio"},{"$f":"'210000 - Est. Situa. Financiera'!$C$64","v":"co-svsp-core_2017-12-31:UtilidadOPerdidaDelEjercicioG3"},0,"peso",{"$f":"'210000 - Est. Situa. Financiera'!$F$64","v":0},800001965,"www.solutions.com",null,{"$f":"Periodos!$D$4","v":"2016-12-31"}]
["",null,{"$f":"'210000 - Est. Situa. Financiera'!$D$65","v":"Ganancias acumuladas"},{"$f":"'210000 - Est. Situa. Financiera'!$C$65","v":"ifrs-full:RetainedEarnings"},0,"peso",{"$f":"'210000 - Est. Situa. Financiera'!$F$65","v":0},800001965,"www.solutions.com",null,{"$f":"Periodos!$D$4","v":"2016-12-31"}]
["",null,{"$f":"'210000 - Est. Situa. Financiera'!$D$66","v":"Reservas"},{"$f":"'210000 - Est. Situa. Financiera'!$C$66","v":"co-svsp-core_2017-12-31:ReservasG3"},0,"peso",{"$f":"'210000 - Est. Situa. Financiera'!$F$66","v":0},800001965,"www.solutions.com",null,{"$f":"Periodos!$D$4","v":"2016-12-31"}]
["",null,{"$f":"'210000 - Est. Situa. Financiera'!$D$67","v":"Otros componentes del patrimonio"},{"$f":"'210000 - Est. Situa. Financiera'!$C$67","v":"co-svsp-core_2017-12-31:OtrosComponentesDelPatrimonioG3"},0,"peso",{"$f":"'210000 - Est. Situa. Financiera'!$F$67","v":0},800001965,"www.solutions.com",null,{"$f":"Periodos!$D$4","v":"2016-12-31"}]
["/*",null,{"$f":"'210000 - Est. Situa. Financiera'!$D$68","v":"Patrimonio total"},{"$f":"'210000 - Est. Situa. Financiera'!$C$68","v":"ifrs-full:Equity"},0,"peso",{"$f":"'210000 - Est. Situa. Financiera'!$F$68","v":""},800001965,"www.solutions.com",null,{"$f":"Periodos!$D$4","v":"2016-12-31"}]
["/*",null,{"$f":"'210000 - Est. Situa. Financiera'!$D$69","v":"Total de patrimonio y pasivos"},{"$f":"'210000 - Est. Situa. Financiera'!$C$69","v":"ifrs-full:EquityAndLiabilities"},0,"peso",{"$f":"'210000 - Est. Situa. Financiera'!$F$69","v":""},800001965,"www.solutions.com",null,{"$f":"Periodos!$D$4","v":"2016-12-31"}]
["/*"]
["/*",null,"310000 - Est. Resultados"]
["/*",null,"--01--"]
["/*",null,{"$f":"'310000 - Est. Resultados'!$D$11","v":"Resultado de periodo [resumen]"},{"$f":"'310000 - Est. Resultados'!$C$11","v":"ifrs-full:IncomeStatementAbstract"}]
["/*",null,{"$f":"'310000 - Est. Resultados'!$D$12","v":"Ganancia (pérdida) [resumen]"},{"$f":"'310000 - Est. Resultados'!$C$12","v":"ifrs-full:ProfitLossAbstract"}]
["",null,{"$f":"'310000 - Est. Resultados'!$D$13","v":"Ingresos de actividades ordinarias"},{"$f":"'310000 - Est. Resultados'!$C$13","v":"ifrs-full:Revenue"},0,"peso",{"$f":"'310000 - Est. Resultados'!$E$13","v":0},800001965,"www.solutions.com",{"$f":"Periodos!$C$3","v":"2017-01-01"},{"$f":"Periodos!$C$4","v":"2017-12-31"}]
["",null,{"$f":"'310000 - Est. Resultados'!$D$14","v":"Costo de ventas"},{"$f":"'310000 - Est. Resultados'!$C$14","v":"ifrs-full:CostOfSales"},0,"peso",{"$f":"'310000 - Est. Resultados'!$E$14","v":0},800001965,"www.solutions.com",{"$f":"Periodos!$C$3","v":"2017-01-01"},{"$f":"Periodos!$C$4","v":"2017-12-31"}]
[{"$f":"IF(G225=\"\",\"/*\",\"\")","v":""},null,{"$f":"'310000 - Est. Resultados'!$D$15","v":"Ganancia bruta"},{"$f":"'310000 - Est. Resultados'!$C$15","v":"ifrs-full:GrossProfit"},0,"peso",{"$f":"'310000 - Est. Resultados'!$E$15","v":0},800001965,"www.solutions.com",{"$f":"Periodos!$C$3","v":"2017-01-01"},{"$f":"Periodos!$C$4","v":"2017-12-31"}]
["",null,{"$f":"'310000 - Est. Resultados'!$D$16","v":"Otros ingresos"},{"$f":"'310000 - Est. Resultados'!$C$16","v":"ifrs-full:OtherIncome"},0,"peso",{"$f":"'310000 - Est. Resultados'!$E$16","v":0},800001965,"www.solutions.com",{"$f":"Periodos!$C$3","v":"2017-01-01"},{"$f":"Periodos!$C$4","v":"2017-12-31"}]
["",null,{"$f":"'310000 - Est. Resultados'!$D$17","v":"Costos de distribución"},{"$f":"'310000 - Est. Resultados'!$C$17","v":"ifrs-full:DistributionCosts"},0,"peso",{"$f":"'310000 - Est. Resultados'!$E$17","v":0},800001965,"www.solutions.com",{"$f":"Periodos!$C$3","v":"2017-01-01"},{"$f":"Periodos!$C$4","v":"2017-12-31"}]
["",null,{"$f":"'310000 - Est. Resultados'!$D$18","v":"Gastos de administración"},{"$f":"'310000 - Est. Resultados'!$C$18","v":"ifrs-full:AdministrativeExpense"},0,"peso",{"$f":"'310000 - Est. Resultados'!$E$18","v":0},800001965,"www.solutions.com",{"$f":"Periodos!$C$3","v":"2017-01-01"},{"$f":"Periodos!$C$4","v":"2017-12-31"}]
["",null,{"$f":"'310000 - Est. Resultados'!$D$19","v":"Otros gastos"},{"$f":"'310000 - Est. Resultados'!$C$19","v":"ifrs-full:OtherExpenseByFunction"},0,"peso",{"$f":"'310000 - Est. Resultados'!$E$19","v":0},800001965,"www.solutions.com",{"$f":"Periodos!$C$3","v":"2017-01-01"},{"$f":"Periodos!$C$4","v":"2017-12-31"}]
["",null,{"$f":"'310000 - Est. Resultados'!$D$20","v":"Otras ganancias (pérdidas)"},{"$f":"'310000 - Est. Resultados'!$C$20","v":"ifrs-full:OtherGainsLosses"},0,"peso",{"$f":"'310000 - Est. Resultados'!$E$20","v":0},800001965,"www.solutions.com",{"$f":"Periodos!$C$3","v":"2017-01-01"},{"$f":"Periodos!$C$4","v":"2017-12-31"}]
["",null,{"$f":"'310000 - Est. Resultados'!$D$21","v":"Costos financieros"},{"$f":"'310000 - Est. Resultados'!$C$21","v":"ifrs-full:FinanceCosts"},0,"peso",{"$f":"'310000 - Est. Resultados'!$E$21","v":0},800001965,"www.solutions.com",{"$f":"Periodos!$C$3","v":"2017-01-01"},{"$f":"Periodos!$C$4","v":"2017-12-31"}]
["",null,{"$f":"'310000 - Est. Resultados'!$D$22","v":"Otros ingresos"},{"$f":"'310000 - Est. Resultados'!$C$22","v":"co-svsp-core_2017-12-31:OtrosIngresosG3"},0,"peso",{"$f":"'310000 - Est. Resultados'!$E$22","v":0},800001965,"www.solutions.com",{"$f":"Periodos!$C$3","v":"2017-01-01"},{"$f":"Periodos!$C$4","v":"2017-12-31"}]
["",null,{"$f":"'310000 - Est. Resultados'!$D$23","v":"Ingresos financieros"},{"$f":"'310000 - Est. Resultados'!$C$23","v":"co-svsp-core_2017-12-31:IngresosFinancierosG3"},0,"peso",{"$f":"'310000 - Est. Resultados'!$E$23","v":0},800001965,"www.solutions.com",{"$f":"Periodos!$C$3","v":"2017-01-01"},{"$f":"Periodos!$C$4","v":"2017-12-31"}]
["",null,{"$f":"'310000 - Est. Resultados'!$D$24","v":"Ganancia (pérdida), antes de impuestos"},{"$f":"'310000 - Est. Resultados'!$C$24","v":"ifrs-full:ProfitLossBeforeTax"},0,"peso",{"$f":"'310000 - Est. Resultados'!$E$24","v":0},800001965,"www.solutions.com",{"$f":"Periodos!$C$3","v":"2017-01-01"},{"$f":"Periodos!$C$4","v":"2017-12-31"}]
["",null,{"$f":"'310000 - Est. Resultados'!$D$25","v":"Ingreso (gasto) por impuesto sobre la renta"},{"$f":"'310000 - Est. Resultados'!$C$25","v":"co-svsp-core_2017-12-31:IngresoGastoPorImpuestoSobreRentaG3"},0,"peso",{"$f":"'310000 - Est. Resultados'!$E$25","v":0},800001965,"www.solutions.com",{"$f":"Periodos!$C$3","v":"2017-01-01"},{"$f":"Periodos!$C$4","v":"2017-12-31"}]
["",null,{"$f":"'310000 - Est. Resultados'!$D$26","v":"Ganancia (pérdida)"},{"$f":"'310000 - Est. Resultados'!$C$26","v":"ifrs-full:ProfitLoss"},0,"peso",{"$f":"'310000 - Est. Resultados'!$E$26","v":0},800001965,"www.solutions.com",{"$f":"Periodos!$C$3","v":"2017-01-01"},{"$f":"Periodos!$C$4","v":"2017-12-31"}]
["/*",null,"--02--"]
["/*",null,{"$f":"'310000 - Est. Resultados'!$D$11","v":"Resultado de periodo [resumen]"},{"$f":"'310000 - Est. Resultados'!$C$11","v":"ifrs-full:IncomeStatementAbstract"}]
["/*",null,{"$f":"'310000 - Est. Resultados'!$D$12","v":"Ganancia (pérdida) [resumen]"},{"$f":"'310000 - Est. Resultados'!$C$12","v":"ifrs-full:ProfitLossAbstract"}]
["",null,{"$f":"'310000 - Est. Resultados'!$D$13","v":"Ingresos de actividades ordinarias"},{"$f":"'310000 - Est. Resultados'!$C$13","v":"ifrs-full:Revenue"},0,"peso",{"$f":"'310000 - Est. Resultados'!$F$13","v":0},800001965,"www.solutions.com",{"$f":"Periodos!$D$3","v":"2016-01-01"},{"$f":"Periodos!$D$4","v":"2016-12-31"}]
["",null,{"$f":"'310000 - Est. Resultados'!$D$14","v":"Costo de ventas"},{"$f":"'310000 - Est. Resultados'!$C$14","v":"ifrs-full:CostOfSales"},0,"peso",{"$f":"'310000 - Est. Resultados'!$F$14","v":0},800001965,"www.solutions.com",{"$f":"Periodos!$D$3","v":"2016-01-01"},{"$f":"Periodos!$D$4","v":"2016-12-31"}]
["",null,{"$f":"'310000 - Est. Resultados'!$D$15","v":"Ganancia bruta"},{"$f":"'310000 - Est. Resultados'!$C$15","v":"ifrs-full:GrossProfit"},0,"peso",{"$f":"'310000 - Est. Resultados'!$F$15","v":0},800001965,"www.solutions.com",{"$f":"Periodos!$D$3","v":"2016-01-01"},{"$f":"Periodos!$D$4","v":"2016-12-31"}]
["",null,{"$f":"'310000 - Est. Resultados'!$D$16","v":"Otros ingresos"},{"$f":"'310000 - Est. Resultados'!$C$16","v":"ifrs-full:OtherIncome"},0,"peso",{"$f":"'310000 - Est. Resultados'!$F$16","v":0},800001965,"www.solutions.com",{"$f":"Periodos!$D$3","v":"2016-01-01"},{"$f":"Periodos!$D$4","v":"2016-12-31"}]
["",null,{"$f":"'310000 - Est. Resultados'!$D$17","v":"Costos de distribución"},{"$f":"'310000 - Est. Resultados'!$C$17","v":"ifrs-full:DistributionCosts"},0,"peso",{"$f":"'310000 - Est. Resultados'!$F$17","v":0},800001965,"www.solutions.com",{"$f":"Periodos!$D$3","v":"2016-01-01"},{"$f":"Periodos!$D$4","v":"2016-12-31"}]
["",null,{"$f":"'310000 - Est. Resultados'!$D$18","v":"Gastos de administración"},{"$f":"'310000 - Est. Resultados'!$C$18","v":"ifrs-full:AdministrativeExpense"},0,"peso",{"$f":"'310000 - Est. Resultados'!$F$18","v":0},800001965,"www.solutions.com",{"$f":"Periodos!$D$3","v":"2016-01-01"},{"$f":"Periodos!$D$4","v":"2016-12-31"}]
["",null,{"$f":"'310000 - Est. Resultados'!$D$19","v":"Otros gastos"},{"$f":"'310000 - Est. Resultados'!$C$19","v":"ifrs-full:OtherExpenseByFunction"},0,"peso",{"$f":"'310000 - Est. Resultados'!$F$19","v":0},800001965,"www.solutions.com",{"$f":"Periodos!$D$3","v":"2016-01-01"},{"$f":"Periodos!$D$4","v":"2016-12-31"}]
["",null,{"$f":"'310000 - Est. Resultados'!$D$20","v":"Otras ganancias (pérdidas)"},{"$f":"'310000 - Est. Resultados'!$C$20","v":"ifrs-full:OtherGainsLosses"},0,"peso",{"$f":"'310000 - Est. Resultados'!$F$20","v":0},800001965,"www.solutions.com",{"$f":"Periodos!$D$3","v":"2016-01-01"},{"$f":"Periodos!$D$4","v":"2016-12-31"}]
["",null,{"$f":"'310000 - Est. Resultados'!$D$21","v":"Costos financieros"},{"$f":"'310000 - Est. Resultados'!$C$21","v":"ifrs-full:FinanceCosts"},0,"peso",{"$f":"'310000 - Est. Resultados'!$F$21","v":0},800001965,"www.solutions.com",{"$f":"Periodos!$D$3","v":"2016-01-01"},{"$f":"Periodos!$D$4","v":"2016-12-31"}]
["",null,{"$f":"'310000 - Est. Resultados'!$D$22","v":"Otros ingresos"},{"$f":"'310000 - Est. Resultados'!$C$22","v":"co-svsp-core_2017-12-31:OtrosIngresosG3"},0,"peso",{"$f":"'310000 - Est. Resultados'!$F$22","v":0},800001965,"www.solutions.com",{"$f":"Periodos!$D$3","v":"2016-01-01"},{"$f":"Periodos!$D$4","v":"2016-12-31"}]
["",null,{"$f":"'310000 - Est. Resultados'!$D$23","v":"Ingresos financieros"},{"$f":"'310000 - Est. Resultados'!$C$23","v":"co-svsp-core_2017-12-31:IngresosFinancierosG3"},0,"peso",{"$f":"'310000 - Est. Resultados'!$F$23","v":0},800001965,"www.solutions.com",{"$f":"Periodos!$D$3","v":"2016-01-01"},{"$f":"Periodos!$D$4","v":"2016-12-31"}]
["",null,{"$f":"'310000 - Est. Resultados'!$D$24","v":"Ganancia (pérdida), antes de impuestos"},{"$f":"'310000 - Est. Resultados'!$C$24","v":"ifrs-full:ProfitLossBeforeTax"},0,"peso",{"$f":"'310000 - Est. Resultados'!$F$24","v":0},800001965,"www.solutions.com",{"$f":"Periodos!$D$3","v":"2016-01-01"},{"$f":"Periodos!$D$4","v":"2016-12-31"}]
["",null,{"$f":"'310000 - Est. Resultados'!$D$25","v":"Ingreso (gasto) por impuesto sobre la renta"},{"$f":"'310000 - Est. Resultados'!$C$25","v":"co-svsp-core_2017-12-31:IngresoGastoPorImpuestoSobreRentaG3"},0,"peso",{"$f":"'310000 - Est. Resultados'!$F$25","v":0},800001965,"www.solutions.com",{"$f":"Periodos!$D$3","v":"2016-01-01"},{"$f":"Periodos!$D$4","v":"2016-12-31"}]
["",null,{"$f":"'310000 - Est. Resultados'!$D$26","v":"Ganancia (pérdida)"},{"$f":"'310000 - Est. Resultados'!$C$26","v":"ifrs-full:ProfitLoss"},0,"peso",{"$f":"'310000 - Est. Resultados'!$F$26","v":0},800001965,"www.solutions.com",{"$f":"Periodos!$D$3","v":"2016-01-01"},{"$f":"Periodos!$D$4","v":"2016-12-31"}]